Workbook

Sheet Notes
A1: RateOfChangeWithBands.xlsm; Traders Tip spreadsheet created for the March 2021 Issue
A2: Coded beginning 2021-January-10 by Ronald McAllister (rpmac_xltt@sprynet.com)
A4: This Workbook demonstrates an EXCEL version of the ideas presented
A5: by Vitali Apirine in an article titled "Rate Of Change With Bands"
A6: which originally appeared in the March 2021 issue of
A7: "Technical Analysis of Stocks and Commodities" magazine.
A9: * * * * * * * * * * * * * * * *
A11: Development Notes:
A12: Consideration bars highlight the ROC retreats from Over Bought and Over Sold levels.
A14: With filtering and consideration bars turned on, I found it interesting to play with
A15: the filtering EMA length. I looked at shorter (as low as 8) and longer EMA values.
A17: How to retrieve data to replicate chart figures from the article.
A18: Please, DO NOT use the suggested dates on the InputPriceData tab as you need older bars to ramp up calculations to the dates under consideration.
A20: Figure 2: InputPriceData tab, Symbol ^RUT, select for data type DAILY.
A21: Then on CalculationsAndCharts tab, cells B26 and B27, set FROM date 10/17/2011, and TO date 1/17/2012.
A22: Click on "I Would Like to Chart These Dates"
A23: Set cells A17, A18, and A19 (Period 1, 2, and 3) to 12, 3, and 12.
A25: Figure 3: InputPriceData tab, Symbol ^NYA, select for data type Weekly.
A26: Then on CalculationsAndCharts tab, cells B26 and B27, set FROM date 7/4/2011, and TO date 1/20/2014.
A27: Click on "I Would Like to Chart These Dates"
A28: Set cells A17, A18, and A19 (Period 1, 2, and 3) to 4, 3, and 4.
A30: Figure 4: InputPriceData tab, Symbol ^GSPC, select for data type DAILY.
A31: Then on CalculationsAndCharts tab, cells B26 and B27, set FROM date 8/5/2013, and TO date 6/13/2014.
A32: Click on "I Would Like to Chart These Dates"
A33: Set cells A17, A18, and A19 (Period 1, 2, and 3) to 12, 3, and 12.
A35: Figure 5: InputPriceData tab, Symbol ^GSPC, select for data type DAILY.
A36: Then on CalculationsAndCharts tab, cells B26 and B27, set FROM date 1/11/2001, and TO date 7/24/2012.
A37: Click on "I Would Like to Chart These Dates"
A38: Set cells A17, A18, and A19 (Period 1, 2, and 3) to 30, 5, and 30.
A40: Figure 6: InputPriceData tab, Symbol ^DJI, select for data type DAILY.
A41: Then on CalculationsAndCharts tab, cells B26 and B27, set FROM date 1/11/2001, and TO date 7/24/2012.
A42: Click on "I Would Like to Chart These Dates"
A43: Set cells A17, A18, and A19 (Period 1, 2, and 3) to 20, 3, and 20.
A46: New for August 2020
A47: Restructured my Symbol-Not-Found detection and now stop further processing in the not found case
A49: New with the May 2020 version of my T-Tips template: VBA to implement a "Perpetual" U.S. Markets Closed Holiday Calendar.
A51: Why we need one: The Yahoo Finance recently has begun having occasional filtration problems where bars for U.S. Market Closed Holidays
A52: make their way onto the Historical Data web page and into the Historical Data download.
A54: While testing this May 2020 spreadsheet with different symbols, I found that I sometimes had bars with the text "null" in the price fields.
A55: My code always translates the "null" text price values to zeros.
A56: The resulting zeros cause real problems with indicator computations and the amount of blank space below price candles on the price chart.
A58: "null" price bars can be valid for very lightly traded penny sheet symbols which may not trade every day the markets are open.
A59: But is definitely not normal for symbols on the big boards.
A61: A closer look determined that these "bars" were for holiday dates when the US markets are normally closed.
A62: I found it interesting that some times the next download for the same symbol would not contain any of these "holiday" bars. Weird!
A64: My approach here was to write code to determine if the DATE on a null price values bar falls on one of the 9 market closed U.S. Holidays.
A65: If the bar date corresponds to one of these market closed holidays, I drop the bar before it reaches the InputPriceData tab.
A66: If the date is not a holiday, I let the bar through with the resulting zero values.
A68: No messy tables to update over the years as there are good solid rules that can be used in VBA or any other programming language to determine
A69: the dates for U.S. Market Closed Holidays for any given calendar year.
A71: This workbook contains and uses VBA macros and may take advantage of user defined VBA Class structures.
A72: Input Data:
A73: The data in this workbook is sorted date-descending (most recent date at the top). All cell formulas and
A74: VBA routines are built assuming this date sequence.
A76: ERROR 9 (already fixed in this spreadsheet)
A77: On or about Jan 29, 2020 Yahoo Finance changed the format of the split factor expression used their historical data downloads.
A78: The Split expression went from using "/" as in "New Share Number/Old Share Number",
A79: to using ":" as in "New Share Number:Old Share Number".
A80: This caused the then current version of my VBA code to fail with a "Runtime Error '9': subscript out of range".
A82: Fix for this ERROR 9
A83: For T-Tip spreadsheets from September 2018 up to present:
A84: Selecting the Debug option takes one into the VBA at the code line which causes the failure:
A85: CellArray(C_A_RowNdx, C_A_ColNdx + 1) = SplitFactors(1)
A86: Two lines above the failing VBA line is a line that reads:
A87: SplitFactors = Split(CsvColumns(CsvColNdx), "/")
A88: Change the / to a :
A89: The corrected line should now read
A90: SplitFactors = Split(CsvColumns(CsvColNdx), ":")
A92: If you are fixing several spreadsheets and do not want to use the failure to find the fix location,
A93: you can use VBA’s FIND dialog (Ctrl F) to look for the substring
A94: SplitFactors =
A95: Do include one space and the equal sign in your FIND string
A96: Select the "Current Project" option
A97: There should only be one instance.
A99: T-Tip spreadsheets prior to the September 2018 spreadsheet do not hard fail.
A101: They just get weird results in the split columns of the Input Price Data tab (soft fail).
A102: These older spreadsheets used different data retrieval and formatting logic.
A104: To fix these older spreadsheets:
A105: In the VBA editor, use find (CTRL-F).
A106: Select the "Current Project" option, and search for the following:
A107: OtherChar:="/"
A108: You are looking for a hit in a line reading:
A109: Other:=True, OtherChar:="/", _
A110: This line is part of a multiline block of code starting with a line that reads:
A111: SplitRange.Offset(0, 1).Resize(SpRows, 1).TextToColumns
A112: Change the / to a : so that the line reads
A113: Other:=True, OtherChar:=":", _
A116: 2019-04-04 Finally came up with a mechanism to align the left location and overall length of the cursor scroll bar so that the left most and right most
A117: scroll bar thumb positions visually align reasonably well with the left and right ends of the price chart horizontal axis.
A118: Makes it a little easier to visually align the Thumb and thus the cursor with points of interest on the charts.
A120: Older:
B121: My sincere apologies to our Macintosh based readers: Neither MSXML nor WinHttpRequest are supported in your environment. So as it stands this version of the spreadsheet will not work for you.
B122: See "Why this approach does not work for Macintosh" below.
B123: I am investigating cURL as a non-Querytable based approach for the Macintosh environment.
A125: The new Yahoo Finance history download interface has changed rather radically. The biggest hurdle being a pseudo-security requirement of adding a
B126: crumb character string to any URL requesting any type of history download. That crumb must match up (by way of some sort of hash algorithm) with
B127: the Yahoo Finance cookie that must also be sent with any request to the new Yahoo History down load interface.
B129: A crumb value is returned, buried in the HTML for any of what I call the "entry level" Yahoo Finance web pages (no crumb security requirement for entry level pages).
B130: A crumb may come with other Yahoo Finance pages. A crumb may even accompany some of the secured pages as well. I have not checked.
B132: Entry level pages are the top level pages of the various Yahoo Finance dialogs and include: Quote Lookup, Stock Summary Quote, and any of the pages
B133: with links in the horizontal row with the "Summary" link on the quote summary page such as Options, Historical Data, and the rest.
B135: To date I have found no way to get at this crumb value using any native EXCEL capabilities.
B137: So this crumb requirement effectively shuts out any solution that attempts to exclusively use built-in facilities of EXCEL, which is to say a purely Querytables solution.
B139: The approach built for this Traders Tip spreadsheet uses WINHTTP calls to Load the InputPriceData worksheet.
B141: First I call to get the HTML text for the Yahoo Summary Quote page using the requested symbol. From this HTML text I extract the full company name,
B142: the market it trades, the market status and time stamp, and finally the associated crumb string. There is a bunch of other useful bits buried in this HTML
B143: text that do not necessarily appear on the web page your browser presents. Perhaps some day I will go after and build a worksheet with these other bits.
B145: Next I add the freshly extracted crumb string to the URLs I use in three separate WINHTTP calls to retrieve Price history, Split history, and Dividend history respectively.
B147: From there VBA code proceeds as in the past to fill in the cell formulas and formatting that make the "prettied up" InputPriceData sheet.
A149: Why this approach works for Windows:
B150: WINHTTP maintains a temporary computer memory cache where cookies are maintained for as long as the WINHTTP object is instantiated.
B151: WINHTTP updates this cache any time a "set cookie" header accompanies a web response.
B152: Subsequent WINHTTP calls automatically search this cache for cookies and add any "appropriate" cookies to the headers
B153: of any web requests that get sent out.
B154: This cookie handling automation means that even if the response to our WINHTTP call for the Summary web page includes a new version of
B155: the Yahoo Finance cookie, the imbedded Crumb value will always match the cookie newly installed in the cache!
A158: Why this approach does not work for Macintosh:
B159: For what it is worth, the Macintosh version of the MS Office suite of products do in fact maintain a special, shared amongst themselves only, cookie cache.
B160: They automate cookie handling into and from this cache JUST for the Office products and any Querytable activity they might originate.
B162: This cache is not tied to, nor shared with, any browser that might be installed on the MAC. And I have not found anything with HTTP capabilities similar to
B163: MSXML that can work with that Office product cookie cache.
B165: When working in the MAC EXCEL environment, I have not yet become conversant with a Mac based WINHTTP like capability.
B166: So l currently have no mechanism to replicate the non-Querytable data retrieval process I am using in Windows environments.
B167: A software product called CURL has been suggested as providing this capability in the MAC environment.
B168: A version of CURL is available for the Windows So some day I may explore its capabilities and how to access those capabilities from VBA.
A170: Calculation and Chart Worksheet Usage Comments:
C171: In General, Items in Bolded BLUE are items you may freely change to play what-if games.
C172: Be sure to have a backup copy of the spreadsheet before you alter anything else.
A174: Features carried forward from the June 2016 version of my T-Tips Template
A175: Added a pair of buttons near cell F12 that will allow the user to step the charting window forward or backward one bar for each click.
A176: I find this to be a good way to test my understanding of the author's ideas as I step through the evolution of the price behavior and the indicators.
B178: First: In the "Help! I would like to plot data" area.
B179: Added button to resolve #NA problems by locating the bar in the input data with a slightly more recent date than what the user actually requested.
B180: I find this particularly useful when I have a general idea of where I want to be date wise. Now I can pick a set of dates "out of the air".
B181: If either (or both) of my date specifications fall between dates that are available in the price history,
B182: this button will resolve them to the dates of the nearest, slightly more recent input bars.
B183: I can then refine my data interval search as necessary from there.
B184: Really great when working with Weekly or Monthly studies!
C185: 2016Jun11 - added logic to the "I would like to chart.." button to detect #N/A values and terminate
C186: gracefully with a message instead of blowing up in the charting logic.
B188: Second: In the "Price Chart Windowing Controls" area. (A11 and A12)
B189: When retrieving data for a new symbol or when changing from daily to weekly or monthly data, there was the possibility that the
B190: residual settings in A11 and A12 would fall outside of the number bars available on the input data tab after the new data retrieval.
B191: In certain combinations, this could create a serious error in the chart sizing logic and crash the spreadsheet.
B192: I have taken this opportunity to update the validity checking logic used in the chart sizing macros
B193: to adjust these values as necessary so that they fall within the boundaries of the newly retrieved input data.
A194: Features carried forward from the October 2015 Traders Tips Template
B195: Improved automation: changes to any of the following will automatically initiate calculations appropriate to reflect a change.
C196: Changing either of cells A11 (pan) or A12 (zoom) will automatically initiate the same chart sizing macros that the manual
C197: "Set Chart" button uses.

Sheet InputPriceData
A1: Lockheed Martin Corporation (LMT) -NYSE (Daily) | B1: Lockheed Martin Corporation (LMT)
M2: To retrieve data for symbols traded on non US Exchanges, | II2: 241.79
A3: Request Online Yahoo History for: | F3: Market State == > | G3: At close: | H3: 16:00:00 | I3: EST | M3: you will need to append the dot-suffix for the exchange to the symbol.
A4: Symbol | B4: LMT | D4: Valid | I4: =OFFSET(I4,-2,0,1,1) -> 0 | M4: The following links provide a description of how to use the exchange suffix
A5: From | B5: 1950-10-01 | D5: Data | M5: along with a list of suffixes for the major world exchanges. | AD5: Trailing 12 Div return (Cur Close)
A6: To | B6: =NOW() -> 2021-01-18T10:29:09.980 | D6: Types | E6: =VLOOKUP(B7,D7:E10,2,FALSE) -> d | M6: https://help.yahoo.com/kb/finance/SLN2310.html
A7: Data Type | B7: Daily | D7: Daily | E7: d | M7: And
A8: Crumb | B8: 11pz/sVKVam | D8: Weekly | E8: w | M8: https://www.stockmarketeye.com/users-guide/ticker-symbols-and-data-providers/data-providers.html
A9: Available Data | D9: Monthly | E9: m
A10: Bar Count: | B10: 11107 | M10: You may search on “exchange suffixes” for additional discussions | AD10: =OFFSET(AC15,1,0,1,1)/OFFSET(N15,1,0,1,1) -> 0.02822011691
A11: From: | B11: =IF(B10<=0,"",OFFSET(B15,B10,IF(HistReqDataType="v",1,0),1,1)) -> 1977-01-03 | W11: Trailing 12 Month Dividend Returns
A12: To: | B12: =IF(B10<=0,"",IF(HistReqDataType="v",OFFSET(B15,2,1,1,1),OFFSET(B15,1,0,1,1))) -> 2021-01-15 | E12: 2 | F12: Holiday (market closed) dates have been filtered out. | W12: Raw Close price on Dividend date | X12: Div Year and Month | Y12: Looking for year ago Div Year and Month | Z12: Year ago Div Date we found | AA12: row offset to year ago div Date | AB12: Same month flag | AC12: Trailing 12 Div Total | AD12: Trailing 12 Div return
Q13: Split History | S13: 3 | T13: Running | U13: Dividend History
B14: Raw Data Values | H14: Adjusted | I14: Price Adjust | J14: Vol Adjust | K14: Adjusted Values | P14: Last | Q14: Effective | R14: Shares | T14: Vol Adjust | V14: 150
A15: RelRow | B15: Date | C15: Open | D15: High | E15: Low | F15: Close | G15: Volume | H15: Close | I15: Factor | J15: Factor | K15: Open | L15: High | M15: Low | N15: Close | O15: Volume | P15: Trade | Q15: 44215 | R15: New | S15: Old | T15: 1 | U15: Date | V15: $ / Share
A16: 1 | B16: 2021-01-15 | C16: 347.089996 | D16: 350.5 | E16: 344.279999 | F16: 347.269989 | G16: 1850200 | H16: 347.269989 | I16: =IF(F16=0,1,H16/F16) -> 1 | J16: =INDEX(OFFSET($T$15,0,0,$S$13+1,1),MATCH(B16,OFFSET($Q$15,0,0,$S$13+1,1),-1)) -> 1 | K16: =ROUND($I16*C16,2) -> 347.09 | L16: =ROUND($I16*D16,2) -> 350.5 | M16: 344.28 | N16: 347.27 | O16: =G16*J16 -> 1850200 | Q16: 1999-01-04 | R16: 2 | S16: 1 | T16: 2 | U16: 2020-11-30 | V16: 2.6 | W16: =(INDEX(OFFSET($F$15,1,0,$B$10,1),MATCH(U16,OFFSET($B$15,1,0,$B$10,1),-1))) -> 365 | X16: =YEAR(U16)&RIGHT("0"&MONTH(U16),2) -> 202011 | Y16: =YEAR(U16)-1&RIGHT("0"&MONTH(U16),2) -> 201911 | Z16: =OFFSET(U15,AA16,0,1,1) -> 2019-11-29 | AA16: =MATCH(Y16,OFFSET($X$15,A16,0,$V$14+1-A16,1),-1) -> 5 | AB16: =IF(OR(AND(YEAR(U16)=YEAR(Z16),MONTH(U16)=MONTH(Z16)),MONTH(U16)=MONTH(Z16)),1,0) -> 1 | AC16: =(V16+IF(AA16-AB16=0,0,IFERROR(SUM(OFFSET(V16,1,0,AA16-AB16-1,1)),0))) -> 9.8 | AD16: =AC16/(INDEX(OFFSET($F$15,1,0,$B$10,1),MATCH(U16,OFFSET($B$15,1,0,$B$10,1),-1))) -> 0.02684931507
A17: 2 | B17: 2021-01-14 | C17: 348 | D17: 354.790009 | E17: 346.850006 | F17: 347.440002 | G17: 1965600 | H17: 347.440002 | I17: =IF(F17=0,1,H17/F17) -> 1 | J17: =INDEX(OFFSET($T$15,0,0,$S$13+1,1),MATCH(B17,OFFSET($Q$15,0,0,$S$13+1,1),-1)) -> 1 | K17: =ROUND($I17*C17,2) -> 348 | L17: =ROUND($I17*D17,2) -> 354.79 | M17: =ROUND($I17*E17,2) -> 346.85 | N17: =ROUND($I17*F17,2) -> 347.44 | O17: =G17*J17 -> 1965600 | Q17: 1995-03-16 | R17: 163 | S17: 100 | T17: 3.26 | U17: 2020-08-31 | V17: 2.4 | W17: =(INDEX(OFFSET($F$15,1,0,$B$10,1),MATCH(U17,OFFSET($B$15,1,0,$B$10,1),-1))) -> 390.26001 | X17: =YEAR(U17)&RIGHT("0"&MONTH(U17),2) -> 202008 | Y17: =YEAR(U17)-1&RIGHT("0"&MONTH(U17),2) -> 201908 | Z17: =OFFSET(U16,AA17,0,1,1) -> 2019-08-30 | AA17: =MATCH(Y17,OFFSET($X$15,A17,0,$V$14+1-A17,1),-1) -> 5 | AB17: =IF(OR(AND(YEAR(U17)=YEAR(Z17),MONTH(U17)=MONTH(Z17)),MONTH(U17)=MONTH(Z17)),1,0) -> 1 | AC17: =(V17+IF(AA17-AB17=0,0,IFERROR(SUM(OFFSET(V17,1,0,AA17-AB17-1,1)),0))) -> 9.6 | AD17: =AC17/(INDEX(OFFSET($F$15,1,0,$B$10,1),MATCH(U17,OFFSET($B$15,1,0,$B$10,1),-1))) -> 0.02459898466
A18: 3 | B18: 2021-01-13 | C18: 341.410004 | D18: 347.200012 | E18: 339.170013 | F18: 345.48999 | G18: 1648100 | H18: 345.48999 | I18: 1 | J18: 1 | K18: 341.41 | L18: 347.2 | M18: 339.17 | N18: 345.49 | O18: 1648100 | Q18: 1983-09-09 | R18: 3 | S18: 1 | T18: 9.78 | U18: 2020-05-29 | V18: 2.4 | W18: 388.440002 | X18: 202005 | Y18: 201905 | Z18: 2019-05-31 | AA18: 5 | AB18: 1 | AC18: 9.4 | AD18: 0.02419936142
A19: 4 | B19: 2021-01-12 | C19: 336.519989 | D19: 343.369995 | E19: 335.630005 | F19: 341.850006 | G19: 3002200 | H19: 341.850006 | I19: 1 | J19: 1 | K19: 336.52 | L19: 343.37 | M19: 335.63 | N19: 341.85 | O19: 3002200 | U19: 2020-02-28 | V19: 2.4 | W19: 369.869995 | X19: 202002 | Y19: 201902 | Z19: 2019-02-28 | AA19: 5 | AB19: 1 | AC19: 9.2 | AD19: 0.02487360458
A20: 5 | B20: 2021-01-11 | C20: 335 | D20: 339 | E20: 333.320007 | F20: 337.679993 | G20: 3204000 | H20: 337.679993 | I20: 1 | J20: 1 | K20: 335 | L20: 339 | M20: 333.32 | N20: 337.68 | O20: 3204000 | U20: 2019-11-29 | V20: 2.4 | W20: 391.029999 | X20: 201911 | Y20: 201811 | Z20: 2018-11-30 | AA20: 5 | AB20: 1 | AC20: 9 | AD20: 0.02301613693
A21: 6 | B21: 2021-01-08 | C21: 341.880005 | D21: 343.470001 | E21: 335.01001 | F21: 336.100006 | G21: 3226300 | H21: 336.100006 | I21: 1 | J21: 1 | K21: 341.88 | L21: 343.47 | M21: 335.01 | N21: 336.1 | O21: 3226300 | U21: 2019-08-30 | V21: 2.2 | W21: 384.109985 | X21: 201908 | Y21: 201808 | Z21: 2018-08-31 | AA21: 5 | AB21: 1 | AC21: 8.8 | AD21: 0.02291010477
A22: 7 | B22: 2021-01-07 | C22: 344.359985 | D22: 347.850006 | E22: 341.339996 | F22: 342.549988 | G22: 2048900 | H22: 342.549988 | I22: 1 | J22: 1 | K22: 344.36 | L22: 347.85 | M22: 341.34 | N22: 342.55 | O22: 2048900 | U22: 2019-05-31 | V22: 2.2 | W22: 338.540009 | X22: 201905 | Y22: 201805 | Z22: 2018-05-31 | AA22: 5 | AB22: 1 | AC22: 8.6 | AD22: 0.02540320131
A23: 8 | B23: 2021-01-06 | C23: 343 | D23: 351.920013 | E23: 342.779999 | F23: 348.029999 | G23: 1897500 | H23: 348.029999 | I23: 1 | J23: 1 | K23: 343 | L23: 351.92 | M23: 342.78 | N23: 348.03 | O23: 1897500 | U23: 2019-02-28 | V23: 2.2 | W23: 309.410004 | X23: 201902 | Y23: 201802 | Z23: 2018-02-28 | AA23: 5 | AB23: 1 | AC23: 8.4 | AD23: 0.02714844346
A24: 9 | B24: 2021-01-05 | C24: 344.640015 | D24: 351.190002 | E24: 343.299988 | F24: 348.790009 | G24: 1479100 | H24: 348.790009 | I24: 1 | J24: 1 | K24: 344.64 | L24: 351.19 | M24: 343.3 | N24: 348.79 | O24: 1479100 | U24: 2018-11-30 | V24: 2.2 | W24: 300.429993 | X24: 201811 | Y24: 201711 | Z24: 2017-11-30 | AA24: 5 | AB24: 1 | AC24: 8.2 | AD24: 0.02729421227
A25: 10 | B25: 2021-01-04 | C25: 354.980011 | D25: 354.980011 | E25: 341.070007 | F25: 344.640015 | G25: 1887200 | H25: 344.640015 | I25: 1 | J25: 1 | K25: 354.98 | L25: 354.98 | M25: 341.07 | N25: 344.64 | O25: 1887200 | U25: 2018-08-31 | V25: 2 | W25: 320.410004 | X25: 201808 | Y25: 201708 | Z25: 2017-08-30 | AA25: 5 | AB25: 1 | AC25: 8 | AD25: 0.02496800943
A26: 11 | B26: 2020-12-31 | C26: 353.820007 | D26: 356.029999 | E26: 352.230011 | F26: 354.980011 | G26: 1318500 | H26: 354.980011 | I26: 1 | J26: 1 | K26: 353.82 | L26: 356.03 | M26: 352.23 | N26: 354.98 | O26: 1318500 | U26: 2018-05-31 | V26: 2 | W26: 314.540009 | X26: 201805 | Y26: 201705 | Z26: 2017-05-30 | AA26: 5 | AB26: 1 | AC26: 7.82 | AD26: 0.02486170209
A27: 12 | B27: 2020-12-30 | C27: 353 | D27: 356.609985 | E27: 353 | F27: 354.160004 | G27: 840800 | H27: 354.160004 | I27: 1 | J27: 1 | K27: 353 | L27: 356.61 | M27: 353 | N27: 354.16 | O27: 840800 | U27: 2018-02-28 | V27: 2 | W27: 352.440002 | X27: 201802 | Y27: 201702 | Z27: 2017-02-27 | AA27: 5 | AB27: 1 | AC27: 7.64 | AD27: 0.02167744852
A28: 13 | B28: 2020-12-29 | C28: 356 | D28: 357.350006 | E28: 351.799988 | F28: 353.899994 | G28: 1055900 | H28: 353.899994 | I28: 1 | J28: 1 | K28: 356 | L28: 357.35 | M28: 351.8 | N28: 353.9 | O28: 1055900 | U28: 2017-11-30 | V28: 2 | W28: 319.119995 | X28: 201711 | Y28: 201611 | Z28: 2016-11-29 | AA28: 5 | AB28: 1 | AC28: 7.46 | AD28: 0.02337678653
A29: 14 | B29: 2020-12-28 | C29: 353.109985 | D29: 357.820007 | E29: 351.709991 | F29: 354.179993 | G29: 1023400 | H29: 354.179993 | I29: 1 | J29: 1 | K29: 353.11 | L29: 357.82 | M29: 351.71 | N29: 354.18 | O29: 1023400 | U29: 2017-08-30 | V29: 1.82 | W29: 306.299988 | X29: 201708 | Y29: 201608 | Z29: 2016-08-30 | AA29: 5 | AB29: 1 | AC29: 7.28 | AD29: 0.02376754909
A30: 15 | B30: 2020-12-24 | C30: 352.829987 | D30: 354.059998 | E30: 350.399994 | F30: 351.970001 | G30: 508800 | H30: 351.970001 | I30: 1 | J30: 1 | K30: 352.83 | L30: 354.06 | M30: 350.4 | N30: 351.97 | O30: 508800 | U30: 2017-05-30 | V30: 1.82 | W30: 280.089996 | X30: 201705 | Y30: 201605 | Z30: 2016-05-27 | AA30: 5 | AB30: 1 | AC30: 7.11 | AD30: 0.02538469814
A31: 16 | B31: 2020-12-23 | C31: 349.950012 | D31: 355 | E31: 349.399994 | F31: 351.600006 | G31: 1307500 | H31: 351.600006 | I31: 1 | J31: 1 | K31: 349.95 | L31: 355 | M31: 349.4 | N31: 351.6 | O31: 1307500 | U31: 2017-02-27 | V31: 1.82 | W31: 269.359985 | X31: 201702 | Y31: 201602 | Z31: 2016-02-26 | AA31: 5 | AB31: 1 | AC31: 6.94 | AD31: 0.0257647772
A32: 17 | B32: 2020-12-22 | C32: 349.350006 | D32: 350.619995 | E32: 347.390015 | F32: 347.920013 | G32: 1820800 | H32: 347.920013 | I32: 1 | J32: 1 | K32: 349.35 | L32: 350.62 | M32: 347.39 | N32: 347.92 | O32: 1820800 | U32: 2016-11-29 | V32: 1.82 | W32: 266.579987 | X32: 201611 | Y32: 201511 | Z32: 2015-11-27 | AA32: 5 | AB32: 1 | AC32: 6.77 | AD32: 0.02539575486
A33: 18 | B33: 2020-12-21 | C33: 353.160004 | D33: 353.940002 | E33: 346.600006 | F33: 349.350006 | G33: 2128700 | H33: 349.350006 | I33: 1 | J33: 1 | K33: 353.16 | L33: 353.94 | M33: 346.6 | N33: 349.35 | O33: 2128700 | U33: 2016-08-30 | V33: 1.65 | W33: 239.449997 | X33: 201608 | Y33: 201508 | Z33: 2015-08-28 | AA33: 5 | AB33: 1 | AC33: 6.6 | AD33: 0.02756316593
A34: 19 | B34: 2020-12-18 | C34: 352.040009 | D34: 356.790009 | E34: 350.01001 | F34: 356.029999 | G34: 4342000 | H34: 356.029999 | I34: 1 | J34: 1 | K34: 352.04 | L34: 356.79 | M34: 350.01 | N34: 356.03 | O34: 4342000 | U34: 2016-05-27 | V34: 1.65 | W34: 240.089996 | X34: 201605 | Y34: 201505 | Z34: 2015-05-28 | AA34: 5 | AB34: 1 | AC34: 6.45 | AD34: 0.0268649261
A35: 20 | B35: 2020-12-17 | C35: 355.929993 | D35: 357.660004 | E35: 351.880005 | F35: 352.600006 | G35: 1658100 | H35: 352.600006 | I35: 1 | J35: 1 | K35: 355.93 | L35: 357.66 | M35: 351.88 | N35: 352.6 | O35: 1658100 | U35: 2016-02-26 | V35: 1.65 | W35: 217.240005 | X35: 201602 | Y35: 201502 | Z35: 2015-02-26 | AA35: 5 | AB35: 1 | AC35: 6.3 | AD35: 0.02900018346
A36: 21 | B36: 2020-12-16 | C36: 357.25 | D36: 357.899994 | E36: 353.649994 | F36: 354.570007 | G36: 1986200 | H36: 354.570007 | I36: 1 | J36: 1 | K36: 357.25 | L36: 357.9 | M36: 353.65 | N36: 354.57 | O36: 1986200 | U36: 2015-11-27 | V36: 1.65 | W36: 225.910004 | X36: 201511 | Y36: 201411 | Z36: 2014-11-26 | AA36: 5 | AB36: 1 | AC36: 6.15 | AD36: 0.02722323001
A37: 22 | B37: 2020-12-15 | C37: 358.730011 | D37: 359.890015 | E37: 355.450012 | F37: 357.570007 | G37: 1521000 | H37: 357.570007 | I37: 1 | J37: 1 | K37: 358.73 | L37: 359.89 | M37: 355.45 | N37: 357.57 | O37: 1521000 | U37: 2015-08-28 | V37: 1.5 | W37: 203.899994 | X37: 201508 | Y37: 201408 | Z37: 2014-08-29 | AA37: 5 | AB37: 1 | AC37: 6 | AD37: 0.02942619017
A38: 23 | B38: 2020-12-14 | C38: 363.5 | D38: 365.619995 | E38: 357.440002 | F38: 357.660004 | G38: 1370500 | H38: 357.660004 | I38: 1 | J38: 1 | K38: 363.5 | L38: 365.62 | M38: 357.44 | N38: 357.66 | O38: 1370500 | U38: 2015-05-28 | V38: 1.5 | W38: 190.119995 | X38: 201505 | Y38: 201405 | Z38: 2014-05-29 | AA38: 6 | AB38: 1 | AC38: 7.16 | AD38: 0.03766042599
A39: 24 | B39: 2020-12-11 | C39: 354.549988 | D39: 363.119995 | E39: 354.190002 | F39: 361.709991 | G39: 1409800 | H39: 361.709991 | I39: 1 | J39: 1 | K39: 354.55 | L39: 363.12 | M39: 354.19 | N39: 361.71 | O39: 1409800 | U39: 2015-02-26 | V39: 1.5 | W39: 201.330002 | X39: 201502 | Y39: 201402 | Z39: 2014-02-27 | AA39: 6 | AB39: 1 | AC39: 6.99 | AD39: 0.03471911752
A40: 25 | B40: 2020-12-10 | C40: 359.519989 | D40: 364.220001 | E40: 355.200012 | F40: 355.390015 | G40: 1378700 | H40: 355.390015 | I40: 1 | J40: 1 | K40: 359.52 | L40: 364.22 | M40: 355.2 | N40: 355.39 | O40: 1378700 | U40: 2014-11-26 | V40: 1.5 | W40: 189.149994 | X40: 201411 | Y40: 201311 | Z40: 2013-11-27 | AA40: 6 | AB40: 1 | AC40: 6.82 | AD40: 0.03605604132
A41: 26 | B41: 2020-12-09 | C41: 359.850006 | D41: 362.589996 | E41: 356.950012 | F41: 361.350006 | G41: 1522200 | H41: 361.350006 | I41: 1 | J41: 1 | K41: 359.85 | L41: 362.59 | M41: 356.95 | N41: 361.35 | O41: 1522200 | U41: 2014-08-29 | V41: 1.33 | W41: 174 | X41: 201408 | Y41: 201308 | Z41: 2013-08-29 | AA41: 6 | AB41: 1 | AC41: 6.65 | AD41: 0.0382183908
A42: 27 | B42: 2020-12-08 | C42: 360.980011 | D42: 363.170013 | E42: 358.839996 | F42: 359.230011 | G42: 1783600 | H42: 359.230011 | I42: 1 | J42: 1 | K42: 360.98 | L42: 363.17 | M42: 358.84 | N42: 359.23 | O42: 1783600 | U42: 2014-08-28 | V42: 1.33 | W42: 174.100006 | X42: 201408 | Y42: 201308 | Z42: 2013-08-29 | AA42: 5 | AB42: 1 | AC42: 5.32 | AD42: 0.03055715001
A43: 28 | B43: 2020-12-07 | C43: 366.899994 | D43: 366.899994 | E43: 360.540009 | F43: 362.130005 | G43: 1390500 | H43: 362.130005 | I43: 1 | J43: 1 | K43: 366.9 | L43: 366.9 | M43: 360.54 | N43: 362.13 | O43: 1390500 | U43: 2014-05-29 | V43: 1.33 | W43: 163.149994 | X43: 201405 | Y43: 201305 | Z43: 2013-05-30 | AA43: 5 | AB43: 1 | AC43: 5.14 | AD43: 0.03150475139
A44: 29 | B44: 2020-12-04 | C44: 363.119995 | D44: 367.730011 | E44: 362.109985 | F44: 366.609985 | G44: 1222600 | H44: 366.609985 | I44: 1 | J44: 1 | K44: 363.12 | L44: 367.73 | M44: 362.11 | N44: 366.61 | O44: 1222600 | U44: 2014-02-27 | V44: 1.33 | W44: 161.440002 | X44: 201402 | Y44: 201302 | Z44: 2013-02-27 | AA44: 5 | AB44: 1 | AC44: 4.96 | AD44: 0.03072348822
A45: 30 | B45: 2020-12-03 | C45: 362.119995 | D45: 369.5 | E45: 360.959991 | F45: 362.029999 | G45: 1758400 | H45: 362.029999 | I45: 1 | J45: 1 | K45: 362.12 | L45: 369.5 | M45: 360.96 | N45: 362.03 | O45: 1758400 | U45: 2013-11-27 | V45: 1.33 | W45: 143.940002 | X45: 201311 | Y45: 201211 | Z45: 2012-11-29 | AA45: 5 | AB45: 1 | AC45: 4.78 | AD45: 0.03320828077
A46: 31 | B46: 2020-12-02 | C46: 364.98999 | D46: 365.98999 | E46: 360.01001 | F46: 361.359985 | G46: 2520000 | H46: 361.359985 | I46: 1 | J46: 1 | K46: 364.99 | L46: 365.99 | M46: 360.01 | N46: 361.36 | O46: 2520000 | U46: 2013-08-29 | V46: 1.15 | W46: 122.339996 | X46: 201308 | Y46: 201208 | Z46: 2012-08-30 | AA46: 5 | AB46: 1 | AC46: 4.6 | AD46: 0.03760013201
A47: 32 | B47: 2020-12-01 | C47: 368.470001 | D47: 373.290009 | E47: 364.869995 | F47: 364.98999 | G47: 1300800 | H47: 364.98999 | I47: 1 | J47: 1 | K47: 368.47 | L47: 373.29 | M47: 364.87 | N47: 364.99 | O47: 1300800 | U47: 2013-05-30 | V47: 1.15 | W47: 107.029999 | X47: 201305 | Y47: 201205 | Z47: 2012-05-30 | AA47: 5 | AB47: 1 | AC47: 4.45 | AD47: 0.0415771283
A48: 33 | B48: 2020-11-30 | C48: 370.790009 | D48: 372.440002 | E48: 363.390015 | F48: 365 | G48: 1608400 | H48: 365 | I48: 1 | J48: 1 | K48: 370.79 | L48: 372.44 | M48: 363.39 | N48: 365 | O48: 1608400 | U48: 2013-02-27 | V48: 1.15 | W48: 88.330002 | X48: 201302 | Y48: 201202 | Z48: 2012-02-28 | AA48: 5 | AB48: 1 | AC48: 4.3 | AD48: 0.0486810812
A49: 34 | B49: 2020-11-27 | C49: 378.809998 | D49: 378.809998 | E49: 373.450012 | F49: 374.339996 | G49: 612300 | H49: 371.73999 | I49: 0.9930544264 | J49: 1 | K49: 376.18 | L49: 376.18 | M49: 370.86 | N49: 371.74 | O49: 612300 | U49: 2012-11-29 | V49: 1.15 | W49: 93.040001 | X49: 201211 | Y49: 201111 | Z49: 2011-11-29 | AA49: 5 | AB49: 1 | AC49: 4.15 | AD49: 0.04460447072
A50: 35 | B50: 2020-11-25 | C50: 377.089996 | D50: 381.950012 | E50: 376.230011 | F50: 378.339996 | G50: 854800 | H50: 375.712219 | I50: 0.9930544562 | J50: 1 | K50: 374.47 | L50: 379.3 | M50: 373.62 | N50: 375.71 | O50: 854800 | U50: 2012-08-30 | V50: 1 | W50: 90.93 | X50: 201208 | Y50: 201108 | Z50: 2011-08-30 | AA50: 5 | AB50: 1 | AC50: 4 | AD50: 0.04398988233
A51: 36 | B51: 2020-11-24 | C51: 375.279999 | D51: 378.480011 | E51: 373.059998 | F51: 378.480011 | G51: 959000 | H51: 375.851257 | I51: 0.9930544443 | J51: 1 | K51: 372.67 | L51: 375.85 | M51: 370.47 | N51: 375.85 | O51: 959000 | U51: 2012-05-30 | V51: 1 | W51: 82.800003 | X51: 201205 | Y51: 201105 | Z51: 2011-05-27 | AA51: 5 | AB51: 1 | AC51: 3.75 | AD51: 0.04528985343
A52: 37 | B52: 2020-11-23 | C52: 371.540009 | D52: 374.529999 | E52: 369.859985 | F52: 370.850006 | G52: 929200 | H52: 368.274261 | I52: 0.9930544831 | J52: 1 | K52: 368.96 | L52: 371.93 | M52: 367.29 | N52: 368.27 | O52: 929200 | U52: 2012-02-28 | V52: 1 | W52: 88.699997 | X52: 201202 | Y52: 201102 | Z52: 2011-02-25 | AA52: 5 | AB52: 1 | AC52: 3.5 | AD52: 0.03945885139
A53: 38 | B53: 2020-11-20 | C53: 375.970001 | D53: 377.23999 | E53: 367.619995 | F53: 368.019989 | G53: 1117500 | H53: 365.463898 | I53: 0.9930544778 | J53: 1 | K53: 373.36 | L53: 374.62 | M53: 365.07 | N53: 365.46 | O53: 1117500 | U53: 2011-11-29 | V53: 1 | W53: 76.510002 | X53: 201111 | Y53: 201011 | Z53: 2010-11-29 | AA53: 5 | AB53: 1 | AC53: 3.25 | AD53: 0.04247810633
A54: 39 | B54: 2020-11-19 | C54: 375 | D54: 377.75 | E54: 372.170013 | F54: 376.459991 | G54: 1075400 | H54: 373.845276 | I54: 0.9930544678 | J54: 1 | K54: 372.4 | L54: 375.13 | M54: 369.59 | N54: 373.85 | O54: 1075400 | U54: 2011-08-30 | V54: 0.75 | W54: 74.099998 | X54: 201108 | Y54: 201008 | Z54: 2010-08-30 | AA54: 5 | AB54: 1 | AC54: 3 | AD54: 0.04048583105
A55: 40 | B55: 2020-11-18 | C55: 377.48999 | D55: 383.470001 | E55: 376.23999 | F55: 377.559998 | G55: 1066800 | H55: 374.937622 | I55: 0.9930544125 | J55: 1 | K55: 374.87 | L55: 380.81 | M55: 373.63 | N55: 374.94 | O55: 1066800 | U55: 2011-05-27 | V55: 0.75 | W55: 77.260002 | X55: 201105 | Y55: 201005 | Z55: 2010-05-27 | AA55: 5 | AB55: 1 | AC55: 2.88 | AD55: 0.03727672697
A56: 41 | B56: 2020-11-17 | C56: 375.660004 | D56: 380.480011 | E56: 375.25 | F56: 375.899994 | G56: 1321100 | H56: 373.289154 | I56: 0.9930544293 | J56: 1 | K56: 373.05 | L56: 377.84 | M56: 372.64 | N56: 373.29 | O56: 1321100 | U56: 2011-02-25 | V56: 0.75 | W56: 80.110001 | X56: 201102 | Y56: 201002 | Z56: 2010-02-25 | AA56: 5 | AB56: 1 | AC56: 2.76 | AD56: 0.03445262721
A57: 42 | B57: 2020-11-16 | C57: 378.049988 | D57: 380.690002 | E57: 376.079987 | F57: 377.130005 | G57: 1306700 | H57: 374.51062 | I57: 0.9930544243 | J57: 1 | K57: 375.42 | L57: 378.05 | M57: 373.47 | N57: 374.51 | O57: 1306700 | U57: 2010-11-29 | V57: 0.75 | W57: 68.199997 | X57: 201011 | Y57: 200911 | Z57: 2009-11-27 | AA57: 5 | AB57: 1 | AC57: 2.64 | AD57: 0.03870967912
A58: 43 | B58: 2020-11-13 | C58: 370.570007 | D58: 376 | E58: 369.230011 | F58: 375.140015 | G58: 921000 | H58: 372.534454 | I58: 0.9930544306 | J58: 1 | K58: 368 | L58: 373.39 | M58: 366.67 | N58: 372.53 | O58: 921000 | U58: 2010-08-30 | V58: 0.63 | W58: 70.220001 | X58: 201008 | Y58: 200908 | Z58: 2009-08-28 | AA58: 5 | AB58: 1 | AC58: 2.52 | AD58: 0.03588721111
A59: 44 | B59: 2020-11-12 | C59: 367.5 | D59: 370.570007 | E59: 365.51001 | F59: 367.890015 | G59: 856100 | H59: 365.334808 | I59: 0.9930544269 | J59: 1 | K59: 364.95 | L59: 368 | M59: 362.97 | N59: 365.33 | O59: 856100 | U59: 2010-05-27 | V59: 0.63 | W59: 80.559998 | X59: 201005 | Y59: 200905 | Z59: 2009-05-28 | AA59: 5 | AB59: 1 | AC59: 2.46 | AD59: 0.03053624703
A60: 45 | B60: 2020-11-11 | C60: 372.869995 | D60: 373.329987 | E60: 365.679993 | F60: 369.279999 | G60: 1115200 | H60: 366.715149 | I60: 0.9930544573 | J60: 1 | K60: 370.28 | L60: 370.74 | M60: 363.14 | N60: 366.72 | O60: 1115200 | U60: 2010-02-25 | V60: 0.63 | W60: 76.989998 | X60: 201002 | Y60: 200902 | Z60: 2009-02-26 | AA60: 5 | AB60: 1 | AC60: 2.4 | AD60: 0.0311728804
A61: 46 | B61: 2020-11-10 | C61: 365 | D61: 373.440002 | E61: 363.940002 | F61: 371.279999 | G61: 1708000 | H61: 368.701263 | I61: 0.993054471 | J61: 1 | K61: 362.46 | L61: 370.85 | M61: 361.41 | N61: 368.7 | O61: 1708000 | U61: 2009-11-27 | V61: 0.63 | W61: 77.099998 | X61: 200911 | Y61: 200811 | Z61: 2008-11-26 | AA61: 5 | AB61: 1 | AC61: 2.34 | AD61: 0.03035019534
A62: 47 | B62: 2020-11-09 | C62: 379.600006 | D62: 381.519989 | E62: 363.730011 | F62: 363.950012 | G62: 1956900 | H62: 361.42218 | I62: 0.9930544528 | J62: 1 | K62: 376.96 | L62: 378.87 | M62: 361.2 | N62: 361.42 | O62: 1956900 | U62: 2009-08-28 | V62: 0.57 | W62: 74.949997 | X62: 200908 | Y62: 200808 | Z62: 2008-08-28 | AA62: 5 | AB62: 1 | AC62: 2.28 | AD62: 0.0304202814
A63: 48 | B63: 2020-11-06 | C63: 363.299988 | D63: 363.730011 | E63: 357.950012 | F63: 361.269989 | G63: 1401600 | H63: 358.760773 | I63: 0.9930544577 | J63: 1 | K63: 360.78 | L63: 361.2 | M63: 355.46 | N63: 358.76 | O63: 1401600 | U63: 2009-05-28 | V63: 0.57 | W63: 82.989998 | X63: 200905 | Y63: 200805 | Z63: 2008-05-29 | AA63: 5 | AB63: 1 | AC63: 2.13 | AD63: 0.02566574348
A64: 49 | B64: 2020-11-05 | C64: 374.549988 | D64: 376.5 | E64: 363.769989 | F64: 364.700012 | G64: 1709300 | H64: 362.166962 | I64: 0.9930544285 | J64: 1 | K64: 371.95 | L64: 373.88 | M64: 361.24 | N64: 362.17 | O64: 1709300 | U64: 2009-02-26 | V64: 0.57 | W64: 68.93 | X64: 200902 | Y64: 200802 | Z64: 2008-02-28 | AA64: 5 | AB64: 1 | AC64: 1.98 | AD64: 0.02872479327
A65: 50 | B65: 2020-11-04 | C65: 371.070007 | D65: 381.459991 | E65: 369.51001 | F65: 372.160004 | G65: 2146400 | H65: 369.575134 | I65: 0.9930544122 | J65: 1 | K65: 368.49 | L65: 378.81 | M65: 366.94 | N65: 369.58 | O65: 2146400 | U65: 2008-11-26 | V65: 0.57 | W65: 73.529999 | X65: 200811 | Y65: 200711 | Z65: 2007-11-29 | AA65: 5 | AB65: 1 | AC65: 1.83 | AD65: 0.02488780124
A66: 51 | B66: 2020-11-03 | C66: 357.130005 | D66: 366.200012 | E66: 356.209991 | F66: 363.440002 | G66: 1484600 | H66: 360.91571 | I66: 0.9930544464 | J66: 1 | K66: 354.65 | L66: 363.66 | M66: 353.74 | N66: 360.92 | O66: 1484600 | U66: 2008-08-28 | V66: 0.42 | W66: 119.589996 | X66: 200808 | Y66: 200708 | Z66: 2007-08-30 | AA66: 5 | AB66: 1 | AC66: 1.68 | AD66: 0.01404799779
A67: 52 | B67: 2020-11-02 | C67: 356.119995 | D67: 359.910004 | E67: 350.720001 | F67: 352.420013 | G67: 1707700 | H67: 349.97226 | I67: 0.9930544438 | J67: 1 | K67: 353.65 | L67: 357.41 | M67: 348.28 | N67: 349.97 | O67: 1707700 | U67: 2008-05-29 | V67: 0.42 | W67: 108.610001 | X67: 200805 | Y67: 200705 | Z67: 2007-05-30 | AA67: 5 | AB67: 1 | AC67: 1.61 | AD67: 0.01482368092
A68: 53 | B68: 2020-10-30 | C68: 350.640015 | D68: 353.730011 | E68: 345.649994 | F68: 350.130005 | G68: 1309800 | H68: 347.698151 | I68: 0.9930544256 | J68: 1 | K68: 348.2 | L68: 351.27 | M68: 343.25 | N68: 347.7 | O68: 1309800 | U68: 2008-02-28 | V68: 0.42 | W68: 105.160004 | X68: 200802 | Y68: 200702 | Z68: 2007-02-27 | AA68: 5 | AB68: 1 | AC68: 1.54 | AD68: 0.01464435091
A69: 54 | B69: 2020-10-29 | C69: 350 | D69: 356.230011 | E69: 348.290009 | F69: 352.440002 | G69: 1548000 | H69: 349.992126 | I69: 0.9930544887 | J69: 1 | K69: 347.57 | L69: 353.76 | M69: 345.87 | N69: 349.99 | O69: 1548000 | U69: 2007-11-29 | V69: 0.42 | W69: 112 | X69: 200711 | Y69: 200611 | Z69: 2006-11-29 | AA69: 5 | AB69: 1 | AC69: 1.47 | AD69: 0.013125
A70: 55 | B70: 2020-10-28 | C70: 356.869995 | D70: 360 | E70: 350.450012 | F70: 350.859985 | G70: 1679900 | H70: 348.423065 | I70: 0.9930544374 | J70: 1 | K70: 354.39 | L70: 357.5 | M70: 348.02 | N70: 348.42 | O70: 1679900 | U70: 2007-08-30 | V70: 0.35 | W70: 98.650002 | X70: 200708 | Y70: 200608 | Z70: 2006-08-30 | AA70: 5 | AB70: 1 | AC70: 1.4 | AD70: 0.01419158613
A71: 56 | B71: 2020-10-27 | C71: 367 | D71: 367.980011 | E71: 360.809998 | F71: 362.429993 | G71: 977400 | H71: 359.91272 | I71: 0.9930544573 | J71: 1 | K71: 364.45 | L71: 365.42 | M71: 358.3 | N71: 359.91 | O71: 977400 | U71: 2007-05-30 | V71: 0.35 | W71: 98.220001 | X71: 200705 | Y71: 200605 | Z71: 2006-05-30 | AA71: 5 | AB71: 1 | AC71: 1.35 | AD71: 0.01374465472
A72: 57 | B72: 2020-10-26 | C72: 369.429993 | D72: 369.869995 | E72: 362.5 | F72: 368.549988 | G72: 1387200 | H72: 365.990204 | I72: 0.9930544456 | J72: 1 | K72: 366.86 | L72: 367.3 | M72: 359.98 | N72: 365.99 | O72: 1387200 | U72: 2007-02-27 | V72: 0.35 | W72: 97.57 | X72: 200702 | Y72: 200602 | Z72: 2006-02-27 | AA72: 5 | AB72: 1 | AC72: 1.3 | AD72: 0.01332376755
A73: 58 | B73: 2020-10-23 | C73: 371.339996 | D73: 376.190002 | E73: 369.01001 | F73: 374.329987 | G73: 1178800 | H73: 371.730072 | I73: 0.9930544838 | J73: 1 | K73: 368.76 | L73: 373.58 | M73: 366.45 | N73: 371.73 | O73: 1178800 | U73: 2006-11-29 | V73: 0.35 | W73: 90.620003 | X73: 200611 | Y73: 200511 | Z73: 2005-11-29 | AA73: 5 | AB73: 1 | AC73: 1.25 | AD73: 0.01379386403
A74: 59 | B74: 2020-10-22 | C74: 367.5 | D74: 371.109985 | E74: 365.149994 | F74: 368.959991 | G74: 1255100 | H74: 366.397369 | I74: 0.9930544719 | J74: 1 | K74: 364.95 | L74: 368.53 | M74: 362.61 | N74: 366.4 | O74: 1255100 | U74: 2006-08-30 | V74: 0.3 | W74: 82.260002 | X74: 200608 | Y74: 200508 | Z74: 2005-08-30 | AA74: 5 | AB74: 1 | AC74: 1.2 | AD74: 0.01458789169
A75: 60 | B75: 2020-10-21 | C75: 372.209991 | D75: 375 | E75: 365 | F75: 367.140015 | G75: 1931200 | H75: 364.590027 | I75: 0.9930544536 | J75: 1 | K75: 369.62 | L75: 372.4 | M75: 362.46 | N75: 364.59 | O75: 1931200 | U75: 2006-05-30 | V75: 0.3 | W75: 72.620003 | X75: 200605 | Y75: 200505 | Z75: 2005-05-27 | AA75: 5 | AB75: 1 | AC75: 1.15 | AD75: 0.01583585724
A76: 61 | B76: 2020-10-20 | C76: 382.589996 | D76: 385.790009 | E76: 371.799988 | F76: 372.209991 | G76: 1779200 | H76: 369.624786 | I76: 0.9930544449 | J76: 1 | K76: 379.93 | L76: 383.11 | M76: 369.22 | N76: 369.62 | O76: 1779200 | U76: 2006-02-27 | V76: 0.3 | W76: 74.059998 | X76: 200602 | Y76: 200502 | Z76: 2005-02-25 | AA76: 5 | AB76: 1 | AC76: 1.1 | AD76: 0.01485282244
A77: 62 | B77: 2020-10-19 | C77: 387.23999 | D77: 389.600006 | E77: 381.670013 | F77: 383.709991 | G77: 1181000 | H77: 381.044922 | I77: 0.9930544707 | J77: 1 | K77: 384.55 | L77: 386.89 | M77: 379.02 | N77: 381.04 | O77: 1181000 | U77: 2005-11-29 | V77: 0.3 | W77: 60.900002 | X77: 200511 | Y77: 200411 | Z77: 2004-11-29 | AA77: 5 | AB77: 1 | AC77: 1.05 | AD77: 0.01724137874
A78: 63 | B78: 2020-10-16 | C78: 388.48999 | D78: 389.779999 | E78: 386.089996 | F78: 386.5 | G78: 952100 | H78: 383.815552 | I78: 0.9930544683 | J78: 1 | K78: 385.79 | L78: 387.07 | M78: 383.41 | N78: 383.82 | O78: 952100 | U78: 2005-08-30 | V78: 0.25 | W78: 62.259998 | X78: 200508 | Y78: 200408 | Z78: 2004-08-30 | AA78: 5 | AB78: 1 | AC78: 1 | AD78: 0.01606167736
A79: 64 | B79: 2020-10-15 | C79: 387.329987 | D79: 388.869995 | E79: 383.220001 | F79: 386.119995 | G79: 792000 | H79: 383.438171 | I79: 0.9930544286 | J79: 1 | K79: 384.64 | L79: 386.17 | M79: 380.56 | N79: 383.44 | O79: 792000 | U79: 2005-05-27 | V79: 0.25 | W79: 65.400002 | X79: 200505 | Y79: 200405 | Z79: 2004-05-27 | AA79: 5 | AB79: 1 | AC79: 0.97 | AD79: 0.01483180383
A80: 65 | B80: 2020-10-14 | C80: 387.140015 | D80: 395.459991 | E80: 387.140015 | F80: 390.720001 | G80: 1090300 | H80: 388.006226 | I80: 0.9930544252 | J80: 1 | K80: 384.45 | L80: 392.71 | M80: 384.45 | N80: 388.01 | O80: 1090300 | U80: 2005-02-25 | V80: 0.25 | W80: 59.810001 | X80: 200502 | Y80: 200402 | Z80: 2004-02-26 | AA80: 5 | AB80: 1 | AC80: 0.94 | AD80: 0.01571643512
A81: 66 | B81: 2020-10-13 | C81: 386.140015 | D81: 390.559998 | E81: 385.119995 | F81: 388.950012 | G81: 973300 | H81: 386.248535 | I81: =IF(F81=0,1,H81/F81) -> 0.9930544365 | J81: =INDEX(OFFSET($T$15,0,0,$S$13+1,1),MATCH(B81,OFFSET($Q$15,0,0,$S$13+1,1),-1)) -> 1 | K81: =ROUND($I81*C81,2) -> 383.46 | L81: =ROUND($I81*D81,2) -> 387.85 | M81: =ROUND($I81*E81,2) -> 382.45 | N81: =ROUND($I81*F81,2) -> 386.25 | O81: =G81*J81 -> 973300 | U81: 2004-11-29 | V81: 0.25 | W81: =(INDEX(OFFSET($F$15,1,0,$B$10,1),MATCH(U81,OFFSET($B$15,1,0,$B$10,1),-1))) -> 60.049999 | X81: =YEAR(U81)&RIGHT("0"&MONTH(U81),2) -> 200411 | Y81: =YEAR(U81)-1&RIGHT("0"&MONTH(U81),2) -> 200311 | Z81: =OFFSET(U80,AA81,0,1,1) -> 2003-11-26 | AA81: =MATCH(Y81,OFFSET($X$15,A81,0,$V$14+1-A81,1),-1) -> 5 | AB81: =IF(OR(AND(YEAR(U81)=YEAR(Z81),MONTH(U81)=MONTH(Z81)),MONTH(U81)=MONTH(Z81)),1,0) -> 1 | AC81: =(V81+IF(AA81-AB81=0,0,IFERROR(SUM(OFFSET(V81,1,0,AA81-AB81-1,1)),0))) -> 0.91 | AD81: =AC81/(INDEX(OFFSET($F$15,1,0,$B$10,1),MATCH(U81,OFFSET($B$15,1,0,$B$10,1),-1))) -> 0.01515403855
A82: 67 | B82: 2020-10-12 | C82: 386 | D82: 390.51001 | E82: 383.26001 | F82: 388.920013 | G82: 807400 | H82: 386.21875 | I82: 0.993054451 | J82: 1 | K82: 383.32 | L82: 387.8 | M82: 380.6 | N82: 386.22 | O82: 807400 | U82: 2004-08-30 | V82: 0.22 | W82: 53.720001 | X82: 200408 | Y82: 200308 | Z82: 2003-08-28 | AA82: 5 | AB82: 1 | AC82: 0.88 | AD82: 0.01638123573
A83: 68 | B83: 2020-10-09 | C83: 388.410004 | D83: 390.100006 | E83: 385.290009 | F83: 385.929993 | G83: 675000 | H83: 383.249481 | I83: 0.9930544087 | J83: 1 | K83: 385.71 | L83: 387.39 | M83: 382.61 | N83: 383.25 | O83: 675000 | U83: 2004-05-27 | V83: 0.22 | W83: 49.880001 | X83: 200405 | Y83: 200305 | Z83: 2003-05-29 | AA83: 5 | AB83: 1 | AC83: 0.78 | AD83: 0.01563752976
A84: 69 | B84: 2020-10-08 | C84: 383.899994 | D84: 389.190002 | E84: 382.279999 | F84: 388.589996 | G84: 694900 | H84: 385.891022 | I84: 0.9930544429 | J84: 1 | K84: 381.23 | L84: 386.49 | M84: 379.62 | N84: 385.89 | O84: 694900 | U84: 2004-02-26 | V84: 0.22 | W84: 46.540001 | X84: 200402 | Y84: 200302 | Z84: 2003-02-27 | AA84: 5 | AB84: 1 | AC84: 0.68 | AD84: 0.01461108692
A85: 70 | B85: 2020-10-07 | C85: 378.600006 | D85: 383.839996 | E85: 378.559998 | F85: 382.940002 | G85: 826500 | H85: 380.280273 | I85: 0.9930544498 | J85: 1 | K85: 375.97 | L85: 381.17 | M85: 375.93 | N85: 380.28 | O85: 826500 | U85: 2003-11-26 | V85: 0.22 | W85: 45.950001 | X85: 200311 | Y85: 200211 | Z85: 2002-11-27 | AA85: 5 | AB85: 1 | AC85: 0.57 | AD85: 0.01240478754
A86: 71 | B86: 2020-10-06 | C86: 386.029999 | D86: 386.109985 | E86: 376.019989 | F86: 376.459991 | G86: 954900 | H86: 373.845276 | I86: 0.9930544678 | J86: 1 | K86: 383.35 | L86: 383.43 | M86: 373.41 | N86: 373.85 | O86: 954900 | U86: 2003-08-28 | V86: 0.12 | W86: 51.400002 | X86: 200308 | Y86: 200208 | Z86: 2002-08-29 | AA86: 5 | AB86: 1 | AC86: 0.46 | AD86: 0.008949415994
A87: 72 | B87: 2020-10-05 | C87: 383.23999 | D87: 385.890015 | E87: 378.859985 | F87: 383.959991 | G87: 825000 | H87: 381.293182 | I87: 0.9930544612 | J87: 1 | K87: 380.58 | L87: 383.21 | M87: 376.23 | N87: 381.29 | O87: 825000 | U87: 2003-05-29 | V87: 0.12 | W87: 46.560001 | X87: 200305 | Y87: 200205 | Z87: 2002-05-30 | AA87: 5 | AB87: 1 | AC87: 0.45 | AD87: 0.009664948246
A88: 73 | B88: 2020-10-02 | C88: 376 | D88: 383.480011 | E88: 374.279999 | F88: 380.579987 | G88: 1217200 | H88: 377.936646 | I88: 0.9930544404 | J88: 1 | K88: 373.39 | L88: 380.82 | M88: 371.68 | N88: 377.94 | O88: 1217200 | U88: 2003-02-27 | V88: 0.11 | W88: 45.810001 | X88: 200302 | Y88: 200202 | Z88: 2002-02-28 | AA88: 5 | AB88: 1 | AC88: 0.44 | AD88: 0.009604889552
A89: 74 | B89: 2020-10-01 | C89: 384 | D89: 390 | E89: 379 | F89: 380.890015 | G89: 1103900 | H89: 378.244537 | I89: 0.9930544832 | J89: 1 | K89: 381.33 | L89: 387.29 | M89: 376.37 | N89: 378.24 | O89: 1103900 | U89: 2002-11-27 | V89: 0.11 | W89: 53.189999 | X89: 200211 | Y89: 200111 | Z89: 2001-11-29 | AA89: 5 | AB89: 1 | AC89: 0.44 | AD89: 0.008272231778
A90: 75 | B90: 2020-09-30 | C90: 389.470001 | D90: 389.76001 | E90: 380.51001 | F90: 383.279999 | G90: 1406700 | H90: 380.61792 | I90: 0.9930544797 | J90: 1 | K90: 386.76 | L90: 387.05 | M90: 377.87 | N90: 380.62 | O90: 1406700 | U90: 2002-08-29 | V90: 0.11 | W90: 62.5 | X90: 200208 | Y90: 200108 | Z90: 2001-08-30 | AA90: 5 | AB90: 1 | AC90: 0.44 | AD90: 0.00704
A91: 76 | B91: 2020-09-29 | C91: 389.609985 | D91: 393.149994 | E91: 387.51001 | F91: 388.73999 | G91: 1113100 | H91: 386.039978 | I91: 0.9930544527 | J91: 1 | K91: 386.9 | L91: 390.42 | M91: 384.82 | N91: 386.04 | O91: 1113100 | U91: 2002-05-30 | V91: 0.11 | W91: 63.139999 | X91: 200205 | Y91: 200105 | Z91: 2001-05-30 | AA91: 5 | AB91: 1 | AC91: 0.44 | AD91: 0.006968641225
A92: 77 | B92: 2020-09-28 | C92: 390 | D92: 396.609985 | E92: 389.649994 | F92: 390.51001 | G92: 980000 | H92: 387.797699 | I92: 0.9930544392 | J92: 1 | K92: 387.29 | L92: 393.86 | M92: 386.94 | N92: 387.8 | O92: 980000 | U92: 2002-02-28 | V92: 0.11 | W92: 56.41 | X92: 200202 | Y92: 200102 | Z92: 2001-03-01 | AA92: 5 | AB92: 0 | AC92: 0.55 | AD92: 0.009750044318
A93: 78 | B93: 2020-09-25 | C93: 377.450012 | D93: 388.399994 | E93: 376.450012 | F93: 386.700012 | G93: 1375400 | H93: 384.01416 | I93: 0.99305443 | J93: 1 | K93: 374.83 | L93: 385.7 | M93: 373.84 | N93: 384.01 | O93: 1375400 | U93: 2001-11-29 | V93: 0.11 | W93: 46.25 | X93: 200111 | Y93: 200011 | Z93: 2000-11-29 | AA93: 5 | AB93: 1 | AC93: 0.44 | AD93: 0.009513513514
A94: 79 | B94: 2020-09-24 | C94: 383.25 | D94: 384.48999 | E94: 375.100006 | F94: 378.76001 | G94: 1295100 | H94: 376.129303 | I94: 0.9930544225 | J94: 1 | K94: 380.59 | L94: 381.82 | M94: 372.49 | N94: 376.13 | O94: 1295100 | U94: 2001-08-30 | V94: 0.11 | W94: 39.369999 | X94: 200108 | Y94: 200008 | Z94: 2000-08-30 | AA94: 5 | AB94: 1 | AC94: 0.44 | AD94: 0.01117602264
A95: 80 | B95: 2020-09-23 | C95: 389.230011 | D95: 394.429993 | E95: 381.98999 | F95: 383.23999 | G95: 1223300 | H95: 380.578186 | I95: 0.9930544722 | J95: 1 | K95: 386.53 | L95: 391.69 | M95: 379.34 | N95: 380.58 | O95: 1223300 | U95: 2001-05-30 | V95: 0.11 | W95: 39.349998 | X95: 200105 | Y95: 200005 | Z95: 2000-05-30 | AA95: 5 | AB95: 1 | AC95: 0.44 | AD95: 0.01118170324
A96: 81 | B96: 2020-09-22 | C96: 381.880005 | D96: 392.480011 | E96: 381.339996 | F96: 388.420013 | G96: 1286300 | H96: 385.722229 | I96: 0.993054467 | J96: 1 | K96: 379.23 | L96: 389.75 | M96: 378.69 | N96: 385.72 | O96: 1286300 | U96: 2001-03-01 | V96: 0.11 | W96: 36.73 | X96: 200103 | Y96: 200003 | Z96: 2000-03-02 | AA96: 5 | AB96: 1 | AC96: 0.44 | AD96: 0.01197930847
A97: 82 | B97: 2020-09-21 | C97: 388.5 | D97: 389.869995 | E97: 377.230011 | F97: 379.609985 | G97: 1447400 | H97: 376.973389 | I97: 0.9930544609 | J97: 1 | K97: 385.8 | L97: 387.16 | M97: 374.61 | N97: 376.97 | O97: 1447400 | U97: 2000-11-29 | V97: 0.11 | W97: 34.900002 | X97: 200011 | Y97: 199911 | Z97: 1999-11-29 | AA97: 5 | AB97: 1 | AC97: 0.44 | AD97: 0.01260744913
A98: 83 | B98: 2020-09-18 | C98: 394.149994 | D98: 399 | E98: 394.149994 | F98: 395.140015 | G98: 2636400 | H98: 392.395538 | I98: 0.993054419 | J98: 1 | K98: 391.41 | L98: 396.23 | M98: 391.41 | N98: 392.4 | O98: 2636400 | U98: 2000-08-30 | V98: 0.11 | W98: 27.8125 | X98: 200008 | Y98: 199908 | Z98: 1999-08-30 | AA98: 5 | AB98: 1 | AC98: 0.55 | AD98: 0.0197752809
A99: 84 | B99: 2020-09-17 | C99: 392 | D99: 398.549988 | E99: 389.540009 | F99: 395.940002 | G99: 959500 | H99: 393.189972 | I99: 0.9930544275 | J99: 1 | K99: 389.28 | L99: 395.78 | M99: 386.83 | N99: 393.19 | O99: 959500 | U99: 2000-05-30 | V99: 0.11 | W99: 24.75 | X99: 200005 | Y99: 199905 | Z99: 1999-05-27 | AA99: 5 | AB99: 1 | AC99: 0.66 | AD99: 0.02666666667
A100: 85 | B100: 2020-09-16 | C100: 391.109985 | D100: 399.600006 | E100: 390.929993 | F100: 395.579987 | G100: 1052200 | H100: 392.832458 | I100: 0.9930544287 | J100: 1 | K100: 388.39 | L100: 396.82 | M100: 388.21 | N100: 392.83 | O100: 1052200 | U100: 2000-03-02 | V100: 0.11 | W100: 17.125 | X100: 200003 | Y100: 199903 | Z100: 1999-03-04 | AA100: 5 | AB100: 1 | AC100: 0.77 | AD100: 0.04496350365
A101: 86 | B101: 2020-09-15 | C101: 395.649994 | D101: 396 | E101: 386.890015 | F101: 392.549988 | G101: 955700 | H101: 389.823517 | I101: 0.9930544616 | J101: 1 | K101: 392.9 | L101: 393.25 | M101: 384.2 | N101: 389.82 | O101: 955700 | U101: 1999-11-29 | V101: 0.22 | W101: 20.375 | X101: 199911 | Y101: 199811 | Z101: 1998-11-27 | AA101: 5 | AB101: 1 | AC101: 0.88 | AD101: 0.04319018405
A102: 87 | B102: 2020-09-14 | C102: 393.369995 | D102: 396.670013 | E102: 391.619995 | F102: 393.75 | G102: 991000 | H102: 391.015198 | I102: 0.9930544711 | J102: 1 | K102: 390.64 | L102: 393.91 | M102: 388.9 | N102: 391.02 | O102: 991000 | U102: 1999-08-30 | V102: 0.22 | W102: 37.4375 | X102: 199908 | Y102: 199808 | Z102: 1998-08-28 | AA102: 5 | AB102: 1 | AC102: 0.88 | AD102: 0.02350584307
A103: 88 | B103: 2020-09-11 | C103: 381.470001 | D103: 390.5 | E103: 380.75 | F103: 389.450012 | G103: 933800 | H103: 386.745056 | I103: 0.9930544206 | J103: 1 | K103: 378.82 | L103: 387.79 | M103: 378.11 | N103: 386.75 | O103: 933800 | U103: 1999-05-27 | V103: 0.22 | W103: 39.625 | X103: 199905 | Y103: 199805 | Z103: 1998-05-28 | AA103: 5 | AB103: 1 | AC103: 0.86 | AD103: 0.02170347003
A104: 89 | B104: 2020-09-10 | C104: 386.019989 | D104: 388.529999 | E104: 378.329987 | F104: 379.109985 | G104: 716000 | H104: 376.476868 | I104: 0.9930544773 | J104: 1 | K104: 383.34 | L104: 385.83 | M104: 375.7 | N104: 376.48 | O104: 716000 | U104: 1999-03-04 | V104: 0.22 | W104: 36.8125 | X104: 199903 | Y104: 199803 | Z104: 1998-03-05 | AA104: 5 | AB104: 1 | AC104: 0.84 | AD104: 0.02281833616
A105: 90 | B105: 2020-09-09 | C105: 382.690002 | D105: 389.420013 | E105: 381.01001 | F105: 385.23999 | G105: 1218300 | H105: 382.564301 | I105: 0.9930544879 | J105: 1 | K105: 380.03 | L105: 386.72 | M105: 378.36 | N105: 382.56 | O105: 1218300 | U105: 1998-11-27 | V105: 0.22 | W105: 53.09375 | X105: 199811 | Y105: 199711 | Z105: 1997-11-26 | AA105: 5 | AB105: 1 | AC105: 0.82 | AD105: 0.01544437905
A106: 91 | B106: 2020-09-08 | C106: 383.98999 | D106: 385.290009 | E106: 378.359985 | F106: 380.230011 | G106: 1071600 | H106: 377.589111 | I106: 0.9930544672 | J106: 1 | K106: 381.32 | L106: 382.61 | M106: 375.73 | N106: 377.59 | O106: 1071600 | U106: 1998-08-28 | V106: 0.2 | W106: 44.90625 | X106: 199808 | Y106: 199708 | Z106: 1997-08-28 | AA106: 5 | AB106: 1 | AC106: 0.8 | AD106: 0.01781489214
A107: 92 | B107: 2020-09-04 | C107: 388.51001 | D107: 391.549988 | E107: 379.579987 | F107: 385.019989 | G107: 933600 | H107: 382.345825 | I107: 0.9930544801 | J107: 1 | K107: 385.81 | L107: 388.83 | M107: 376.94 | N107: 382.35 | O107: 933600 | U107: 1998-05-28 | V107: 0.2 | W107: 55.625 | X107: 199805 | Y107: 199705 | Z107: 1997-05-29 | AA107: 5 | AB107: 1 | AC107: 0.8 | AD107: 0.01438202247
A108: 93 | B108: 2020-09-03 | C108: 399.5 | D108: 401.880005 | E108: 383.380005 | F108: 386.290009 | G108: 1500800 | H108: 383.607025 | I108: 0.9930544825 | J108: 1 | K108: 396.73 | L108: 399.09 | M108: 380.72 | N108: 383.61 | O108: 1500800 | U108: 1998-03-05 | V108: 0.2 | W108: 56.96875 | X108: 199803 | Y108: 199703 | Z108: 1997-03-06 | AA108: 5 | AB108: 1 | AC108: 0.8 | AD108: 0.01404278662
A109: 94 | B109: 2020-09-02 | C109: 385.149994 | D109: 398.899994 | E109: 384.109985 | F109: 398.070007 | G109: 1214500 | H109: 395.305206 | I109: 0.9930544855 | J109: 1 | K109: 382.47 | L109: 396.13 | M109: 381.44 | N109: 395.31 | O109: 1214500 | U109: 1997-11-26 | V109: 0.2 | W109: 47.96875 | X109: 199711 | Y109: 199611 | Z109: 1996-11-28 | AA109: 5 | AB109: 1 | AC109: 0.8 | AD109: 0.01667752443
A110: 95 | B110: 2020-09-01 | C110: 387.820007 | D110: 389.190002 | E110: 385 | F110: 386.809998 | G110: 908900 | H110: 384.123383 | I110: 0.9930544324 | J110: 1 | K110: 385.13 | L110: 386.49 | M110: 382.33 | N110: 384.12 | O110: 908900 | U110: 1997-08-28 | V110: 0.2 | W110: 52.46875 | X110: 199708 | Y110: 199608 | Z110: 1996-08-29 | AA110: 6 | AB110: 1 | AC110: 1.2 | AD110: 0.0228707564
A111: 96 | B111: 2020-08-31 | C111: 392.170013 | D111: 395 | E111: 388.470001 | F111: 390.26001 | G111: 1030400 | H111: 387.549438 | I111: 0.9930544459 | J111: 1 | K111: 389.45 | L111: 392.26 | M111: 385.77 | N111: 387.55 | O111: 1030400 | U111: 1997-05-29 | V111: 0.2 | W111: 46.5 | X111: 199705 | Y111: 199605 | Z111: 1996-05-30 | AA111: 6 | AB111: 1 | AC111: 1.2 | AD111: 0.02580645161
A112: 97 | B112: 2020-08-28 | C112: 395.51001 | D112: 396 | E112: 391.730011 | F112: 395.589996 | G112: 728300 | H112: 390.459076 | I112: 0.9870297023 | J112: 1 | K112: 390.38 | L112: 390.86 | M112: 386.65 | N112: 390.46 | O112: 728300 | U112: 1997-03-06 | V112: 0.2 | W112: 43.625 | X112: 199703 | Y112: 199603 | Z112: 1996-05-30 | AA112: 5 | AB112: 0 | AC112: 1.2 | AD112: 0.02750716332
A113: 98 | B113: 2020-08-27 | C113: 396.839996 | D113: 400.089996 | E113: 394.880005 | F113: 395.019989 | G113: 700300 | H113: 389.896484 | I113: 0.9870297576 | J113: 1 | K113: 391.69 | L113: 394.9 | M113: 389.76 | N113: 389.9 | O113: 700300 | U113: 1996-11-28 | V113: 0.4 | W113: 45.3125 | X113: 199611 | Y113: 199511 | Z113: 1995-11-29 | AA113: 6 | AB113: 1 | AC113: 1.2 | AD113: 0.02648275862
A114: 99 | B114: 2020-08-26 | C114: 393 | D114: 397.660004 | E114: 390.559998 | F114: 395.440002 | G114: 908600 | H114: 390.311035 | I114: 0.9870297214 | J114: 1 | K114: 387.9 | L114: 392.5 | M114: 385.49 | N114: 390.31 | O114: 908600 | U114: 1996-11-27 | V114: 0.2 | W114: 45.1875 | X114: 199611 | Y114: 199511 | Z114: 1995-11-29 | AA114: 5 | AB114: 1 | AC114: 0.8 | AD114: 0.01770401107
A115: 100 | B115: 2020-08-25 | C115: 395.720001 | D115: 402.380005 | E115: 392.399994 | F115: 394.839996 | G115: 987400 | H115: 389.718811 | I115: 0.9870297208 | J115: 1 | K115: 390.59 | L115: 397.16 | M115: 387.31 | N115: 389.72 | O115: 987400 | U115: 1996-08-29 | V115: 0.2 | W115: 42.375 | X115: 199608 | Y115: 199508 | Z115: 1995-08-30 | AA115: 5 | AB115: 1 | AC115: 0.775 | AD115: 0.01828908555
A116: 101 | B116: 2020-08-24 | C116: 390.829987 | D116: 395.570007 | E116: 389.899994 | F116: 395.040009 | G116: 1006400 | H116: 389.916229 | I116: 0.9870297188 | J116: 1 | K116: 385.76 | L116: 390.44 | M116: 384.84 | N116: 389.92 | O116: 1006400 | U116: 1996-05-30 | V116: 0.2 | W116: 41.8125 | X116: 199605 | Y116: 199505 | Z116: 1995-05-25 | AA116: 6 | AB116: 1 | AC116: 1.1 | AD116: 0.02630792227
A117: 102 | B117: 2020-08-21 | C117: 387.709991 | D117: 390.790009 | E117: 386.859985 | F117: 389.570007 | G117: 996000 | H117: 384.517181 | I117: 0.9870297356 | J117: 1 | K117: 382.68 | L117: 385.72 | M117: 381.84 | N117: 384.52 | O117: 996000 | U117: 1996-02-29 | V117: 0.2 | W117: 38.125 | X117: 199602 | Y117: 199502 | Z117: 1995-02-13 | AA117: 6 | AB117: 1 | AC117: 1.075 | AD117: 0.02819672131
A118: 103 | B118: 2020-08-20 | C118: 388.279999 | D118: 389.200012 | E118: 383.579987 | F118: 387.880005 | G118: 1203700 | H118: 382.849091 | I118: 0.9870297155 | J118: 1 | K118: 383.24 | L118: 384.15 | M118: 378.6 | N118: 382.85 | O118: 1203700 | U118: 1995-11-29 | V118: 0.175 | W118: 36.75 | X118: 199511 | Y118: 199411 | Z118: 1994-11-15 | AA118: 6 | AB118: 1 | AC118: 1.04985 | AD118: 0.02856734694
A119: 104 | B119: 2020-08-19 | C119: 390.079987 | D119: 391.970001 | E119: 388.839996 | F119: 390.049988 | G119: 717400 | H119: 384.990936 | I119: 0.9870297343 | J119: 1 | K119: 385.02 | L119: 386.89 | M119: 383.8 | N119: 384.99 | O119: 717400 | U119: 1995-08-30 | V119: 0.175 | W119: 30.3125 | X119: 199508 | Y119: 199408 | Z119: 1994-08-16 | AA119: 6 | AB119: 1 | AC119: 1.0497 | AD119: 0.03462927835
A120: 105 | B120: 2020-08-18 | C120: 389.170013 | D120: 391.910004 | E120: 388.339996 | F120: 390.26001 | G120: 806100 | H120: 385.198242 | I120: 0.9870297549 | J120: 1 | K120: 384.12 | L120: 386.83 | M120: 383.3 | N120: 385.2 | O120: 806100 | U120: 1995-08-24 | V120: 0.35 | W120: 30.6875 | X120: 199508 | Y120: 199408 | Z120: 1994-08-16 | AA120: 5 | AB120: 1 | AC120: 0.8747 | AD120: 0.02850346232
A121: 106 | B121: 2020-08-17 | C121: 393.980011 | D121: 395.190002 | E121: 387.730011 | F121: 388.959991 | G121: 864100 | H121: 383.91507 | I121: 0.9870297174 | J121: 1 | K121: 388.87 | L121: 390.06 | M121: 382.7 | N121: 383.92 | O121: 864100 | U121: 1995-05-25 | V121: 0.175 | W121: 29.8125 | X121: 199505 | Y121: 199405 | Z121: 1994-05-17 | AA121: 5 | AB121: 1 | AC121: 0.69955 | AD121: 0.02346498952
A122: 107 | B122: 2020-08-14 | C122: 388.640015 | D122: 394.200012 | E122: 388.019989 | F122: 391.420013 | G122: 648600 | H122: 386.343201 | I122: 0.9870297587 | J122: 1 | K122: 383.6 | L122: 389.09 | M122: 382.99 | N122: 386.34 | O122: 648600 | U122: 1995-02-13 | V122: 0.17485 | W122: 23.312883 | X122: 199502 | Y122: 199402 | Z122: 1994-02-14 | AA122: 5 | AB122: 1 | AC122: 0.6994 | AD122: 0.03000057951
A123: 108 | B123: 2020-08-13 | C123: 390.350006 | D123: 394.049988 | E123: 387 | F123: 389.23999 | G123: 1053600 | H123: 384.191437 | I123: 0.9870297166 | J123: 1 | K123: 385.29 | L123: 388.94 | M123: 381.98 | N123: 384.19 | O123: 1053600 | U123: 1994-11-15 | V123: 0.17485 | W123: 22.124233 | X123: 199411 | Y123: 199311 | Z123: 1993-11-16 | AA123: 5 | AB123: 1 | AC123: 0.68713 | AD123: 0.03105779983
A124: 109 | B124: 2020-08-12 | C124: 394.019989 | D124: 396.519989 | E124: 391.290009 | F124: 392.440002 | G124: 878500 | H124: 387.349945 | I124: 0.9870297193 | J124: 1 | K124: 388.91 | L124: 391.38 | M124: 386.21 | N124: 387.35 | O124: 878500 | U124: 1994-08-16 | V124: 0.17485 | W124: 19.785276 | X124: 199408 | Y124: 199308 | Z124: 1993-08-17 | AA124: 5 | AB124: 1 | AC124: 0.67486 | AD124: 0.03410920323
A125: 110 | B125: 2020-08-11 | C125: 391.51001 | D125: 399.48999 | E125: 391.329987 | F125: 391.959991 | G125: 1312800 | H125: 386.87616 | I125: 0.9870297196 | J125: 1 | K125: 386.43 | L125: 394.31 | M125: 386.25 | N125: 386.88 | O125: 1312800 | U125: 1994-05-17 | V125: 0.17485 | W125: 18.86503 | X125: 199405 | Y125: 199305 | Z125: 1993-05-17 | AA125: 5 | AB125: 1 | AC125: 0.66259 | AD125: 0.03512265817
A126: 111 | B126: 2020-08-10 | C126: 386.019989 | D126: 391.109985 | E126: 385.959991 | F126: 389.26001 | G126: 856000 | H126: 384.211212 | I126: 0.9870297542 | J126: 1 | K126: 381.01 | L126: 386.04 | M126: 380.95 | N126: 384.21 | O126: 856000 | U126: 1994-02-14 | V126: 0.16258 | W126: 19.93865 | X126: 199402 | Y126: 199302 | Z126: 1993-02-08 | AA126: 5 | AB126: 1 | AC126: 0.65032 | AD126: 0.03261604973
A127: 112 | B127: 2020-08-07 | C127: 380.01001 | D127: 386.660004 | E127: 378.76001 | F127: 385.619995 | G127: 924300 | H127: 380.618408 | I127: 0.9870297519 | J127: 1 | K127: 375.08 | L127: 381.64 | M127: 373.85 | N127: 380.62 | O127: 924300 | U127: 1993-11-16 | V127: 0.16258 | W127: 21.510736 | X127: 199311 | Y127: 199211 | Z127: 1992-11-17 | AA127: 5 | AB127: 1 | AC127: 0.65032 | AD127: 0.03023234537
A128: 113 | B128: 2020-08-06 | C128: 381.779999 | D128: 383.190002 | E128: 378.089996 | F128: 379.73999 | G128: 698500 | H128: 374.814636 | I128: 0.9870296673 | J128: 1 | K128: 376.83 | L128: 378.22 | M128: 373.19 | N128: 374.81 | O128: 698500 | U128: 1993-08-17 | V128: 0.16258 | W128: 19.325153 | X128: 199308 | Y128: 199208 | Z128: 1992-08-18 | AA128: 5 | AB128: 1 | AC128: 0.65032 | AD128: 0.03365148002
A129: 114 | B129: 2020-08-05 | C129: 380 | D129: 384.869995 | E129: 378.269989 | F129: 383.5 | G129: 1018500 | H129: 378.525909 | I129: 0.9870297497 | J129: 1 | K129: 375.07 | L129: 379.88 | M129: 373.36 | N129: 378.53 | O129: 1018500 | U129: 1993-05-17 | V129: 0.16258 | W129: 19.210123 | X129: 199305 | Y129: 199205 | Z129: 1992-05-12 | AA129: 5 | AB129: 1 | AC129: 0.65032 | AD129: 0.0338529847
A130: 115 | B130: 2020-08-04 | C130: 379.079987 | D130: 380.839996 | E130: 376.290009 | F130: 377.98999 | G130: 900600 | H130: 373.087372 | I130: 0.9870297676 | J130: 1 | K130: 374.16 | L130: 375.9 | M130: 371.41 | N130: 373.09 | O130: 900600 | U130: 1993-02-08 | V130: 0.16258 | W130: 17.79141 | X130: 199302 | Y130: 199202 | Z130: 1992-02-10 | AA130: 5 | AB130: 1 | AC130: 0.65032 | AD130: 0.03655247111
A131: 116 | B131: 2020-08-03 | C131: 376.839996 | D131: 378.410004 | E131: 371.440002 | F131: 377.100006 | G131: 923100 | H131: 372.208923 | I131: 0.9870297456 | J131: 1 | K131: 371.95 | L131: 373.5 | M131: 366.62 | N131: 372.21 | O131: 923100 | U131: 1992-11-17 | V131: 0.16258 | W131: 14.11043 | X131: 199211 | Y131: 199111 | Z131: 1991-11-12 | AA131: 5 | AB131: 1 | AC131: 0.64111 | AD131: 0.04543518518
A132: 117 | B132: 2020-07-31 | C132: 380.549988 | D132: 381.369995 | E132: 373.679993 | F132: 378.970001 | G132: 1101800 | H132: 374.054657 | I132: 0.987029728 | J132: 1 | K132: 375.61 | L132: 376.42 | M132: 368.83 | N132: 374.05 | O132: 1101800 | U132: 1992-08-18 | V132: 0.16258 | W132: 14.76227 | X132: 199208 | Y132: 199108 | Z132: 1991-08-14 | AA132: 5 | AB132: 1 | AC132: 0.6319 | AD132: 0.04280506995
A133: 118 | B133: 2020-07-30 | C133: 382.709991 | D133: 385.839996 | E133: 380.859985 | F133: 381.720001 | G133: 983300 | H133: 376.769012 | I133: 0.9870297889 | J133: 1 | K133: 377.75 | L133: 380.84 | M133: 375.92 | N133: 376.77 | O133: 983300 | U133: 1992-05-12 | V133: 0.16258 | W133: 13.68865 | X133: 199205 | Y133: 199105 | Z133: 1991-05-15 | AA133: 5 | AB133: 1 | AC133: 0.62269 | AD133: 0.04548951138
A134: 119 | B134: 2020-07-29 | C134: 389.559998 | D134: 390.470001 | E134: 384.630005 | F134: 387.299988 | G134: 1209600 | H134: 382.276611 | I134: 0.9870297517 | J134: 1 | K134: 384.51 | L134: 385.41 | M134: 379.64 | N134: 382.28 | O134: 1209600 | U134: 1992-02-10 | V134: 0.15337 | W134: 13.535276 | X134: 199202 | Y134: 199102 | Z134: 1991-02-12 | AA134: 5 | AB134: 1 | AC134: 0.61348 | AD134: 0.04532452829
A135: 120 | B135: 2020-07-28 | C135: 382 | D135: 390.209991 | E135: 382 | F135: 386.660004 | G135: 1132100 | H135: 381.644897 | I135: 0.9870296722 | J135: 1 | K135: 377.05 | L135: 385.15 | M135: 377.05 | N135: 381.64 | O135: 1132100 | U135: 1991-11-12 | V135: 0.15337 | W135: 14.148773 | X135: 199111 | Y135: 199011 | Z135: 1990-11-13 | AA135: 5 | AB135: 1 | AC135: 0.59815 | AD135: 0.0422757507
A136: 121 | B136: 2020-07-27 | C136: 384.730011 | D136: 385.98999 | E136: 380.109985 | F136: 382.089996 | G136: 1047000 | H136: 377.134186 | I136: 0.9870297311 | J136: 1 | K136: 379.74 | L136: 380.98 | M136: 375.18 | N136: 377.13 | O136: 1047000 | U136: 1991-08-14 | V136: 0.15337 | W136: 13.611963 | X136: 199108 | Y136: 199008 | Z136: 1990-08-14 | AA136: 5 | AB136: 1 | AC136: 0.58282 | AD136: 0.04281674877
A137: 122 | B137: 2020-07-24 | C137: 388 | D137: 393.48999 | E137: 383.609985 | F137: 386.209991 | G137: 1305700 | H137: 381.200745 | I137: 0.9870297348 | J137: 1 | K137: 382.97 | L137: 388.39 | M137: 378.63 | N137: 381.2 | O137: 1305700 | U137: 1991-05-15 | V137: 0.15337 | W137: 12.576687 | X137: 199105 | Y137: 199005 | Z137: 1990-05-16 | AA137: 5 | AB137: 1 | AC137: 0.56749 | AD137: 0.04512237603
A138: 123 | B138: 2020-07-23 | C138: 393.769989 | D138: 394.149994 | E138: 385.709991 | F138: 387.619995 | G138: 1442800 | H138: 382.592468 | I138: 0.9870297532 | J138: 1 | K138: 388.66 | L138: 389.04 | M138: 380.71 | N138: 382.59 | O138: 1442800 | U138: 1991-02-12 | V138: 0.13804 | W138: 12.423313 | X138: 199102 | Y138: 199002 | Z138: 1990-02-13 | AA138: 5 | AB138: 1 | AC138: 0.55216 | AD138: 0.04444547119
A139: 124 | B139: 2020-07-22 | C139: 376.709991 | D139: 394.670013 | E139: 375.619995 | F139: 394.079987 | G139: 2280700 | H139: 388.968658 | I139: 0.9870297169 | J139: 1 | K139: 371.82 | L139: 389.55 | M139: 370.75 | N139: 388.97 | O139: 2280700 | U139: 1990-11-13 | V139: 0.13804 | W139: 9.739264 | X139: 199011 | Y139: 198911 | Z139: 1989-11-14 | AA139: 5 | AB139: 1 | AC139: 0.55216 | AD139: 0.05669422248
A140: 125 | B140: 2020-07-21 | C140: 377.980011 | D140: 378.899994 | E140: 370.579987 | F140: 375.119995 | G140: 1998100 | H140: 370.254608 | I140: 0.987029785 | J140: 1 | K140: 373.08 | L140: 373.99 | M140: 365.77 | N140: 370.25 | O140: 1998100 | U140: 1990-08-14 | V140: 0.13804 | W140: 8.857362 | X140: 199008 | Y140: 198908 | Z140: 1989-08-15 | AA140: 5 | AB140: 1 | AC140: 0.55216 | AD140: 0.06233910277
A141: 126 | B141: 2020-07-20 | C141: 369 | D141: 369 | E141: 362.429993 | F141: 365.529999 | G141: 1444500 | H141: 360.788971 | I141: 0.9870297157 | J141: 1 | K141: 364.21 | L141: 364.21 | M141: 357.73 | N141: 360.79 | O141: 1444500 | U141: 1990-05-16 | V141: 0.13804 | W141: 10.467792 | X141: 199005 | Y141: 198905 | Z141: 1989-05-17 | AA141: 5 | AB141: 1 | AC141: 0.55216 | AD141: 0.05274846883
A142: 127 | B142: 2020-07-17 | C142: 366.299988 | D142: 369 | E142: 362.850006 | F142: 368.5 | G142: 1135500 | H142: 363.720428 | I142: 0.9870296554 | J142: 1 | K142: 361.55 | L142: 364.21 | M142: 358.14 | N142: 363.72 | O142: 1135500 | U142: 1990-02-13 | V142: 0.13804 | W142: 10.582822 | X142: 199002 | Y142: 198902 | Z142: 1989-02-14 | AA142: 5 | AB142: 1 | AC142: 0.55216 | AD142: 0.05217511926
A143: 128 | B143: 2020-07-16 | C143: 362.299988 | D143: 365.940002 | E143: 359.019989 | F143: 365.880005 | G143: 955400 | H143: 361.13446 | I143: 0.9870297777 | J143: 1 | K143: 357.6 | L143: 361.19 | M143: 354.36 | N143: 361.13 | O143: 955400 | U143: 1989-11-14 | V143: 0.13804 | W143: 12.845092 | X143: 198911 | Y143: 198811 | Z143: 1988-11-15 | AA143: 5 | AB143: 1 | AC143: 0.53682 | AD143: 0.04179183769
A144: 129 | B144: 2020-07-15 | C144: 361.640015 | D144: 365.579987 | E144: 360.559998 | F144: 364.559998 | G144: 1617300 | H144: 359.831543 | I144: 0.9870296933 | J144: 1 | K144: 356.95 | L144: 360.84 | M144: 355.88 | N144: 359.83 | O144: 1617300 | U144: 1989-08-15 | V144: 0.13804 | W144: 15.41411 | X144: 198908 | Y144: 198808 | Z144: 1988-08-11 | AA144: 5 | AB144: 1 | AC144: 0.52148 | AD144: 0.03383134025
A145: 130 | B145: 2020-07-14 | C145: 349.130005 | D145: 355.920013 | E145: 349 | F145: 355.660004 | G145: 1651900 | H145: 351.046997 | I145: =IF(F145=0,1,H145/F145) -> 0.987029728 | J145: =INDEX(OFFSET($T$15,0,0,$S$13+1,1),MATCH(B145,OFFSET($Q$15,0,0,$S$13+1,1),-1)) -> 1 | K145: =ROUND($I145*C145,2) -> 344.6 | L145: =ROUND($I145*D145,2) -> 351.3 | M145: =ROUND($I145*E145,2) -> 344.47 | N145: =ROUND($I145*F145,2) -> 351.05 | O145: =G145*J145 -> 1651900 | U145: 1989-05-17 | V145: 0.13804 | W145: =(INDEX(OFFSET($F$15,1,0,$B$10,1),MATCH(U145,OFFSET($B$15,1,0,$B$10,1),-1))) -> 14.455522 | X145: =YEAR(U145)&RIGHT("0"&MONTH(U145),2) -> 198905 | Y145: =YEAR(U145)-1&RIGHT("0"&MONTH(U145),2) -> 198805 | Z145: =OFFSET(U144,AA145,0,1,1) -> 1988-05-18 | AA145: =MATCH(Y145,OFFSET($X$15,A145,0,$V$14+1-A145,1),-1) -> 5 | AB145: =IF(OR(AND(YEAR(U145)=YEAR(Z145),MONTH(U145)=MONTH(Z145)),MONTH(U145)=MONTH(Z145)),1,0) -> 1 | AC145: =(V145+IF(AA145-AB145=0,0,IFERROR(SUM(OFFSET(V145,1,0,AA145-AB145-1,1)),0))) -> 0.50614 | AD145: =AC145/(INDEX(OFFSET($F$15,1,0,$B$10,1),MATCH(U145,OFFSET($B$15,1,0,$B$10,1),-1))) -> 0.03501360933
A146: 131 | B146: 2020-07-13 | C146: 353.600006 | D146: 357.019989 | E146: 348.600006 | F146: 353.059998 | G146: 2031300 | H146: 348.480713 | I146: 0.9870297258 | J146: 1 | K146: 349.01 | L146: 352.39 | M146: 344.08 | N146: 348.48 | O146: 2031300 | U146: 1989-02-14 | V146: 0.1227 | W146: 14.22546 | X146: 198902 | Y146: 198802 | Z146: 1988-02-10 | AA146: 5 | AB146: 1 | AC146: 0.4908 | AD146: 0.03450152051
A147: 132 | B147: 2020-07-10 | C147: 342.329987 | D147: 349.329987 | E147: 341.660004 | F147: 349.25 | G147: 1514200 | H147: 344.720154 | I147: 0.9870297895 | J147: 1 | K147: 337.89 | L147: 344.8 | M147: 337.23 | N147: 344.72 | O147: 1514200 | U147: 1988-11-15 | V147: 0.1227 | W147: 12.193252 | X147: 198811 | Y147: 198711 | Z147: 1987-11-12 | AA147: 5 | AB147: 1 | AC147: 0.47546 | AD147: 0.03899369914
A148: 133 | B148: 2020-07-09 | C148: 348 | D148: 349.48999 | E148: 339.179993 | F148: 339.959991 | G148: 1823800 | H148: 335.550629 | I148: 0.987029762 | J148: 1 | K148: 343.49 | L148: 344.96 | M148: 334.78 | N148: 335.55 | O148: 1823800 | U148: 1988-08-11 | V148: 0.1227 | W148: 12.998466 | X148: 198808 | Y148: 198708 | Z148: 1987-08-13 | AA148: 5 | AB148: 1 | AC148: 0.46012 | AD148: 0.03539802312
A149: 134 | B149: 2020-07-08 | C149: 353.5 | D149: 357.299988 | E149: 348.630005 | F149: 350.230011 | G149: 1965100 | H149: 345.687439 | I149: 0.9870297466 | J149: 1 | K149: 348.92 | L149: 352.67 | M149: 344.11 | N149: 345.69 | O149: 1965100 | U149: 1988-05-18 | V149: 0.1227 | W149: 13.075153 | X149: 198805 | Y149: 198705 | Z149: 1987-05-19 | AA149: 5 | AB149: 1 | AC149: 0.44478 | AD149: 0.03401719276
A150: 135 | B150: 2020-07-07 | C150: 362.589996 | D150: 362.920013 | E150: 352.779999 | F150: 353.269989 | G150: 1395900 | H150: 348.687988 | I150: 0.9870297474 | J150: 1 | K150: 357.89 | L150: 358.21 | M150: 348.2 | N150: 348.69 | O150: 1395900 | U150: 1988-02-10 | V150: 0.10736 | W150: 12.116565 | X150: 198802 | Y150: 198702 | Z150: 1987-02-11 | AA150: 5 | AB150: 1 | AC150: 0.42944 | AD150: 0.03544238817
A151: 136 | B151: 2020-07-06 | C151: 366.480011 | D151: 367.119995 | E151: 360.839996 | F151: 362.589996 | G151: 1202300 | H151: 357.887085 | I151: 0.9870296725 | J151: 1 | K151: 361.73 | L151: 362.36 | M151: 356.16 | N151: 357.89 | O151: 1202300 | U151: 1987-11-12 | V151: 0.10736 | W151: 11.656442 | X151: 198711 | Y151: 198611 | Z151: 1986-11-13 | AA151: 5 | AB151: 1 | AC151: 0.39877 | AD151: 0.03421026759
A152: 137 | B152: 2020-07-02 | C152: 363.529999 | D152: 366.070007 | E152: 360.690002 | F152: 362 | G152: 1396000 | H152: 357.304779 | I152: 0.9870297762 | J152: 1 | K152: 358.81 | L152: 361.32 | M152: 356.01 | N152: 357.3 | O152: 1396000 | U152: 1987-08-13 | V152: 0.10736 | W152: 16.832823 | X152: 198708 | Y152: 198608 | Z152: 1986-08-14 | AA152: 5 | AB152: 1 | AC152: 0.3681 | AD152: 0.0218679897
A153: 138 | B153: 2020-07-01 | C153: 366.339996 | D153: 368.290009 | E153: 360.309998 | F153: 360.420013 | G153: 1430100 | H153: 355.74527 | I153: 0.9870297352 | J153: 1 | K153: 361.59 | L153: 363.51 | M153: 355.64 | N153: 355.75 | O153: 1430100 | U153: 1987-05-19 | V153: 0.10736 | W153: 13.650307 | X153: 198705 | Y153: 198605 | Z153: 1986-05-20 | AA153: 5 | AB153: 1 | AC153: 0.33743 | AD153: 0.02471959056
A154: 139 | B154: 2020-06-30 | C154: 365.350006 | D154: 367.25 | E154: 362.410004 | F154: 364.920013 | G154: 1482100 | H154: 360.18689 | I154: 0.9870296974 | J154: 1 | K154: 360.61 | L154: 362.49 | M154: 357.71 | N154: 360.19 | O154: 1482100 | U154: 1987-02-11 | V154: 0.07669 | W154: 16.679447 | X154: 198702 | Y154: 198602 | Z154: 1986-02-10 | AA154: 5 | AB154: 1 | AC154: 0.30676 | AD154: 0.01839149703
A155: 140 | B155: 2020-06-29 | C155: 360.390015 | D155: 367.5 | E155: 359.48999 | F155: 367.5 | G155: 1073000 | H155: 362.733429 | I155: 0.9870297388 | J155: 1 | K155: 355.72 | L155: 362.73 | M155: 354.83 | N155: 362.73 | O155: 1073000 | U155: 1986-11-13 | V155: 0.07669 | W155: 14.493865 | X155: 198611 | Y155: 198511 | Z155: 1985-11-13 | AA155: 5 | AB155: 1 | AC155: 0.29142 | AD155: 0.02010643814
A156: 141 | B156: 2020-06-26 | C156: 359.559998 | D156: 367.420013 | E156: 355.01001 | F156: 356.76001 | G156: 2008600 | H156: 352.132721 | I156: 0.987029687 | J156: 1 | K156: 354.9 | L156: 362.65 | M156: 350.41 | N156: 352.13 | O156: 2008600 | U156: 1986-08-14 | V156: 0.07669 | W156: 14.953988 | X156: 198608 | Y156: 198508 | Z156: 1985-08-14 | AA156: 5 | AB156: 1 | AC156: 0.27608 | AD156: 0.01846196479
A157: 142 | B157: 2020-06-25 | C157: 357.859985 | D157: 363.309998 | E157: 353.329987 | F157: 362.820007 | G157: 1391600 | H157: 358.114136 | I157: 0.9870297368 | J157: 1 | K157: 353.22 | L157: 358.6 | M157: 348.75 | N157: 358.11 | O157: 1391600 | U157: 1986-05-20 | V157: 0.07669 | W157: 16.641104 | X157: 198605 | Y157: 198505 | Z157: 1985-05-21 | AA157: 5 | AB157: 1 | AC157: 0.26074 | AD157: 0.01566843161
A158: 143 | B158: 2020-06-24 | C158: 370.899994 | D158: 371.230011 | E158: 358.320007 | F158: 359.820007 | G158: 2302800 | H158: 355.153046 | I158: 0.9870297346 | J158: 1 | K158: 366.09 | L158: 366.42 | M158: 353.67 | N158: 355.15 | O158: 2302800 | U158: 1986-02-10 | V158: 0.06135 | W158: 14.723927 | X158: 198602 | Y158: 198502 | Z158: 1985-02-08 | AA158: 5 | AB158: 1 | AC158: 0.2454 | AD158: 0.0166667493
A159: 144 | B159: 2020-06-23 | C159: 378.25 | D159: 378.779999 | E159: 371.040009 | F159: 371.700012 | G159: 1469300 | H159: 366.878967 | I159: 0.9870297421 | J159: 1 | K159: 373.34 | L159: 373.87 | M159: 366.23 | N159: 366.88 | O159: 1469300 | U159: 1985-11-13 | V159: 0.06135 | W159: 15.184049 | X159: 198511 | Y159: 198411 | Z159: 1984-11-13 | AA159: 5 | AB159: 1 | AC159: 0.23006 | AD159: 0.01515142634
A160: 145 | B160: 2020-06-22 | C160: 372.26001 | D160: 376.839996 | E160: 370.440002 | F160: 375.959991 | G160: 1370600 | H160: 371.08371 | I160: 0.9870297874 | J160: 1 | K160: 367.43 | L160: 371.95 | M160: 365.64 | N160: 371.08 | O160: 1370600 | U160: 1985-08-14 | V160: 0.06135 | W160: 15.95092 | X160: 198508 | Y160: 198408 | Z160: 1984-08-14 | AA160: 5 | AB160: 1 | AC160: 0.21472 | AD160: 0.01346129251
A161: 146 | B161: 2020-06-19 | C161: 383.339996 | D161: 383.589996 | E161: 372 | F161: 372.200012 | G161: 4322200 | H161: 367.372467 | I161: 0.9870297022 | J161: 1 | K161: 378.37 | L161: 378.61 | M161: 367.18 | N161: 367.37 | O161: 4322200 | U161: 1985-05-21 | V161: 0.06135 | W161: 15.337423 | X161: 198505 | Y161: 198405 | Z161: 1984-05-22 | AA161: 5 | AB161: 1 | AC161: 0.19938 | AD161: 0.01299957627
A162: 147 | B162: 2020-06-18 | C162: 379.679993 | D162: 381.320007 | E162: 376.070007 | F162: 378.390015 | G162: 1562000 | H162: 373.482208 | I162: 0.9870297661 | J162: 1 | K162: 374.76 | L162: 376.37 | M162: 371.19 | N162: 373.48 | O162: 1562000 | U162: 1985-02-08 | V162: 0.04601 | W162: 15.874233 | X162: 198502 | Y162: 198402 | Z162: 1984-05-22 | AA162: 4 | AB162: 0 | AC162: 0.18404 | AD162: 0.01159363101
A163: 148 | B163: 2020-06-17 | C163: 382.5 | D163: 386.23999 | E163: 376.920013 | F163: 382.109985 | G163: 1519000 | H163: 377.153931 | I163: 0.987029771 | J163: 1 | K163: 377.54 | L163: 381.23 | M163: 372.03 | N163: 377.15 | O163: 1519000 | U163: 1984-11-13 | V163: 0.04601 | W163: 13.765337 | X163: 198411 | Y163: 198311 | Z163: 1984-05-22 | AA163: 3 | AB163: 0 | AC163: 0.13803 | AD163: 0.01002736075
A164: 149 | B164: 2020-06-16 | C164: 386.559998 | D164: 391.790009 | E164: 379.579987 | F164: 382.769989 | G164: 2038600 | H164: 377.805359 | I164: 0.9870297303 | J164: 1 | K164: 381.55 | L164: 386.71 | M164: 374.66 | N164: 377.81 | O164: 2038600 | U164: 1984-08-14 | V164: 0.04601 | W164: 13.381902 | X164: 198408 | Y164: 198308 | Z164: 1984-05-22 | AA164: 2 | AB164: 0 | AC164: 0.09202 | AD164: 0.006876451494
A165: 150 | B165: 2020-06-15 | C165: 373.279999 | D165: 377.149994 | E165: 367.549988 | F165: 373.279999 | G165: 2271300 | H165: 368.438477 | I165: 0.9870297846 | J165: 1 | K165: 368.44 | L165: 372.26 | M165: 362.78 | N165: 368.44 | O165: 2271300 | U165: 1984-05-22 | V165: 0.04601 | W165: 10.736197 | X165: 198405 | Y165: 198305 | Z165: 1984-05-22 | AA165: 1 | AB165: 1 | AC165: 0.04601 | AD165: 0.004285502585
A166: 151 | B166: 2020-06-12 | C166: 393.329987 | D166: 394.429993 | E166: 376.470001 | F166: 381.869995 | G166: 1788100 | H166: 376.917053 | I166: 0.9870297691 | J166: 1 | K166: 388.23 | L166: 389.31 | M166: 371.59 | N166: 376.92 | O166: 1788100
A167: 152 | B167: 2020-06-11 | C167: 392.690002 | D167: 397.309998 | E167: 383.570007 | F167: 383.880005 | G167: 1698800 | H167: 378.90097 | I167: 0.98702971 | J167: 1 | K167: 387.6 | L167: 392.16 | M167: 378.59 | N167: 378.9 | O167: 1698800
A168: 153 | B168: 2020-06-10 | C168: 406.5 | D168: 409.100006 | E168: 403.450012 | F168: 403.769989 | G168: 1188200 | H168: 398.53299 | I168: 0.9870297468 | J168: 1 | K168: 401.23 | L168: 403.79 | M168: 398.22 | N168: 398.53 | O168: 1188200
A169: 154 | B169: 2020-06-09 | C169: 410.529999 | D169: 411.940002 | E169: 407 | F169: 408.559998 | G169: 1188400 | H169: 403.260864 | I169: 0.9870297287 | J169: 1 | K169: 405.21 | L169: 406.6 | M169: 401.72 | N169: 403.26 | O169: 1188400
A170: 155 | B170: 2020-06-08 | C170: 415 | D170: 417.619995 | E170: 411.75 | F170: 414.299988 | G170: 1294600 | H170: 408.926422 | I170: 0.9870297703 | J170: 1 | K170: 409.62 | L170: 412.2 | M170: 406.41 | N170: 408.93 | O170: 1294600
A171: 156 | B171: 2020-06-05 | C171: 410 | D171: 416 | E171: 406.450012 | F171: 410.75 | G171: 1702500 | H171: 405.422485 | I171: 0.987029787 | J171: 1 | K171: 404.68 | L171: 410.6 | M171: 401.18 | N171: 405.42 | O171: 1702500
A172: 157 | B172: 2020-06-04 | C172: 401.779999 | D172: 404.869995 | E172: 399 | F172: 403.670013 | G172: 1261700 | H172: 398.434296 | I172: 0.9870297103 | J172: 1 | K172: 396.57 | L172: 399.62 | M172: 393.82 | N172: 398.43 | O172: 1261700
A173: 158 | B173: 2020-06-03 | C173: 393.649994 | D173: 403.600006 | E173: 392.589996 | F173: 402.630005 | G173: 1382200 | H173: 397.407806 | I173: 0.9870297818 | J173: 1 | K173: 388.54 | L173: 398.37 | M173: 387.5 | N173: 397.41 | O173: 1382200
A174: 159 | B174: 2020-06-02 | C174: 388.640015 | D174: 393.230011 | E174: 386.98999 | F174: 389.769989 | G174: 1404700 | H174: 384.714569 | I174: 0.9870297351 | J174: 1 | K174: 383.6 | L174: 388.13 | M174: 381.97 | N174: 384.71 | O174: 1404700
A175: 160 | B175: 2020-06-01 | C175: 388.940002 | D175: 394 | E175: 387.309998 | F175: 388.959991 | G175: 1090300 | H175: 383.91507 | I175: 0.9870297174 | J175: 1 | K175: 383.9 | L175: 388.89 | M175: 382.29 | N175: 383.92 | O175: 1090300
A176: 161 | B176: 2020-05-29 | C176: 396.040009 | D176: 396.23999 | E176: 384.769989 | F176: 388.440002 | G176: 1733800 | H176: 383.401825 | I176: 0.9870297164 | J176: 1 | K176: 390.9 | L176: 391.1 | M176: 379.78 | N176: 383.4 | O176: 1733800
A177: 162 | B177: 2020-05-28 | C177: 401.459991 | D177: 404.26001 | E177: 398.160004 | F177: 398.440002 | G177: 1487900 | H177: 390.90329 | I177: 0.9810844494 | J177: 1 | K177: 393.87 | L177: 396.61 | M177: 390.63 | N177: 390.9 | O177: 1487900
A178: 163 | B178: 2020-05-27 | C178: 376.779999 | D178: 397.119995 | E178: 376.579987 | F178: 397.119995 | G178: 1986900 | H178: 389.608246 | I178: 0.9810844352 | J178: 1 | K178: 369.65 | L178: 389.61 | M178: 369.46 | N178: 389.61 | O178: 1986900
A179: 164 | B179: 2020-05-26 | C179: 376.950012 | D179: 376.950012 | E179: 370.570007 | F179: 372.200012 | G179: 1596100 | H179: 365.159637 | I179: 0.981084431 | J179: 1 | K179: 369.82 | L179: 369.82 | M179: 363.56 | N179: 365.16 | O179: 1596100
A180: 165 | B180: 2020-05-22 | C180: 369.859985 | D180: 370.160004 | E180: 365.619995 | F180: 369 | G180: 752600 | H180: 362.020142 | I180: 0.9810843957 | J180: 1 | K180: 362.86 | L180: 363.16 | M180: 358.7 | N180: 362.02 | O180: 752600
A181: 166 | B181: 2020-05-21 | C181: 362.690002 | D181: 370.029999 | E181: 362.600006 | F181: 368.820007 | G181: 1179100 | H181: 361.843536 | I181: 0.9810843477 | J181: 1 | K181: 355.83 | L181: 363.03 | M181: 355.74 | N181: 361.84 | O181: 1179100
A182: 167 | B182: 2020-05-20 | C182: 372.440002 | D182: 374 | E182: 362.109985 | F182: 362.51001 | G182: 1880500 | H182: 355.652924 | I182: 0.981084423 | J182: 1 | K182: 365.4 | L182: 366.93 | M182: 355.26 | N182: 355.65 | O182: 1880500
A183: 168 | B183: 2020-05-19 | C183: 378.070007 | D183: 382.459991 | E183: 371.23999 | F183: 371.480011 | G183: 1087100 | H183: 364.453217 | I183: 0.9810843281 | J183: 1 | K183: 370.92 | L183: 375.23 | M183: 364.22 | N183: 364.45 | O183: 1087100
A184: 169 | B184: 2020-05-18 | C184: 371.209991 | D184: 380.48999 | E184: 366.019989 | F184: 377.540009 | G184: 1879700 | H184: 370.398621 | I184: 0.9810844206 | J184: 1 | K184: 364.19 | L184: 373.29 | M184: 359.1 | N184: 370.4 | O184: 1879700
A185: 170 | B185: 2020-05-15 | C185: 352.529999 | D185: 361.51001 | E185: 352.320007 | F185: 360.399994 | G185: 1854500 | H185: 353.582794 | I185: 0.9810843504 | J185: 1 | K185: 345.86 | L185: 354.67 | M185: 345.66 | N185: 353.58 | O185: 1854500
A186: 171 | B186: 2020-05-14 | C186: 360.98999 | D186: 361.540009 | E186: 352.26001 | F186: 356.279999 | G186: 1776400 | H186: 349.540771 | I186: 0.9810844616 | J186: 1 | K186: 354.16 | L186: 354.7 | M186: 345.6 | N186: 349.54 | O186: 1776400
A187: 172 | B187: 2020-05-13 | C187: 371.279999 | D187: 372.459991 | E187: 362.01001 | F187: 364.179993 | G187: 1287400 | H187: 357.29129 | I187: 0.9810843453 | J187: 1 | K187: 364.26 | L187: 365.41 | M187: 355.16 | N187: 357.29 | O187: 1287400
A188: 173 | B188: 2020-05-12 | C188: 378 | D188: 382.440002 | E188: 371.029999 | F188: 371.109985 | G188: 1447700 | H188: 364.090179 | I188: 0.9810842977 | J188: 1 | K188: 370.85 | L188: 375.21 | M188: 364.01 | N188: 364.09 | O188: 1447700
A189: 174 | B189: 2020-05-11 | C189: 375 | D189: 379.5 | E189: 374.140015 | F189: 376.559998 | G189: 1287800 | H189: 369.437134 | I189: 0.9810843849 | J189: 1 | K189: 367.91 | L189: 372.32 | M189: 367.06 | N189: 369.44 | O189: 1287800
A190: 175 | B190: 2020-05-08 | C190: 378.029999 | D190: 381.130005 | E190: 376.25 | F190: 378.399994 | G190: 1130400 | H190: 371.24234 | I190: 0.9810844236 | J190: 1 | K190: 370.88 | L190: 373.92 | M190: 369.13 | N190: 371.24 | O190: 1130400
A191: 176 | B191: 2020-05-07 | C191: 383.01001 | D191: 384.130005 | E191: 376 | F191: 376.540009 | G191: 1462000 | H191: 369.417542 | I191: 0.981084435 | J191: 1 | K191: 375.77 | L191: 376.86 | M191: 368.89 | N191: 369.42 | O191: 1462000
A192: 177 | B192: 2020-05-06 | C192: 390.890015 | D192: 390.890015 | E192: 378.410004 | F192: 378.579987 | G192: 1089800 | H192: 371.418915 | I192: 0.9810843884 | J192: 1 | K192: 383.5 | L192: 383.5 | M192: 371.25 | N192: 371.42 | O192: 1089800
A193: 178 | B193: 2020-05-05 | C193: 382.410004 | D193: 392.779999 | E193: 381.589996 | F193: 390.299988 | G193: 1270900 | H193: 382.917236 | I193: 0.9810844165 | J193: 1 | K193: 375.18 | L193: 385.35 | M193: 374.37 | N193: 382.92 | O193: 1270900
A194: 179 | B194: 2020-05-04 | C194: 382.019989 | D194: 382.970001 | E194: 374.130005 | F194: 380.160004 | G194: 1077900 | H194: 372.969055 | I194: 0.9810844147 | J194: 1 | K194: 374.79 | L194: 375.73 | M194: 367.05 | N194: 372.97 | O194: 1077900
A195: 180 | B195: 2020-05-01 | C195: 385.640015 | D195: 387.410004 | E195: 381.089996 | F195: 383.470001 | G195: 911600 | H195: 376.216431 | I195: 0.9810843874 | J195: 1 | K195: 378.35 | L195: 380.08 | M195: 373.88 | N195: 376.22 | O195: 911600
A196: 181 | B196: 2020-04-30 | C196: 383.100006 | D196: 391.440002 | E196: 380.440002 | F196: 389.059998 | G196: 1343300 | H196: 381.700684 | I196: 0.9810843725 | J196: 1 | K196: 375.85 | L196: 384.04 | M196: 373.24 | N196: 381.7 | O196: 1343300
A197: 182 | B197: 2020-04-29 | C197: 388.160004 | D197: 393.51001 | E197: 379.5 | F197: 387.910004 | G197: 1500400 | H197: 380.572479 | I197: 0.9810844657 | J197: 1 | K197: 380.82 | L197: 386.07 | M197: 372.32 | N197: 380.57 | O197: 1500400
A198: 183 | B198: 2020-04-28 | C198: 381.859985 | D198: 387.829987 | E198: 380.420013 | F198: 384.730011 | G198: 1313900 | H198: 377.452606 | I198: 0.9810843844 | J198: 1 | K198: 374.64 | L198: 380.49 | M198: 373.22 | N198: 377.45 | O198: 1313900
A199: 184 | B199: 2020-04-27 | C199: 383.910004 | D199: 384.040009 | E199: 378 | F199: 378.570007 | G199: 1457400 | H199: 371.409149 | I199: 0.981084455 | J199: 1 | K199: 376.65 | L199: 376.78 | M199: 370.85 | N199: 371.41 | O199: 1457400
A200: 185 | B200: 2020-04-24 | C200: 378.720001 | D200: 384.059998 | E200: 372.980011 | F200: 381.769989 | G200: 1029200 | H200: 374.548584 | I200: 0.9810844089 | J200: 1 | K200: 371.56 | L200: 376.8 | M200: 365.92 | N200: 374.55 | O200: 1029200
... 4300 more rows

Sheet CalculationsAndCharts
A1: RateOfChangeWithBands.xlsm
A2: =InputPriceData!A1 -> Lockheed Martin Corporation (LMT) -NYSE (Daily)
A4: User Charting Controls | E4: Click to Shift Chart One Bar:
A5: Data Control | C5: TRUE
A6: =InputPriceData!$B$10 -> 11107 | B6: Available Input Data Rows | E6: Earliest: | F6: =OFFSET(InputPriceData!B15,CalculationsAndCharts!A6,0,1,1) -> 1977-01-03 | R6: Filter Control
A7: =MAX(A33:A56896) -> 1250 | B7: Available Calculation Rows | E7: Latest: | F7: =OFFSET(InputPriceData!B15,1,0,1,1) -> 2021-01-15
A8: =MIN(AvailableInputRows-DataPanRows,A7) -> 1250 | B8: Logically Available for Calc / Plot | E8: $ Change: | F8: =G33-G34 -> -0.17 | R8: FALSE
A10: Historical Price Windowing Specifications | F10: Click to Shift
A11: 0 | B11: Input Data Offset (Pan) | F11: Points to Plot
A12: 600 | B12: Data Points to Plot (Zoom)
B13: First: | C13: =OFFSET(B32,A12,0,1,1) -> 2018-08-29
B14: ="Last: " & IF(OFFSET(InputPriceData!P15,1+A11,0,1,1)="","",TEXT(OFFSET(InputPriceData!P15,1+A11,0,1,1),"H:MM AM/PM")) -> Last: | C14: =B33 -> 2021-01-15
A15: User Controls | D15: Calulated "semi Constants" | R15: Clutter Control
A16: ="ROCWB(" & A17&","&A18&","&A19&")" -> ROCWB(20,3,20) | D16: Alpha | E16: Alpha - 1
A17: 20 | B17: Period 1 | R17: FALSE
A18: 3 | B18: Period 2 (EMA of ROC) | D18: =2/(A18+1) -> 0.5 | E18: =1-D18 -> 0.5
A19: 20 | B19: Period 3
A21: Filtering
A22: 200 | B22: EMA of Close | D22: =2/(A22+1) -> 0.009950248756 | E22: =1-D22 -> 0.9900497512
A25: Help! I would like to plot data
A26: From | B26: 2004-12-07 | C26: =OFFSET(InputPriceData!$A$15,MATCH(B26,OFFSET(InputPriceData!B15,1,0,InputPriceData!$B$10,1),0),0,1,1)-C27 -> 188 | E26: 595
A27: To | B27: 2005-09-02 | C27: =OFFSET(InputPriceData!$A$15,MATCH(B27,OFFSET(InputPriceData!$B$15,1,0,InputPriceData!$B$10,1),0),0,1,1)-1 -> 3868 | E27: =$A$12-$E$26+1 -> 6
H28: Value @ Cursor => | I28: =OFFSET(A32,$E$27,0,1,1)&"(RR)" -> 6(RR) | J28: =OFFSET($B$32,E27,0,1,1) -> 2021-01-08 | K28: =TEXT(OFFSET(D32,$E$27,0,1,1),"#,##0.00")&"(o)" -> 341.88(o) | L28: =TEXT(OFFSET(E32,$E$27,0,1,1),"#,##0.00")&"(h)" -> 343.47(h) | M28: =TEXT(OFFSET(F32,$E$27,0,1,1),"#,##0.00")&"(l)" -> 335.01(l) | N28: =TEXT(OFFSET(G32,$E$27,0,1,1),"#,##0.00")&"(c)" -> 336.10(c) | O28: =TEXT(OFFSET(C32,$E$27,0,1,1),"#,##0.00,,""M""")&"(v)" -> 3.23M(v)
E29: Cursor ==> | AY29: Work Area For Chart Cursors
G30: Calculation Rel Row Limits ==> | H30: =$A$8-$A$17 -> 1230 | I30: =$A$8-$A$17-$A$19+1 -> 1211 | L30: =$A$8-$A$17-$A$18+1 -> 1228 | M30: =$A$8-$A$22+1 -> 1051 | O30: =$A$8-$A$22+1-1 -> 1050
A31: Rel Row | H31: Rate of Change | I31: Average of Squares | J31: Plus | K31: Minus | L31: ="EMA("&A18&") of" -> EMA(3) of | M31: ="EMA("&A22&") of Close" -> EMA(200) of Close | N31: ="Close above EMA("&A22&")" -> Close above EMA(200) | O31: ROC up cross thru Minus band | P31: ROC down cross thru Plus band | Q31: Consider Participating in | S31: Consider Long | T31: Consider Short | U31: Consider Long | W31: Consider Short | AW31: Used To Color Vol Bars
B32: Date | C32: Volume | D32: Open | E32: High | F32: Low | G32: Close | J32: ROC Deviation Bands | L32: ROC | Q32: Up Trend | R32: Down Trend | U32: RL Above Zero | V32: RL Below Zero | W32: RS Above Zero | X32: RS Below Zero | AD32: STDEV.P | AE32: STDEV.S | AF32: STDEVA | AG32: STDEV.PA | AW32: Up Vol | AX32: Dn Vol | AY32: Volume Cursor | AZ32: =MAX(OFFSET(C33,0,0,A12,1)) -> 4516500 | BA32: OBVM Cursor | BC32: Price Chart Cursor | BE32: ComparePriceChart Cursor | BG32: Price Phasor Cursor | BI32: DMI Cursor | BK32: SMI Cursor
A33: 1 | B33: =IF($A33>$A$8,"",OFFSET(InputPriceData!$B$15,$A33+$A$11,0,1,1)) -> 2021-01-15 | C33: =IF($A33>$A$8,"",OFFSET(InputPriceData!$G$15,CalculationsAndCharts!$A33+$A$11,IF($C$5,8,0),1,1)) -> 1850200 | D33: =IF(A33>$A$8,"",OFFSET(InputPriceData!$C$15,CalculationsAndCharts!$A33+$A$11,IF($C$5,8,0),1,1)) -> 347.09 | E33: =IF(A33>$A$8,"",OFFSET(InputPriceData!$D$15,CalculationsAndCharts!$A33+$A$11,IF($C$5,8,0),1,1)) -> 350.5 | F33: =IF(A33>$A$8,"",OFFSET(InputPriceData!$E$15,CalculationsAndCharts!$A33+$A$11,IF($C$5,8,0),1,1)) -> 344.28 | G33: =IF(A33>$A$8,"",OFFSET(InputPriceData!$F$15,CalculationsAndCharts!$A33+$A$11,IF($C$5,8,0),1,1)) -> 347.27 | H33: =IF(A33<=$H$30,(G33-OFFSET(G33,$A$17,0,1,1))/OFFSET(G33,$A$17,0,1,1)*100,NA()) -> -2.058831824 | I33: =IF(A33<=$I$30,SUMSQ(OFFSET(H33,0,0,$A$19,1))/$A$19,NA()) -> 22.21486044 | J33: =IF(A33<=$I$30,SQRT(I33),NA()) -> 4.713264308 | K33: =-J33 -> -4.713264308 | L33: =IF(A33<$L$30,$D$18*H33+$E$18*L34,IF(A33=$L$30,AVERAGE(OFFSET(H33,0,0,$A$18,1)),NA())) -> -2.839358729 | M33: =IF(A33<$M$30,$D$22*G33+$E$22*M34,IF(A33=$M$30,AVERAGE(OFFSET(G33,0,0,$A$22,1)),NA())) -> 366.7189515 | N33: =IF(A33<=$M$30,G33>=M33,NA()) -> FALSE | O33: =IF($A33<=$O$30,AND($L34<$K34,$L33>$K33),NA()) -> FALSE | P33: =IF($A33<=$O$30,AND($L34>$J34,$L33<$J33),NA()) -> FALSE | Q33: =IF($A33<=$O$30,AND(OR(NOT($R$8),N33),O33),NA()) -> FALSE | R33: =IF($A33<=$O$30,AND(OR(NOT($R$8),NOT(N33)),P33),NA()) -> FALSE | S33: =IF(AND($A33<=$O$30,Q33,$R$17),$BD$34,NA()) ->  | T33: =IF(AND($A33<=$O$30,R33,$R$17),$BD$34,NA()) ->  | U33: =IF(AND($A33<=$O$30,Q33,$R$17),$BJ$34,NA()) ->  | V33: =IF(AND($A33<=$O$30,Q33,$R$17),$BJ$33,NA()) ->  | W33: =IF(AND($A33<=$O$30,R33,$R$17),$BJ$34,NA()) ->  | X33: =IF(AND($A33<=$O$30,R33,$R$17),$BJ$33,NA()) ->  | AD33: =_xlfn.STDEV.P(OFFSET(H33,0,0,$A$19,1)) -> 1.420161409 | AE33: =_xlfn.STDEV.S(OFFSET(H33,0,0,$A$19,1)) -> 1.457054862 | AF33: =STDEVA(OFFSET(H33,0,0,$A$19,1)) -> 1.457054862 | AG33: =STDEVPA(OFFSET(H33,0,0,$A$19,1)) -> 1.420161409 | AW33: =IF(G33>=D33,C33,NA()) -> 1850200 | AX33: =IF(G33<D33,C33,NA()) ->  | AY33: =$E$27 -> 6 | AZ33: 0 | BA33: =$E$27 -> 6 | BB33: 62500000 | BC33: =$E$27 -> 6 | BD33: 223.49925 | BE33: =$E$27 -> 6 | BF33: 188.877 | BG33: =$E$27 -> 6 | BH33: =IF(#REF!=1,-180,NA()) ->  | BI33: =$E$27 -> 6 | BJ33: -32 | BK33: =$E$27 -> 6 | BL33: 0
A34: 2 | B34: =IF($A34>$A$8,"",OFFSET(InputPriceData!$B$15,$A34+$A$11,0,1,1)) -> 2021-01-14 | C34: =IF($A34>$A$8,"",OFFSET(InputPriceData!$G$15,CalculationsAndCharts!$A34+$A$11,IF($C$5,8,0),1,1)) -> 1965600 | D34: =IF(A34>$A$8,"",OFFSET(InputPriceData!$C$15,CalculationsAndCharts!$A34+$A$11,IF($C$5,8,0),1,1)) -> 348 | E34: =IF(A34>$A$8,"",OFFSET(InputPriceData!$D$15,CalculationsAndCharts!$A34+$A$11,IF($C$5,8,0),1,1)) -> 354.79 | F34: =IF(A34>$A$8,"",OFFSET(InputPriceData!$E$15,CalculationsAndCharts!$A34+$A$11,IF($C$5,8,0),1,1)) -> 346.85 | G34: =IF(A34>$A$8,"",OFFSET(InputPriceData!$F$15,CalculationsAndCharts!$A34+$A$11,IF($C$5,8,0),1,1)) -> 347.44 | H34: -2.833011718 | I34: 23.26036597 | J34: 4.822900161 | K34: -4.822900161 | L34: -3.619885634 | M34: =IF(A34<$M$30,$D$22*G34+$E$22*M35,IF(A34=$M$30,AVERAGE(OFFSET(G34,0,0,$A$22,1)),NA())) -> 366.9144183 | N34: =IF(A34<=$M$30,G34>=M34,NA()) -> FALSE | O34: =IF(A34<=$O$30,AND(L35<K35,L34>K34),NA()) -> FALSE | P34: =IF($A34<=$O$30,AND($L35>$J35,$L34<$J34),NA()) -> FALSE | Q34: =IF($A34<=$O$30,AND(OR(NOT($R$8),N34),O34),NA()) -> FALSE | R34: =IF($A34<=$O$30,AND(OR(NOT($R$8),NOT(N34)),P34),NA()) -> FALSE | S34: =IF(AND($A34<=$O$30,Q34,$R$17),$BD$34,NA()) ->  | T34: =IF(AND($A34<=$O$30,R34,$R$17),$BD$34,NA()) ->  | U34: =IF(AND($A34<=$O$30,Q34,$R$17),$BJ$34,NA()) ->  | V34: =IF(AND($A34<=$O$30,Q34,$R$17),$BJ$33,NA()) ->  | W34: =IF(AND($A34<=$O$30,R34,$R$17),$BJ$34,NA()) ->  | X34: =IF(AND($A34<=$O$30,R34,$R$17),$BJ$33,NA()) ->  | AD34: =_xlfn.STDEV.P(OFFSET(H34,0,0,$A$19,1)) -> 1.30843852 | AE34: =_xlfn.STDEV.S(OFFSET(H34,0,0,$A$19,1)) -> 1.342429596 | AF34: =STDEVA(OFFSET(H34,0,0,$A$19,1)) -> 1.342429596 | AG34: =STDEVPA(OFFSET(H34,0,0,$A$19,1)) -> 1.30843852 | AX34: 1965600 | AY34: =$E$27 -> 6 | AZ34: =CEILING(AZ32,10^INT(LOG10(AZ32))/8) -> 4625000 | BA34: =$E$27 -> 6 | BB34: 125000000 | BC34: =$E$27 -> 6 | BD34: 442.23625 | BE34: =$E$27 -> 6 | BF34: 230.34825 | BG34: =$E$27 -> 6 | BH34: =IF(#REF!=1,180,NA()) ->  | BI34: =$E$27 -> 6 | BJ34: 32 | BK34: =$E$27 -> 6 | BL34: 7
A35: 3 | B35: =IF(A35>$A$8,"",OFFSET(InputPriceData!B$15,$A35+$A$11,0,1,1)) -> 2021-01-13 | C35: =IF(A35>$A$8,"",OFFSET(InputPriceData!G$15,CalculationsAndCharts!$A35+$A$11,IF($C$5,8,0),1,1)) -> 1648100 | D35: =IF(A35>$A$8,"",OFFSET(InputPriceData!C$15,CalculationsAndCharts!$A35+$A$11,IF($C$5,8,0),1,1)) -> 341.41 | E35: =IF(A35>$A$8,"",OFFSET(InputPriceData!D$15,CalculationsAndCharts!$A35+$A$11,IF($C$5,8,0),1,1)) -> 347.2 | F35: =IF(A35>$A$8,"",OFFSET(InputPriceData!E$15,CalculationsAndCharts!$A35+$A$11,IF($C$5,8,0),1,1)) -> 339.17 | G35: =IF(A35>$A$8,"",OFFSET(InputPriceData!F$15,CalculationsAndCharts!$A35+$A$11,IF($C$5,8,0),1,1)) -> 345.49 | H35: -3.40267293 | I35: 23.88205488 | J35: 4.886926936 | K35: -4.886926936 | L35: -4.406759549 | M35: 367.1101411 | N35: FALSE | O35: TRUE | P35: FALSE | Q35: TRUE | R35: FALSE | AD35: 1.241752351 | AE35: 1.274011031 | AF35: 1.274011031 | AG35: 1.241752351 | AW35: 1648100
A36: 4 | B36: =IF(A36>$A$8,"",OFFSET(InputPriceData!B$15,$A36+$A$11,0,1,1)) -> 2021-01-12 | C36: =IF(A36>$A$8,"",OFFSET(InputPriceData!G$15,CalculationsAndCharts!$A36+$A$11,IF($C$5,8,0),1,1)) -> 3002200 | D36: =IF(A36>$A$8,"",OFFSET(InputPriceData!C$15,CalculationsAndCharts!$A36+$A$11,IF($C$5,8,0),1,1)) -> 336.52 | E36: =IF(A36>$A$8,"",OFFSET(InputPriceData!D$15,CalculationsAndCharts!$A36+$A$11,IF($C$5,8,0),1,1)) -> 343.37 | F36: =IF(A36>$A$8,"",OFFSET(InputPriceData!E$15,CalculationsAndCharts!$A36+$A$11,IF($C$5,8,0),1,1)) -> 335.63 | G36: =IF(A36>$A$8,"",OFFSET(InputPriceData!F$15,CalculationsAndCharts!$A36+$A$11,IF($C$5,8,0),1,1)) -> 341.85 | H36: -5.490586381 | I36: 24.09979917 | J36: 4.909154628 | K36: -4.909154628 | L36: -5.410846169 | M36: 367.327429 | N36: FALSE | O36: FALSE | P36: FALSE | Q36: FALSE | R36: FALSE | AD36: 1.216739914 | AE36: 1.248348812 | AF36: 1.248348812 | AG36: 1.216739914 | AW36: 3002200
A37: 5 | B37: =IF(A37>$A$8,"",OFFSET(InputPriceData!B$15,$A37+$A$11,0,1,1)) -> 2021-01-11 | C37: =IF(A37>$A$8,"",OFFSET(InputPriceData!G$15,CalculationsAndCharts!$A37+$A$11,IF($C$5,8,0),1,1)) -> 3204000 | D37: =IF(A37>$A$8,"",OFFSET(InputPriceData!C$15,CalculationsAndCharts!$A37+$A$11,IF($C$5,8,0),1,1)) -> 335 | E37: =IF(A37>$A$8,"",OFFSET(InputPriceData!D$15,CalculationsAndCharts!$A37+$A$11,IF($C$5,8,0),1,1)) -> 339 | F37: =IF(A37>$A$8,"",OFFSET(InputPriceData!E$15,CalculationsAndCharts!$A37+$A$11,IF($C$5,8,0),1,1)) -> 333.32 | G37: =IF(A37>$A$8,"",OFFSET(InputPriceData!F$15,CalculationsAndCharts!$A37+$A$11,IF($C$5,8,0),1,1)) -> 337.68 | H37: -4.983257829 | I37: 22.64156487 | J37: 4.75831534 | K37: -4.75831534 | L37: -5.331105956 | M37: 367.5834835 | N37: FALSE | O37: FALSE | P37: FALSE | Q37: FALSE | R37: FALSE | AD37: 1.453152546 | AE37: 1.490903054 | AF37: 1.490903054 | AG37: 1.453152546 | AW37: 3204000
A38: 6 | B38: =IF(A38>$A$8,"",OFFSET(InputPriceData!B$15,$A38+$A$11,0,1,1)) -> 2021-01-08 | C38: =IF(A38>$A$8,"",OFFSET(InputPriceData!G$15,CalculationsAndCharts!$A38+$A$11,IF($C$5,8,0),1,1)) -> 3226300 | D38: =IF(A38>$A$8,"",OFFSET(InputPriceData!C$15,CalculationsAndCharts!$A38+$A$11,IF($C$5,8,0),1,1)) -> 341.88 | E38: =IF(A38>$A$8,"",OFFSET(InputPriceData!D$15,CalculationsAndCharts!$A38+$A$11,IF($C$5,8,0),1,1)) -> 343.47 | F38: =IF(A38>$A$8,"",OFFSET(InputPriceData!E$15,CalculationsAndCharts!$A38+$A$11,IF($C$5,8,0),1,1)) -> 335.01 | G38: =IF(A38>$A$8,"",OFFSET(InputPriceData!F$15,CalculationsAndCharts!$A38+$A$11,IF($C$5,8,0),1,1)) -> 336.1 | H38: -6.98768507 | I38: 21.87718809 | J38: 4.677305645 | K38: -4.677305645 | L38: -5.678954082 | M38: 367.884021 | N38: FALSE | O38: FALSE | P38: FALSE | Q38: FALSE | R38: FALSE | AD38: 1.482008081 | AE38: 1.520508208 | AF38: 1.520508208 | AG38: 1.482008081 | AX38: 3226300
A39: 7 | B39: =IF(A39>$A$8,"",OFFSET(InputPriceData!B$15,$A39+$A$11,0,1,1)) -> 2021-01-07 | C39: =IF(A39>$A$8,"",OFFSET(InputPriceData!G$15,CalculationsAndCharts!$A39+$A$11,IF($C$5,8,0),1,1)) -> 2048900 | D39: =IF(A39>$A$8,"",OFFSET(InputPriceData!C$15,CalculationsAndCharts!$A39+$A$11,IF($C$5,8,0),1,1)) -> 344.36 | E39: =IF(A39>$A$8,"",OFFSET(InputPriceData!D$15,CalculationsAndCharts!$A39+$A$11,IF($C$5,8,0),1,1)) -> 347.85 | F39: =IF(A39>$A$8,"",OFFSET(InputPriceData!E$15,CalculationsAndCharts!$A39+$A$11,IF($C$5,8,0),1,1)) -> 341.34 | G39: =IF(A39>$A$8,"",OFFSET(InputPriceData!F$15,CalculationsAndCharts!$A39+$A$11,IF($C$5,8,0),1,1)) -> 342.55 | H39: -4.643264761 | I39: 19.63450121 | J39: 4.431083525 | K39: -4.431083525 | L39: -4.370223094 | M39: 368.2034584 | N39: FALSE | O39: FALSE | P39: FALSE | Q39: FALSE | R39: FALSE | AX39: 2048900
A40: 8 | B40: =IF(A40>$A$8,"",OFFSET(InputPriceData!B$15,$A40+$A$11,0,1,1)) -> 2021-01-06 | C40: =IF(A40>$A$8,"",OFFSET(InputPriceData!G$15,CalculationsAndCharts!$A40+$A$11,IF($C$5,8,0),1,1)) -> 1897500 | D40: =IF(A40>$A$8,"",OFFSET(InputPriceData!C$15,CalculationsAndCharts!$A40+$A$11,IF($C$5,8,0),1,1)) -> 343 | E40: =IF(A40>$A$8,"",OFFSET(InputPriceData!D$15,CalculationsAndCharts!$A40+$A$11,IF($C$5,8,0),1,1)) -> 351.92 | F40: =IF(A40>$A$8,"",OFFSET(InputPriceData!E$15,CalculationsAndCharts!$A40+$A$11,IF($C$5,8,0),1,1)) -> 342.78 | G40: =IF(A40>$A$8,"",OFFSET(InputPriceData!F$15,CalculationsAndCharts!$A40+$A$11,IF($C$5,8,0),1,1)) -> 348.03 | H40: -3.89362936 | I40: 18.57486419 | J40: 4.309856632 | K40: -4.309856632 | L40: -4.097181427 | M40: 368.4612821 | N40: FALSE | O40: TRUE | P40: FALSE | Q40: TRUE | R40: FALSE | AW40: 1897500
A41: 9 | B41: =IF(A41>$A$8,"",OFFSET(InputPriceData!B$15,$A41+$A$11,0,1,1)) -> 2021-01-05 | C41: =IF(A41>$A$8,"",OFFSET(InputPriceData!G$15,CalculationsAndCharts!$A41+$A$11,IF($C$5,8,0),1,1)) -> 1479100 | D41: =IF(A41>$A$8,"",OFFSET(InputPriceData!C$15,CalculationsAndCharts!$A41+$A$11,IF($C$5,8,0),1,1)) -> 344.64 | E41: =IF(A41>$A$8,"",OFFSET(InputPriceData!D$15,CalculationsAndCharts!$A41+$A$11,IF($C$5,8,0),1,1)) -> 351.19 | F41: =IF(A41>$A$8,"",OFFSET(InputPriceData!E$15,CalculationsAndCharts!$A41+$A$11,IF($C$5,8,0),1,1)) -> 343.3 | G41: =IF(A41>$A$8,"",OFFSET(InputPriceData!F$15,CalculationsAndCharts!$A41+$A$11,IF($C$5,8,0),1,1)) -> 348.79 | H41: -4.860751207 | I41: 17.86096531 | J41: 4.226223528 | K41: -4.226223528 | L41: -4.300733494 | M41: 368.6666217 | N41: FALSE | O41: FALSE | P41: FALSE | Q41: FALSE | R41: FALSE | AW41: 1479100
A42: 10 | B42: =IF(A42>$A$8,"",OFFSET(InputPriceData!B$15,$A42+$A$11,0,1,1)) -> 2021-01-04 | C42: =IF(A42>$A$8,"",OFFSET(InputPriceData!G$15,CalculationsAndCharts!$A42+$A$11,IF($C$5,8,0),1,1)) -> 1887200 | D42: =IF(A42>$A$8,"",OFFSET(InputPriceData!C$15,CalculationsAndCharts!$A42+$A$11,IF($C$5,8,0),1,1)) -> 354.98 | E42: =IF(A42>$A$8,"",OFFSET(InputPriceData!D$15,CalculationsAndCharts!$A42+$A$11,IF($C$5,8,0),1,1)) -> 354.98 | F42: =IF(A42>$A$8,"",OFFSET(InputPriceData!E$15,CalculationsAndCharts!$A42+$A$11,IF($C$5,8,0),1,1)) -> 341.07 | G42: =IF(A42>$A$8,"",OFFSET(InputPriceData!F$15,CalculationsAndCharts!$A42+$A$11,IF($C$5,8,0),1,1)) -> 344.64 | H42: -4.803469326 | I42: 16.75476709 | J42: 4.093258737 | K42: -4.093258737 | L42: -3.740715782 | M42: 368.8663867 | N42: FALSE | O42: FALSE | P42: FALSE | Q42: FALSE | R42: FALSE | AX42: 1887200
A43: 11 | B43: =IF(A43>$A$8,"",OFFSET(InputPriceData!B$15,$A43+$A$11,0,1,1)) -> 2020-12-31 | C43: =IF(A43>$A$8,"",OFFSET(InputPriceData!G$15,CalculationsAndCharts!$A43+$A$11,IF($C$5,8,0),1,1)) -> 1318500 | D43: =IF(A43>$A$8,"",OFFSET(InputPriceData!C$15,CalculationsAndCharts!$A43+$A$11,IF($C$5,8,0),1,1)) -> 353.82 | E43: =IF(A43>$A$8,"",OFFSET(InputPriceData!D$15,CalculationsAndCharts!$A43+$A$11,IF($C$5,8,0),1,1)) -> 356.03 | F43: =IF(A43>$A$8,"",OFFSET(InputPriceData!E$15,CalculationsAndCharts!$A43+$A$11,IF($C$5,8,0),1,1)) -> 352.23 | G43: =IF(A43>$A$8,"",OFFSET(InputPriceData!F$15,CalculationsAndCharts!$A43+$A$11,IF($C$5,8,0),1,1)) -> 354.98 | H43: -1.765552358 | I43: 15.80976495 | J43: 3.976149513 | K43: -3.976149513 | L43: -2.677962238 | M43: 369.109868 | N43: FALSE | O43: FALSE | P43: FALSE | Q43: FALSE | R43: FALSE | AW43: 1318500
A44: 12 | B44: =IF(A44>$A$8,"",OFFSET(InputPriceData!B$15,$A44+$A$11,0,1,1)) -> 2020-12-30 | C44: =IF(A44>$A$8,"",OFFSET(InputPriceData!G$15,CalculationsAndCharts!$A44+$A$11,IF($C$5,8,0),1,1)) -> 840800 | D44: =IF(A44>$A$8,"",OFFSET(InputPriceData!C$15,CalculationsAndCharts!$A44+$A$11,IF($C$5,8,0),1,1)) -> 353 | E44: =IF(A44>$A$8,"",OFFSET(InputPriceData!D$15,CalculationsAndCharts!$A44+$A$11,IF($C$5,8,0),1,1)) -> 356.61 | F44: =IF(A44>$A$8,"",OFFSET(InputPriceData!E$15,CalculationsAndCharts!$A44+$A$11,IF($C$5,8,0),1,1)) -> 353 | G44: =IF(A44>$A$8,"",OFFSET(InputPriceData!F$15,CalculationsAndCharts!$A44+$A$11,IF($C$5,8,0),1,1)) -> 354.16 | H44: -2.967204581 | I44: 15.6546493 | J44: 3.956595671 | K44: -3.956595671 | L44: -3.590372119 | M44: 369.2518767 | N44: FALSE | O44: TRUE | P44: FALSE | Q44: TRUE | R44: FALSE | AW44: 840800
A45: 13 | B45: =IF(A45>$A$8,"",OFFSET(InputPriceData!B$15,$A45+$A$11,0,1,1)) -> 2020-12-29 | C45: =IF(A45>$A$8,"",OFFSET(InputPriceData!G$15,CalculationsAndCharts!$A45+$A$11,IF($C$5,8,0),1,1)) -> 1055900 | D45: =IF(A45>$A$8,"",OFFSET(InputPriceData!C$15,CalculationsAndCharts!$A45+$A$11,IF($C$5,8,0),1,1)) -> 356 | E45: =IF(A45>$A$8,"",OFFSET(InputPriceData!D$15,CalculationsAndCharts!$A45+$A$11,IF($C$5,8,0),1,1)) -> 357.35 | F45: =IF(A45>$A$8,"",OFFSET(InputPriceData!E$15,CalculationsAndCharts!$A45+$A$11,IF($C$5,8,0),1,1)) -> 351.8 | G45: =IF(A45>$A$8,"",OFFSET(InputPriceData!F$15,CalculationsAndCharts!$A45+$A$11,IF($C$5,8,0),1,1)) -> 353.9 | H45: -3.04109589 | I45: 16.13540998 | J45: 4.016890586 | K45: -4.016890586 | L45: -4.213539656 | M45: 369.4035538 | N45: FALSE | O45: FALSE | P45: FALSE | Q45: FALSE | R45: FALSE | AX45: 1055900
A46: 14 | B46: =IF(A46>$A$8,"",OFFSET(InputPriceData!B$15,$A46+$A$11,0,1,1)) -> 2020-12-28 | C46: =IF(A46>$A$8,"",OFFSET(InputPriceData!G$15,CalculationsAndCharts!$A46+$A$11,IF($C$5,8,0),1,1)) -> 1023400 | D46: =IF(A46>$A$8,"",OFFSET(InputPriceData!C$15,CalculationsAndCharts!$A46+$A$11,IF($C$5,8,0),1,1)) -> 353.11 | E46: =IF(A46>$A$8,"",OFFSET(InputPriceData!D$15,CalculationsAndCharts!$A46+$A$11,IF($C$5,8,0),1,1)) -> 357.82 | F46: =IF(A46>$A$8,"",OFFSET(InputPriceData!E$15,CalculationsAndCharts!$A46+$A$11,IF($C$5,8,0),1,1)) -> 351.71 | G46: =IF(A46>$A$8,"",OFFSET(InputPriceData!F$15,CalculationsAndCharts!$A46+$A$11,IF($C$5,8,0),1,1)) -> 354.18 | H46: -4.72373164 | I46: 16.91080347 | J46: 4.112274732 | K46: -4.112274732 | L46: -5.385983422 | M46: 369.5593685 | N46: FALSE | O46: FALSE | P46: FALSE | Q46: FALSE | R46: FALSE | AW46: 1023400
A47: 15 | B47: =IF(A47>$A$8,"",OFFSET(InputPriceData!B$15,$A47+$A$11,0,1,1)) -> 2020-12-24 | C47: =IF(A47>$A$8,"",OFFSET(InputPriceData!G$15,CalculationsAndCharts!$A47+$A$11,IF($C$5,8,0),1,1)) -> 508800 | D47: =IF(A47>$A$8,"",OFFSET(InputPriceData!C$15,CalculationsAndCharts!$A47+$A$11,IF($C$5,8,0),1,1)) -> 352.83 | E47: =IF(A47>$A$8,"",OFFSET(InputPriceData!D$15,CalculationsAndCharts!$A47+$A$11,IF($C$5,8,0),1,1)) -> 354.06 | F47: =IF(A47>$A$8,"",OFFSET(InputPriceData!E$15,CalculationsAndCharts!$A47+$A$11,IF($C$5,8,0),1,1)) -> 350.4 | G47: =IF(A47>$A$8,"",OFFSET(InputPriceData!F$15,CalculationsAndCharts!$A47+$A$11,IF($C$5,8,0),1,1)) -> 351.97 | H47: -6.318703255 | I47: 17.72609913 | J47: 4.21023742 | K47: -4.21023742 | L47: -6.048235204 | M47: 369.713935 | N47: FALSE | O47: FALSE | P47: FALSE | Q47: FALSE | R47: FALSE | AX47: 508800
A48: 16 | B48: =IF(A48>$A$8,"",OFFSET(InputPriceData!B$15,$A48+$A$11,0,1,1)) -> 2020-12-23 | C48: =IF(A48>$A$8,"",OFFSET(InputPriceData!G$15,CalculationsAndCharts!$A48+$A$11,IF($C$5,8,0),1,1)) -> 1307500 | D48: =IF(A48>$A$8,"",OFFSET(InputPriceData!C$15,CalculationsAndCharts!$A48+$A$11,IF($C$5,8,0),1,1)) -> 349.95 | E48: =IF(A48>$A$8,"",OFFSET(InputPriceData!D$15,CalculationsAndCharts!$A48+$A$11,IF($C$5,8,0),1,1)) -> 355 | F48: =IF(A48>$A$8,"",OFFSET(InputPriceData!E$15,CalculationsAndCharts!$A48+$A$11,IF($C$5,8,0),1,1)) -> 349.4 | G48: =IF(A48>$A$8,"",OFFSET(InputPriceData!F$15,CalculationsAndCharts!$A48+$A$11,IF($C$5,8,0),1,1)) -> 351.6 | H48: -6.452042038 | I48: 18.79720219 | J48: 4.335574032 | K48: -4.335574032 | L48: -5.777767152 | M48: 369.892266 | N48: FALSE | O48: FALSE | P48: FALSE | Q48: FALSE | R48: FALSE | AW48: 1307500
A49: 17 | B49: =IF(A49>$A$8,"",OFFSET(InputPriceData!B$15,$A49+$A$11,0,1,1)) -> 2020-12-22 | C49: =IF(A49>$A$8,"",OFFSET(InputPriceData!G$15,CalculationsAndCharts!$A49+$A$11,IF($C$5,8,0),1,1)) -> 1820800 | D49: =IF(A49>$A$8,"",OFFSET(InputPriceData!C$15,CalculationsAndCharts!$A49+$A$11,IF($C$5,8,0),1,1)) -> 349.35 | E49: =IF(A49>$A$8,"",OFFSET(InputPriceData!D$15,CalculationsAndCharts!$A49+$A$11,IF($C$5,8,0),1,1)) -> 350.62 | F49: =IF(A49>$A$8,"",OFFSET(InputPriceData!E$15,CalculationsAndCharts!$A49+$A$11,IF($C$5,8,0),1,1)) -> 347.39 | G49: =IF(A49>$A$8,"",OFFSET(InputPriceData!F$15,CalculationsAndCharts!$A49+$A$11,IF($C$5,8,0),1,1)) -> 347.92 | H49: -5.525837022 | I49: 17.69651098 | J49: 4.206722118 | K49: -4.206722118 | L49: -5.103492267 | M49: 370.0761079 | N49: FALSE | O49: FALSE | P49: FALSE | Q49: FALSE | R49: FALSE | AX49: 1820800
A50: 18 | B50: =IF(A50>$A$8,"",OFFSET(InputPriceData!B$15,$A50+$A$11,0,1,1)) -> 2020-12-21 | C50: =IF(A50>$A$8,"",OFFSET(InputPriceData!G$15,CalculationsAndCharts!$A50+$A$11,IF($C$5,8,0),1,1)) -> 2128700 | D50: =IF(A50>$A$8,"",OFFSET(InputPriceData!C$15,CalculationsAndCharts!$A50+$A$11,IF($C$5,8,0),1,1)) -> 353.16 | E50: =IF(A50>$A$8,"",OFFSET(InputPriceData!D$15,CalculationsAndCharts!$A50+$A$11,IF($C$5,8,0),1,1)) -> 353.94 | F50: =IF(A50>$A$8,"",OFFSET(InputPriceData!E$15,CalculationsAndCharts!$A50+$A$11,IF($C$5,8,0),1,1)) -> 346.6 | G50: =IF(A50>$A$8,"",OFFSET(InputPriceData!F$15,CalculationsAndCharts!$A50+$A$11,IF($C$5,8,0),1,1)) -> 349.35 | H50: -4.408143162 | I50: 16.18917169 | J50: 4.023576977 | K50: -4.023576977 | L50: -4.681147512 | M50: 370.2987823 | N50: FALSE | O50: FALSE | P50: FALSE | Q50: FALSE | R50: FALSE | AX50: 2128700
A51: 19 | B51: =IF(A51>$A$8,"",OFFSET(InputPriceData!B$15,$A51+$A$11,0,1,1)) -> 2020-12-18 | C51: =IF(A51>$A$8,"",OFFSET(InputPriceData!G$15,CalculationsAndCharts!$A51+$A$11,IF($C$5,8,0),1,1)) -> 4342000 | D51: =IF(A51>$A$8,"",OFFSET(InputPriceData!C$15,CalculationsAndCharts!$A51+$A$11,IF($C$5,8,0),1,1)) -> 352.04 | E51: =IF(A51>$A$8,"",OFFSET(InputPriceData!D$15,CalculationsAndCharts!$A51+$A$11,IF($C$5,8,0),1,1)) -> 356.79 | F51: =IF(A51>$A$8,"",OFFSET(InputPriceData!E$15,CalculationsAndCharts!$A51+$A$11,IF($C$5,8,0),1,1)) -> 350.01 | G51: =IF(A51>$A$8,"",OFFSET(InputPriceData!F$15,CalculationsAndCharts!$A51+$A$11,IF($C$5,8,0),1,1)) -> 356.03 | H51: -4.766617627 | I51: 15.35983459 | J51: 3.919162486 | K51: -3.919162486 | L51: -4.954151862 | M51: 370.5093228 | N51: FALSE | O51: FALSE | P51: FALSE | Q51: FALSE | R51: FALSE | AW51: 4342000
A52: 20 | B52: =IF(A52>$A$8,"",OFFSET(InputPriceData!B$15,$A52+$A$11,0,1,1)) -> 2020-12-17 | C52: =IF(A52>$A$8,"",OFFSET(InputPriceData!G$15,CalculationsAndCharts!$A52+$A$11,IF($C$5,8,0),1,1)) -> 1658100 | D52: =IF(A52>$A$8,"",OFFSET(InputPriceData!C$15,CalculationsAndCharts!$A52+$A$11,IF($C$5,8,0),1,1)) -> 355.93 | E52: =IF(A52>$A$8,"",OFFSET(InputPriceData!D$15,CalculationsAndCharts!$A52+$A$11,IF($C$5,8,0),1,1)) -> 357.66 | F52: =IF(A52>$A$8,"",OFFSET(InputPriceData!E$15,CalculationsAndCharts!$A52+$A$11,IF($C$5,8,0),1,1)) -> 351.88 | G52: =IF(A52>$A$8,"",OFFSET(InputPriceData!F$15,CalculationsAndCharts!$A52+$A$11,IF($C$5,8,0),1,1)) -> 352.6 | H52: -5.958286659 | I52: 14.43051723 | J52: 3.798752063 | K52: -3.798752063 | L52: -5.141686097 | M52: 370.6548437 | N52: FALSE | O52: FALSE | P52: FALSE | Q52: FALSE | R52: FALSE | AX52: 1658100
A53: 21 | B53: =IF(A53>$A$8,"",OFFSET(InputPriceData!B$15,$A53+$A$11,0,1,1)) -> 2020-12-16 | C53: =IF(A53>$A$8,"",OFFSET(InputPriceData!G$15,CalculationsAndCharts!$A53+$A$11,IF($C$5,8,0),1,1)) -> 1986200 | D53: =IF(A53>$A$8,"",OFFSET(InputPriceData!C$15,CalculationsAndCharts!$A53+$A$11,IF($C$5,8,0),1,1)) -> 357.25 | E53: =IF(A53>$A$8,"",OFFSET(InputPriceData!D$15,CalculationsAndCharts!$A53+$A$11,IF($C$5,8,0),1,1)) -> 357.9 | F53: =IF(A53>$A$8,"",OFFSET(InputPriceData!E$15,CalculationsAndCharts!$A53+$A$11,IF($C$5,8,0),1,1)) -> 353.65 | G53: =IF(A53>$A$8,"",OFFSET(InputPriceData!F$15,CalculationsAndCharts!$A53+$A$11,IF($C$5,8,0),1,1)) -> 354.57 | H53: -5.014867797 | I53: 13.058399 | J53: 3.613640684 | K53: -3.613640684 | L53: -4.325085535 | M53: 370.8362994 | N53: FALSE | O53: FALSE | P53: FALSE | Q53: FALSE | R53: FALSE | AX53: 1986200
A54: 22 | B54: =IF(A54>$A$8,"",OFFSET(InputPriceData!B$15,$A54+$A$11,0,1,1)) -> 2020-12-15 | C54: =IF(A54>$A$8,"",OFFSET(InputPriceData!G$15,CalculationsAndCharts!$A54+$A$11,IF($C$5,8,0),1,1)) -> 1521000 | D54: =IF(A54>$A$8,"",OFFSET(InputPriceData!C$15,CalculationsAndCharts!$A54+$A$11,IF($C$5,8,0),1,1)) -> 358.73 | E54: =IF(A54>$A$8,"",OFFSET(InputPriceData!D$15,CalculationsAndCharts!$A54+$A$11,IF($C$5,8,0),1,1)) -> 359.89 | F54: =IF(A54>$A$8,"",OFFSET(InputPriceData!E$15,CalculationsAndCharts!$A54+$A$11,IF($C$5,8,0),1,1)) -> 355.45 | G54: =IF(A54>$A$8,"",OFFSET(InputPriceData!F$15,CalculationsAndCharts!$A54+$A$11,IF($C$5,8,0),1,1)) -> 357.57 | H54: -4.523243705 | I54: 11.85024772 | J54: 3.442418876 | K54: -3.442418876 | L54: -3.635303272 | M54: 370.9997798 | N54: FALSE | O54: FALSE | P54: FALSE | Q54: FALSE | R54: FALSE | AX54: 1521000
A55: 23 | B55: =IF(A55>$A$8,"",OFFSET(InputPriceData!B$15,$A55+$A$11,0,1,1)) -> 2020-12-14 | C55: =IF(A55>$A$8,"",OFFSET(InputPriceData!G$15,CalculationsAndCharts!$A55+$A$11,IF($C$5,8,0),1,1)) -> 1370500 | D55: =IF(A55>$A$8,"",OFFSET(InputPriceData!C$15,CalculationsAndCharts!$A55+$A$11,IF($C$5,8,0),1,1)) -> 363.5 | E55: =IF(A55>$A$8,"",OFFSET(InputPriceData!D$15,CalculationsAndCharts!$A55+$A$11,IF($C$5,8,0),1,1)) -> 365.62 | F55: =IF(A55>$A$8,"",OFFSET(InputPriceData!E$15,CalculationsAndCharts!$A55+$A$11,IF($C$5,8,0),1,1)) -> 357.44 | G55: =IF(A55>$A$8,"",OFFSET(InputPriceData!F$15,CalculationsAndCharts!$A55+$A$11,IF($C$5,8,0),1,1)) -> 357.66 | H55: -3.991624836 | I55: 10.97410471 | J55: 3.312718628 | K55: -3.312718628 | L55: -2.747362839 | M55: 371.1347524 | N55: FALSE | O55: FALSE | P55: FALSE | Q55: FALSE | R55: FALSE | AX55: 1370500
A56: 24 | B56: =IF(A56>$A$8,"",OFFSET(InputPriceData!B$15,$A56+$A$11,0,1,1)) -> 2020-12-11 | C56: =IF(A56>$A$8,"",OFFSET(InputPriceData!G$15,CalculationsAndCharts!$A56+$A$11,IF($C$5,8,0),1,1)) -> 1409800 | D56: =IF(A56>$A$8,"",OFFSET(InputPriceData!C$15,CalculationsAndCharts!$A56+$A$11,IF($C$5,8,0),1,1)) -> 354.55 | E56: =IF(A56>$A$8,"",OFFSET(InputPriceData!D$15,CalculationsAndCharts!$A56+$A$11,IF($C$5,8,0),1,1)) -> 363.12 | F56: =IF(A56>$A$8,"",OFFSET(InputPriceData!E$15,CalculationsAndCharts!$A56+$A$11,IF($C$5,8,0),1,1)) -> 354.19 | G56: =IF(A56>$A$8,"",OFFSET(InputPriceData!F$15,CalculationsAndCharts!$A56+$A$11,IF($C$5,8,0),1,1)) -> 361.71 | H56: -0.9908849533 | I56: 10.61006738 | J56: 3.257309837 | K56: -3.257309837 | L56: -1.503100842 | M56: 371.2701771 | N56: FALSE | O56: FALSE | P56: FALSE | Q56: FALSE | R56: FALSE | AW56: 1409800
A57: 25 | B57: =IF(A57>$A$8,"",OFFSET(InputPriceData!B$15,$A57+$A$11,0,1,1)) -> 2020-12-10 | C57: =IF(A57>$A$8,"",OFFSET(InputPriceData!G$15,CalculationsAndCharts!$A57+$A$11,IF($C$5,8,0),1,1)) -> 1378700 | D57: =IF(A57>$A$8,"",OFFSET(InputPriceData!C$15,CalculationsAndCharts!$A57+$A$11,IF($C$5,8,0),1,1)) -> 359.52 | E57: =IF(A57>$A$8,"",OFFSET(InputPriceData!D$15,CalculationsAndCharts!$A57+$A$11,IF($C$5,8,0),1,1)) -> 364.22 | F57: =IF(A57>$A$8,"",OFFSET(InputPriceData!E$15,CalculationsAndCharts!$A57+$A$11,IF($C$5,8,0),1,1)) -> 355.2 | G57: =IF(A57>$A$8,"",OFFSET(InputPriceData!F$15,CalculationsAndCharts!$A57+$A$11,IF($C$5,8,0),1,1)) -> 355.39 | H57: -3.089550611 | I57: 11.67632704 | J57: 3.417064097 | K57: -3.417064097 | L57: -2.015316731 | M57: 371.3662593 | N57: FALSE | O57: FALSE | P57: FALSE | Q57: FALSE | R57: FALSE | S57: =IF(AND($A57<=$O$30,Q57,$R$17),$BD$34,NA()) ->  | T57: =IF(AND($A57<=$O$30,R57,$R$17),$BD$34,NA()) ->  | AX57: 1378700
A58: 26 | B58: =IF(A58>$A$8,"",OFFSET(InputPriceData!B$15,$A58+$A$11,0,1,1)) -> 2020-12-09 | C58: =IF(A58>$A$8,"",OFFSET(InputPriceData!G$15,CalculationsAndCharts!$A58+$A$11,IF($C$5,8,0),1,1)) -> 1522200 | D58: =IF(A58>$A$8,"",OFFSET(InputPriceData!C$15,CalculationsAndCharts!$A58+$A$11,IF($C$5,8,0),1,1)) -> 359.85 | E58: =IF(A58>$A$8,"",OFFSET(InputPriceData!D$15,CalculationsAndCharts!$A58+$A$11,IF($C$5,8,0),1,1)) -> 362.59 | F58: =IF(A58>$A$8,"",OFFSET(InputPriceData!E$15,CalculationsAndCharts!$A58+$A$11,IF($C$5,8,0),1,1)) -> 356.95 | G58: =IF(A58>$A$8,"",OFFSET(InputPriceData!F$15,CalculationsAndCharts!$A58+$A$11,IF($C$5,8,0),1,1)) -> 361.35 | H58: -1.993490643 | I58: 12.70440397 | J58: 3.564323775 | K58: -3.564323775 | L58: -0.9410828519 | M58: 371.5268247 | N58: FALSE | O58: FALSE | P58: FALSE | Q58: FALSE | R58: FALSE | AW58: 1522200
A59: 27 | B59: =IF(A59>$A$8,"",OFFSET(InputPriceData!B$15,$A59+$A$11,0,1,1)) -> 2020-12-08 | C59: =IF(A59>$A$8,"",OFFSET(InputPriceData!G$15,CalculationsAndCharts!$A59+$A$11,IF($C$5,8,0),1,1)) -> 1783600 | D59: =IF(A59>$A$8,"",OFFSET(InputPriceData!C$15,CalculationsAndCharts!$A59+$A$11,IF($C$5,8,0),1,1)) -> 360.98 | E59: =IF(A59>$A$8,"",OFFSET(InputPriceData!D$15,CalculationsAndCharts!$A59+$A$11,IF($C$5,8,0),1,1)) -> 363.17 | F59: =IF(A59>$A$8,"",OFFSET(InputPriceData!E$15,CalculationsAndCharts!$A59+$A$11,IF($C$5,8,0),1,1)) -> 358.84 | G59: =IF(A59>$A$8,"",OFFSET(InputPriceData!F$15,CalculationsAndCharts!$A59+$A$11,IF($C$5,8,0),1,1)) -> 359.23 | H59: -0.6059432239 | I59: 13.53795936 | J59: 3.679396602 | K59: -3.679396602 | L59: 0.111324939 | M59: 371.6291043 | N59: FALSE | O59: FALSE | P59: FALSE | Q59: FALSE | R59: FALSE | AX59: 1783600
A60: 28 | B60: =IF(A60>$A$8,"",OFFSET(InputPriceData!B$15,$A60+$A$11,0,1,1)) -> 2020-12-07 | C60: =IF(A60>$A$8,"",OFFSET(InputPriceData!G$15,CalculationsAndCharts!$A60+$A$11,IF($C$5,8,0),1,1)) -> 1390500 | D60: =IF(A60>$A$8,"",OFFSET(InputPriceData!C$15,CalculationsAndCharts!$A60+$A$11,IF($C$5,8,0),1,1)) -> 366.9 | E60: =IF(A60>$A$8,"",OFFSET(InputPriceData!D$15,CalculationsAndCharts!$A60+$A$11,IF($C$5,8,0),1,1)) -> 366.9 | F60: =IF(A60>$A$8,"",OFFSET(InputPriceData!E$15,CalculationsAndCharts!$A60+$A$11,IF($C$5,8,0),1,1)) -> 360.54 | G60: =IF(A60>$A$8,"",OFFSET(InputPriceData!F$15,CalculationsAndCharts!$A60+$A$11,IF($C$5,8,0),1,1)) -> 362.13 | H60: 0.9393466384 | I60: 15.58119834 | J60: 3.947302667 | K60: -3.947302667 | L60: 0.8285931019 | M60: 371.7537184 | N60: FALSE | O60: FALSE | P60: FALSE | Q60: FALSE | R60: FALSE | AX60: 1390500
A61: 29 | B61: =IF(A61>$A$8,"",OFFSET(InputPriceData!B$15,$A61+$A$11,0,1,1)) -> 2020-12-04 | C61: =IF(A61>$A$8,"",OFFSET(InputPriceData!G$15,CalculationsAndCharts!$A61+$A$11,IF($C$5,8,0),1,1)) -> 1222600 | D61: =IF(A61>$A$8,"",OFFSET(InputPriceData!C$15,CalculationsAndCharts!$A61+$A$11,IF($C$5,8,0),1,1)) -> 363.12 | E61: =IF(A61>$A$8,"",OFFSET(InputPriceData!D$15,CalculationsAndCharts!$A61+$A$11,IF($C$5,8,0),1,1)) -> 367.73 | F61: =IF(A61>$A$8,"",OFFSET(InputPriceData!E$15,CalculationsAndCharts!$A61+$A$11,IF($C$5,8,0),1,1)) -> 362.11 | G61: =IF(A61>$A$8,"",OFFSET(InputPriceData!F$15,CalculationsAndCharts!$A61+$A$11,IF($C$5,8,0),1,1)) -> 366.61 | H61: 1.225943618 | I61: 17.57873893 | J61: 4.192700672 | K61: -4.192700672 | L61: 0.7178395654 | M61: 371.8504392 | N61: FALSE | O61: FALSE | P61: FALSE | Q61: FALSE | R61: FALSE | AW61: 1222600
A62: 30 | B62: =IF(A62>$A$8,"",OFFSET(InputPriceData!B$15,$A62+$A$11,0,1,1)) -> 2020-12-03 | C62: =IF(A62>$A$8,"",OFFSET(InputPriceData!G$15,CalculationsAndCharts!$A62+$A$11,IF($C$5,8,0),1,1)) -> 1758400 | D62: =IF(A62>$A$8,"",OFFSET(InputPriceData!C$15,CalculationsAndCharts!$A62+$A$11,IF($C$5,8,0),1,1)) -> 362.12 | E62: =IF(A62>$A$8,"",OFFSET(InputPriceData!D$15,CalculationsAndCharts!$A62+$A$11,IF($C$5,8,0),1,1)) -> 369.5 | F62: =IF(A62>$A$8,"",OFFSET(InputPriceData!E$15,CalculationsAndCharts!$A62+$A$11,IF($C$5,8,0),1,1)) -> 360.96 | G62: =IF(A62>$A$8,"",OFFSET(InputPriceData!F$15,CalculationsAndCharts!$A62+$A$11,IF($C$5,8,0),1,1)) -> 362.03 | H62: -2.042859462 | I62: 19.39276763 | J62: 4.40372202 | K62: -4.40372202 | L62: 0.2097355131 | M62: 371.903107 | N62: FALSE | O62: FALSE | P62: FALSE | Q62: FALSE | R62: FALSE | AX62: 1758400
A63: 31 | B63: =IF(A63>$A$8,"",OFFSET(InputPriceData!B$15,$A63+$A$11,0,1,1)) -> 2020-12-02 | C63: =IF(A63>$A$8,"",OFFSET(InputPriceData!G$15,CalculationsAndCharts!$A63+$A$11,IF($C$5,8,0),1,1)) -> 2520000 | D63: =IF(A63>$A$8,"",OFFSET(InputPriceData!C$15,CalculationsAndCharts!$A63+$A$11,IF($C$5,8,0),1,1)) -> 364.99 | E63: =IF(A63>$A$8,"",OFFSET(InputPriceData!D$15,CalculationsAndCharts!$A63+$A$11,IF($C$5,8,0),1,1)) -> 365.99 | F63: =IF(A63>$A$8,"",OFFSET(InputPriceData!E$15,CalculationsAndCharts!$A63+$A$11,IF($C$5,8,0),1,1)) -> 360.01 | G63: =IF(A63>$A$8,"",OFFSET(InputPriceData!F$15,CalculationsAndCharts!$A63+$A$11,IF($C$5,8,0),1,1)) -> 361.36 | H63: 0.1219106727 | I63: 19.57995383 | J63: 4.424924161 | K63: -4.424924161 | L63: 2.462330488 | M63: 372.0023342 | N63: FALSE | O63: FALSE | P63: TRUE | Q63: FALSE | R63: TRUE | AX63: 2520000
A64: 32 | B64: =IF(A64>$A$8,"",OFFSET(InputPriceData!B$15,$A64+$A$11,0,1,1)) -> 2020-12-01 | C64: =IF(A64>$A$8,"",OFFSET(InputPriceData!G$15,CalculationsAndCharts!$A64+$A$11,IF($C$5,8,0),1,1)) -> 1300800 | D64: =IF(A64>$A$8,"",OFFSET(InputPriceData!C$15,CalculationsAndCharts!$A64+$A$11,IF($C$5,8,0),1,1)) -> 368.47 | E64: =IF(A64>$A$8,"",OFFSET(InputPriceData!D$15,CalculationsAndCharts!$A64+$A$11,IF($C$5,8,0),1,1)) -> 373.29 | F64: =IF(A64>$A$8,"",OFFSET(InputPriceData!E$15,CalculationsAndCharts!$A64+$A$11,IF($C$5,8,0),1,1)) -> 364.87 | G64: =IF(A64>$A$8,"",OFFSET(InputPriceData!F$15,CalculationsAndCharts!$A64+$A$11,IF($C$5,8,0),1,1)) -> 364.99 | H64: 4.29179644 | I64: 20.17730863 | J64: 4.49191592 | K64: -4.49191592 | L64: 4.802750304 | M64: 372.1092923 | N64: FALSE | O64: FALSE | P64: FALSE | Q64: FALSE | R64: FALSE | AX64: 1300800
A65: 33 | B65: =IF(A65>$A$8,"",OFFSET(InputPriceData!B$15,$A65+$A$11,0,1,1)) -> 2020-11-30 | C65: =IF(A65>$A$8,"",OFFSET(InputPriceData!G$15,CalculationsAndCharts!$A65+$A$11,IF($C$5,8,0),1,1)) -> 1608400 | D65: =IF(A65>$A$8,"",OFFSET(InputPriceData!C$15,CalculationsAndCharts!$A65+$A$11,IF($C$5,8,0),1,1)) -> 370.79 | E65: =IF(A65>$A$8,"",OFFSET(InputPriceData!D$15,CalculationsAndCharts!$A65+$A$11,IF($C$5,8,0),1,1)) -> 372.44 | F65: =IF(A65>$A$8,"",OFFSET(InputPriceData!E$15,CalculationsAndCharts!$A65+$A$11,IF($C$5,8,0),1,1)) -> 363.39 | G65: =IF(A65>$A$8,"",OFFSET(InputPriceData!F$15,CalculationsAndCharts!$A65+$A$11,IF($C$5,8,0),1,1)) -> 365 | H65: 4.975553638 | I65: 22.63000343 | J65: 4.757100317 | K65: -4.757100317 | L65: 5.313704168 | M65: 372.180843 | N65: FALSE | O65: FALSE | P65: FALSE | Q65: FALSE | R65: FALSE | AX65: 1608400
A66: 34 | B66: =IF(A66>$A$8,"",OFFSET(InputPriceData!B$15,$A66+$A$11,0,1,1)) -> 2020-11-27 | C66: =IF(A66>$A$8,"",OFFSET(InputPriceData!G$15,CalculationsAndCharts!$A66+$A$11,IF($C$5,8,0),1,1)) -> 612300 | D66: =IF(A66>$A$8,"",OFFSET(InputPriceData!C$15,CalculationsAndCharts!$A66+$A$11,IF($C$5,8,0),1,1)) -> 376.18 | E66: =IF(A66>$A$8,"",OFFSET(InputPriceData!D$15,CalculationsAndCharts!$A66+$A$11,IF($C$5,8,0),1,1)) -> 376.18 | F66: =IF(A66>$A$8,"",OFFSET(InputPriceData!E$15,CalculationsAndCharts!$A66+$A$11,IF($C$5,8,0),1,1)) -> 370.86 | G66: =IF(A66>$A$8,"",OFFSET(InputPriceData!F$15,CalculationsAndCharts!$A66+$A$11,IF($C$5,8,0),1,1)) -> 371.74 | H66: 6.21446327 | I66: 24.59321284 | J66: 4.959154449 | K66: -4.959154449 | L66: 5.651854697 | M66: 372.2530122 | N66: FALSE | O66: FALSE | P66: FALSE | Q66: FALSE | R66: FALSE | AX66: 612300
A67: 35 | B67: =IF(A67>$A$8,"",OFFSET(InputPriceData!B$15,$A67+$A$11,0,1,1)) -> 2020-11-25 | C67: =IF(A67>$A$8,"",OFFSET(InputPriceData!G$15,CalculationsAndCharts!$A67+$A$11,IF($C$5,8,0),1,1)) -> 854800 | D67: =IF(A67>$A$8,"",OFFSET(InputPriceData!C$15,CalculationsAndCharts!$A67+$A$11,IF($C$5,8,0),1,1)) -> 374.47 | E67: =IF(A67>$A$8,"",OFFSET(InputPriceData!D$15,CalculationsAndCharts!$A67+$A$11,IF($C$5,8,0),1,1)) -> 379.3 | F67: =IF(A67>$A$8,"",OFFSET(InputPriceData!E$15,CalculationsAndCharts!$A67+$A$11,IF($C$5,8,0),1,1)) -> 373.62 | G67: =IF(A67>$A$8,"",OFFSET(InputPriceData!F$15,CalculationsAndCharts!$A67+$A$11,IF($C$5,8,0),1,1)) -> 375.71 | H67: 7.832501005 | I67: 25.45138598 | J67: 5.044936667 | K67: -5.044936667 | L67: 5.089246124 | M67: 372.2581682 | N67: TRUE | O67: FALSE | P67: FALSE | Q67: FALSE | R67: FALSE | AW67: 854800
A68: 36 | B68: =IF(A68>$A$8,"",OFFSET(InputPriceData!B$15,$A68+$A$11,0,1,1)) -> 2020-11-24 | C68: =IF(A68>$A$8,"",OFFSET(InputPriceData!G$15,CalculationsAndCharts!$A68+$A$11,IF($C$5,8,0),1,1)) -> 959000 | D68: =IF(A68>$A$8,"",OFFSET(InputPriceData!C$15,CalculationsAndCharts!$A68+$A$11,IF($C$5,8,0),1,1)) -> 372.67 | E68: =IF(A68>$A$8,"",OFFSET(InputPriceData!D$15,CalculationsAndCharts!$A68+$A$11,IF($C$5,8,0),1,1)) -> 375.85 | F68: =IF(A68>$A$8,"",OFFSET(InputPriceData!E$15,CalculationsAndCharts!$A68+$A$11,IF($C$5,8,0),1,1)) -> 370.47 | G68: =IF(A68>$A$8,"",OFFSET(InputPriceData!F$15,CalculationsAndCharts!$A68+$A$11,IF($C$5,8,0),1,1)) -> 375.85 | H68: 4.428884999 | I68: 25.96246191 | J68: 5.095337272 | K68: -5.095337272 | L68: 2.345991244 | M68: 372.2234764 | N68: TRUE | O68: FALSE | P68: FALSE | Q68: FALSE | R68: FALSE | AW68: 959000
A69: 37 | B69: =IF(A69>$A$8,"",OFFSET(InputPriceData!B$15,$A69+$A$11,0,1,1)) -> 2020-11-23 | C69: =IF(A69>$A$8,"",OFFSET(InputPriceData!G$15,CalculationsAndCharts!$A69+$A$11,IF($C$5,8,0),1,1)) -> 929200 | D69: =IF(A69>$A$8,"",OFFSET(InputPriceData!C$15,CalculationsAndCharts!$A69+$A$11,IF($C$5,8,0),1,1)) -> 368.96 | E69: =IF(A69>$A$8,"",OFFSET(InputPriceData!D$15,CalculationsAndCharts!$A69+$A$11,IF($C$5,8,0),1,1)) -> 371.93 | F69: =IF(A69>$A$8,"",OFFSET(InputPriceData!E$15,CalculationsAndCharts!$A69+$A$11,IF($C$5,8,0),1,1)) -> 367.29 | G69: =IF(A69>$A$8,"",OFFSET(InputPriceData!F$15,CalculationsAndCharts!$A69+$A$11,IF($C$5,8,0),1,1)) -> 368.27 | H69: 0.6229678407 | I69: 27.27249516 | J69: 5.222307456 | K69: -5.222307456 | L69: 0.2630974893 | M69: 372.1870289 | N69: FALSE | O69: FALSE | P69: FALSE | Q69: FALSE | R69: FALSE | AX69: 929200
A70: 38 | B70: =IF(A70>$A$8,"",OFFSET(InputPriceData!B$15,$A70+$A$11,0,1,1)) -> 2020-11-20 | C70: =IF(A70>$A$8,"",OFFSET(InputPriceData!G$15,CalculationsAndCharts!$A70+$A$11,IF($C$5,8,0),1,1)) -> 1117500 | D70: =IF(A70>$A$8,"",OFFSET(InputPriceData!C$15,CalculationsAndCharts!$A70+$A$11,IF($C$5,8,0),1,1)) -> 373.36 | E70: =IF(A70>$A$8,"",OFFSET(InputPriceData!D$15,CalculationsAndCharts!$A70+$A$11,IF($C$5,8,0),1,1)) -> 374.62 | F70: =IF(A70>$A$8,"",OFFSET(InputPriceData!E$15,CalculationsAndCharts!$A70+$A$11,IF($C$5,8,0),1,1)) -> 365.07 | G70: =IF(A70>$A$8,"",OFFSET(InputPriceData!F$15,CalculationsAndCharts!$A70+$A$11,IF($C$5,8,0),1,1)) -> 365.46 | H70: -1.686708095 | I70: 28.83457808 | J70: 5.369783802 | K70: -5.369783802 | L70: -0.0967728621 | M70: 372.226396 | N70: FALSE | O70: FALSE | P70: FALSE | Q70: FALSE | R70: FALSE | AX70: 1117500
A71: 39 | B71: =IF(A71>$A$8,"",OFFSET(InputPriceData!B$15,$A71+$A$11,0,1,1)) -> 2020-11-19 | C71: =IF(A71>$A$8,"",OFFSET(InputPriceData!G$15,CalculationsAndCharts!$A71+$A$11,IF($C$5,8,0),1,1)) -> 1075400 | D71: =IF(A71>$A$8,"",OFFSET(InputPriceData!C$15,CalculationsAndCharts!$A71+$A$11,IF($C$5,8,0),1,1)) -> 372.4 | E71: =IF(A71>$A$8,"",OFFSET(InputPriceData!D$15,CalculationsAndCharts!$A71+$A$11,IF($C$5,8,0),1,1)) -> 375.13 | F71: =IF(A71>$A$8,"",OFFSET(InputPriceData!E$15,CalculationsAndCharts!$A71+$A$11,IF($C$5,8,0),1,1)) -> 369.59 | G71: =IF(A71>$A$8,"",OFFSET(InputPriceData!F$15,CalculationsAndCharts!$A71+$A$11,IF($C$5,8,0),1,1)) -> 373.85 | H71: 2.033296943 | I71: 29.20363579 | J71: 5.40403884 | K71: -5.40403884 | L71: 1.49316237 | M71: 372.2944 | N71: TRUE | O71: FALSE | P71: FALSE | Q71: FALSE | R71: FALSE | AW71: 1075400
A72: 40 | B72: =IF(A72>$A$8,"",OFFSET(InputPriceData!B$15,$A72+$A$11,0,1,1)) -> 2020-11-18 | C72: =IF(A72>$A$8,"",OFFSET(InputPriceData!G$15,CalculationsAndCharts!$A72+$A$11,IF($C$5,8,0),1,1)) -> 1066800 | D72: =IF(A72>$A$8,"",OFFSET(InputPriceData!C$15,CalculationsAndCharts!$A72+$A$11,IF($C$5,8,0),1,1)) -> 374.87 | E72: =IF(A72>$A$8,"",OFFSET(InputPriceData!D$15,CalculationsAndCharts!$A72+$A$11,IF($C$5,8,0),1,1)) -> 380.81 | F72: =IF(A72>$A$8,"",OFFSET(InputPriceData!E$15,CalculationsAndCharts!$A72+$A$11,IF($C$5,8,0),1,1)) -> 373.63 | G72: =IF(A72>$A$8,"",OFFSET(InputPriceData!F$15,CalculationsAndCharts!$A72+$A$11,IF($C$5,8,0),1,1)) -> 374.94 | H72: 2.838805233 | I72: 29.33151619 | J72: 5.415857844 | K72: -5.415857844 | L72: 0.9530277975 | M72: 372.2787658 | N72: TRUE | O72: FALSE | P72: FALSE | Q72: FALSE | R72: FALSE | AW72: 1066800
A73: 41 | B73: =IF(A73>$A$8,"",OFFSET(InputPriceData!B$15,$A73+$A$11,0,1,1)) -> 2020-11-17 | C73: =IF(A73>$A$8,"",OFFSET(InputPriceData!G$15,CalculationsAndCharts!$A73+$A$11,IF($C$5,8,0),1,1)) -> 1321100 | D73: =IF(A73>$A$8,"",OFFSET(InputPriceData!C$15,CalculationsAndCharts!$A73+$A$11,IF($C$5,8,0),1,1)) -> 373.05 | E73: =IF(A73>$A$8,"",OFFSET(InputPriceData!D$15,CalculationsAndCharts!$A73+$A$11,IF($C$5,8,0),1,1)) -> 377.84 | F73: =IF(A73>$A$8,"",OFFSET(InputPriceData!E$15,CalculationsAndCharts!$A73+$A$11,IF($C$5,8,0),1,1)) -> 372.64 | G73: =IF(A73>$A$8,"",OFFSET(InputPriceData!F$15,CalculationsAndCharts!$A73+$A$11,IF($C$5,8,0),1,1)) -> 373.29 | H73: 0.992911639 | I73: 29.81119796 | J73: 5.459963183 | K73: -5.459963183 | L73: -0.9327496382 | M73: 372.2520198 | N73: TRUE | O73: FALSE | P73: FALSE | Q73: FALSE | R73: FALSE | AW73: 1321100
A74: 42 | B74: =IF(A74>$A$8,"",OFFSET(InputPriceData!B$15,$A74+$A$11,0,1,1)) -> 2020-11-16 | C74: =IF(A74>$A$8,"",OFFSET(InputPriceData!G$15,CalculationsAndCharts!$A74+$A$11,IF($C$5,8,0),1,1)) -> 1306700 | D74: =IF(A74>$A$8,"",OFFSET(InputPriceData!C$15,CalculationsAndCharts!$A74+$A$11,IF($C$5,8,0),1,1)) -> 375.42 | E74: =IF(A74>$A$8,"",OFFSET(InputPriceData!D$15,CalculationsAndCharts!$A74+$A$11,IF($C$5,8,0),1,1)) -> 378.05 | F74: =IF(A74>$A$8,"",OFFSET(InputPriceData!E$15,CalculationsAndCharts!$A74+$A$11,IF($C$5,8,0),1,1)) -> 373.47 | G74: =IF(A74>$A$8,"",OFFSET(InputPriceData!F$15,CalculationsAndCharts!$A74+$A$11,IF($C$5,8,0),1,1)) -> 374.51 | H74: -1.713730842 | I74: 30.63302319 | J74: 5.534710759 | K74: -5.534710759 | L74: -2.858410915 | M74: 372.2415878 | N74: TRUE | O74: FALSE | P74: FALSE | Q74: FALSE | R74: FALSE | AX74: 1306700
A75: 43 | B75: =IF(A75>$A$8,"",OFFSET(InputPriceData!B$15,$A75+$A$11,0,1,1)) -> 2020-11-13 | C75: =IF(A75>$A$8,"",OFFSET(InputPriceData!G$15,CalculationsAndCharts!$A75+$A$11,IF($C$5,8,0),1,1)) -> 921000 | D75: =IF(A75>$A$8,"",OFFSET(InputPriceData!C$15,CalculationsAndCharts!$A75+$A$11,IF($C$5,8,0),1,1)) -> 368 | E75: =IF(A75>$A$8,"",OFFSET(InputPriceData!D$15,CalculationsAndCharts!$A75+$A$11,IF($C$5,8,0),1,1)) -> 373.39 | F75: =IF(A75>$A$8,"",OFFSET(InputPriceData!E$15,CalculationsAndCharts!$A75+$A$11,IF($C$5,8,0),1,1)) -> 366.67 | G75: =IF(A75>$A$8,"",OFFSET(InputPriceData!F$15,CalculationsAndCharts!$A75+$A$11,IF($C$5,8,0),1,1)) -> 372.53 | H75: -2.941482987 | I75: 30.54446297 | J75: 5.526704531 | K75: -5.526704531 | L75: -4.003090989 | M75: 372.2187897 | N75: TRUE | O75: FALSE | P75: FALSE | Q75: FALSE | R75: FALSE | AW75: 921000
A76: 44 | B76: =IF(A76>$A$8,"",OFFSET(InputPriceData!B$15,$A76+$A$11,0,1,1)) -> 2020-11-12 | C76: =IF(A76>$A$8,"",OFFSET(InputPriceData!G$15,CalculationsAndCharts!$A76+$A$11,IF($C$5,8,0),1,1)) -> 856100 | D76: =IF(A76>$A$8,"",OFFSET(InputPriceData!C$15,CalculationsAndCharts!$A76+$A$11,IF($C$5,8,0),1,1)) -> 364.95 | E76: =IF(A76>$A$8,"",OFFSET(InputPriceData!D$15,CalculationsAndCharts!$A76+$A$11,IF($C$5,8,0),1,1)) -> 368 | F76: =IF(A76>$A$8,"",OFFSET(InputPriceData!E$15,CalculationsAndCharts!$A76+$A$11,IF($C$5,8,0),1,1)) -> 362.97 | G76: =IF(A76>$A$8,"",OFFSET(InputPriceData!F$15,CalculationsAndCharts!$A76+$A$11,IF($C$5,8,0),1,1)) -> 365.33 | H76: -4.723033591 | I76: 30.35089567 | J76: 5.509164698 | K76: -5.509164698 | L76: -5.064698991 | M76: 372.2156619 | N76: FALSE | O76: FALSE | P76: FALSE | Q76: FALSE | R76: FALSE | AW76: 856100
A77: 45 | B77: =IF(A77>$A$8,"",OFFSET(InputPriceData!B$15,$A77+$A$11,0,1,1)) -> 2020-11-11 | C77: =IF(A77>$A$8,"",OFFSET(InputPriceData!G$15,CalculationsAndCharts!$A77+$A$11,IF($C$5,8,0),1,1)) -> 1115200 | D77: =IF(A77>$A$8,"",OFFSET(InputPriceData!C$15,CalculationsAndCharts!$A77+$A$11,IF($C$5,8,0),1,1)) -> 370.28 | E77: =IF(A77>$A$8,"",OFFSET(InputPriceData!D$15,CalculationsAndCharts!$A77+$A$11,IF($C$5,8,0),1,1)) -> 370.74 | F77: =IF(A77>$A$8,"",OFFSET(InputPriceData!E$15,CalculationsAndCharts!$A77+$A$11,IF($C$5,8,0),1,1)) -> 363.14 | G77: =IF(A77>$A$8,"",OFFSET(InputPriceData!F$15,CalculationsAndCharts!$A77+$A$11,IF($C$5,8,0),1,1)) -> 366.72 | H77: -5.486971985 | I77: 29.54299322 | J77: 5.435346651 | K77: -5.435346651 | L77: -5.406364391 | M77: 372.2848646 | N77: FALSE | O77: TRUE | P77: FALSE | Q77: TRUE | R77: FALSE | AX77: 1115200
A78: 46 | B78: =IF(A78>$A$8,"",OFFSET(InputPriceData!B$15,$A78+$A$11,0,1,1)) -> 2020-11-10 | C78: =IF(A78>$A$8,"",OFFSET(InputPriceData!G$15,CalculationsAndCharts!$A78+$A$11,IF($C$5,8,0),1,1)) -> 1708000 | D78: =IF(A78>$A$8,"",OFFSET(InputPriceData!C$15,CalculationsAndCharts!$A78+$A$11,IF($C$5,8,0),1,1)) -> 362.46 | E78: =IF(A78>$A$8,"",OFFSET(InputPriceData!D$15,CalculationsAndCharts!$A78+$A$11,IF($C$5,8,0),1,1)) -> 370.85 | F78: =IF(A78>$A$8,"",OFFSET(InputPriceData!E$15,CalculationsAndCharts!$A78+$A$11,IF($C$5,8,0),1,1)) -> 361.41 | G78: =IF(A78>$A$8,"",OFFSET(InputPriceData!F$15,CalculationsAndCharts!$A78+$A$11,IF($C$5,8,0),1,1)) -> 368.7 | H78: -4.54368932 | I78: 28.11292584 | J78: 5.302162374 | K78: -5.302162374 | L78: -5.325756796 | M78: 372.3407929 | N78: FALSE | O78: FALSE | P78: FALSE | Q78: FALSE | R78: FALSE | AW78: 1708000
A79: 47 | B79: =IF(A79>$A$8,"",OFFSET(InputPriceData!B$15,$A79+$A$11,0,1,1)) -> 2020-11-09 | C79: =IF(A79>$A$8,"",OFFSET(InputPriceData!G$15,CalculationsAndCharts!$A79+$A$11,IF($C$5,8,0),1,1)) -> 1956900 | D79: =IF(A79>$A$8,"",OFFSET(InputPriceData!C$15,CalculationsAndCharts!$A79+$A$11,IF($C$5,8,0),1,1)) -> 376.96 | E79: =IF(A79>$A$8,"",OFFSET(InputPriceData!D$15,CalculationsAndCharts!$A79+$A$11,IF($C$5,8,0),1,1)) -> 378.87 | F79: =IF(A79>$A$8,"",OFFSET(InputPriceData!E$15,CalculationsAndCharts!$A79+$A$11,IF($C$5,8,0),1,1)) -> 361.2 | G79: =IF(A79>$A$8,"",OFFSET(InputPriceData!F$15,CalculationsAndCharts!$A79+$A$11,IF($C$5,8,0),1,1)) -> 361.42 | H79: -6.421210709 | I79: 27.12260536 | J79: 5.207936766 | K79: -5.207936766 | L79: -6.107824272 | M79: 372.3773837 | N79: FALSE | O79: FALSE | P79: FALSE | Q79: FALSE | R79: FALSE | AX79: 1956900
A80: 48 | B80: =IF(A80>$A$8,"",OFFSET(InputPriceData!B$15,$A80+$A$11,0,1,1)) -> 2020-11-06 | C80: =IF(A80>$A$8,"",OFFSET(InputPriceData!G$15,CalculationsAndCharts!$A80+$A$11,IF($C$5,8,0),1,1)) -> 1401600 | D80: =IF(A80>$A$8,"",OFFSET(InputPriceData!C$15,CalculationsAndCharts!$A80+$A$11,IF($C$5,8,0),1,1)) -> 360.78 | E80: =IF(A80>$A$8,"",OFFSET(InputPriceData!D$15,CalculationsAndCharts!$A80+$A$11,IF($C$5,8,0),1,1)) -> 361.2 | F80: =IF(A80>$A$8,"",OFFSET(InputPriceData!E$15,CalculationsAndCharts!$A80+$A$11,IF($C$5,8,0),1,1)) -> 355.46 | G80: =IF(A80>$A$8,"",OFFSET(InputPriceData!F$15,CalculationsAndCharts!$A80+$A$11,IF($C$5,8,0),1,1)) -> 358.76 | H80: -6.390084801 | I80: 25.13635302 | J80: 5.013616761 | K80: -5.013616761 | L80: -5.794437836 | M80: 372.4875082 | N80: FALSE | O80: FALSE | P80: FALSE | Q80: FALSE | R80: FALSE | AX80: 1401600
A81: 49 | B81: =IF(A81>$A$8,"",OFFSET(InputPriceData!B$15,$A81+$A$11,0,1,1)) -> 2020-11-05 | C81: =IF(A81>$A$8,"",OFFSET(InputPriceData!G$15,CalculationsAndCharts!$A81+$A$11,IF($C$5,8,0),1,1)) -> 1709300 | D81: =IF(A81>$A$8,"",OFFSET(InputPriceData!C$15,CalculationsAndCharts!$A81+$A$11,IF($C$5,8,0),1,1)) -> 371.95 | E81: =IF(A81>$A$8,"",OFFSET(InputPriceData!D$15,CalculationsAndCharts!$A81+$A$11,IF($C$5,8,0),1,1)) -> 373.88 | F81: =IF(A81>$A$8,"",OFFSET(InputPriceData!E$15,CalculationsAndCharts!$A81+$A$11,IF($C$5,8,0),1,1)) -> 361.24 | G81: =IF(A81>$A$8,"",OFFSET(InputPriceData!F$15,CalculationsAndCharts!$A81+$A$11,IF($C$5,8,0),1,1)) -> 362.17 | H81: -6.146829407 | I81: 23.13564304 | J81: 4.809952499 | K81: -4.809952499 | L81: -5.19879087 | M81: 372.6254731 | N81: FALSE | O81: FALSE | P81: FALSE | Q81: FALSE | R81: FALSE | AX81: 1709300
A82: 50 | B82: =IF(A82>$A$8,"",OFFSET(InputPriceData!B$15,$A82+$A$11,0,1,1)) -> 2020-11-04 | C82: =IF(A82>$A$8,"",OFFSET(InputPriceData!G$15,CalculationsAndCharts!$A82+$A$11,IF($C$5,8,0),1,1)) -> 2146400 | D82: =IF(A82>$A$8,"",OFFSET(InputPriceData!C$15,CalculationsAndCharts!$A82+$A$11,IF($C$5,8,0),1,1)) -> 368.49 | E82: =IF(A82>$A$8,"",OFFSET(InputPriceData!D$15,CalculationsAndCharts!$A82+$A$11,IF($C$5,8,0),1,1)) -> 378.81 | F82: =IF(A82>$A$8,"",OFFSET(InputPriceData!E$15,CalculationsAndCharts!$A82+$A$11,IF($C$5,8,0),1,1)) -> 366.94 | G82: =IF(A82>$A$8,"",OFFSET(InputPriceData!F$15,CalculationsAndCharts!$A82+$A$11,IF($C$5,8,0),1,1)) -> 369.58 | H82: -2.813716209 | I82: 21.55883466 | J82: 4.643149217 | K82: -4.643149217 | L82: -4.250752333 | M82: 372.7305532 | N82: FALSE | O82: TRUE | P82: FALSE | Q82: TRUE | R82: FALSE | AW82: 2146400
A83: 51 | B83: =IF(A83>$A$8,"",OFFSET(InputPriceData!B$15,$A83+$A$11,0,1,1)) -> 2020-11-03 | C83: =IF(A83>$A$8,"",OFFSET(InputPriceData!G$15,CalculationsAndCharts!$A83+$A$11,IF($C$5,8,0),1,1)) -> 1484600 | D83: =IF(A83>$A$8,"",OFFSET(InputPriceData!C$15,CalculationsAndCharts!$A83+$A$11,IF($C$5,8,0),1,1)) -> 354.65 | E83: =IF(A83>$A$8,"",OFFSET(InputPriceData!D$15,CalculationsAndCharts!$A83+$A$11,IF($C$5,8,0),1,1)) -> 363.66 | F83: =IF(A83>$A$8,"",OFFSET(InputPriceData!E$15,CalculationsAndCharts!$A83+$A$11,IF($C$5,8,0),1,1)) -> 353.74 | G83: =IF(A83>$A$8,"",OFFSET(InputPriceData!F$15,CalculationsAndCharts!$A83+$A$11,IF($C$5,8,0),1,1)) -> 360.92 | H83: -3.458606393 | I83: 21.18074461 | J83: 4.602254297 | K83: -4.602254297 | L83: -5.687788458 | M83: 372.7622171 | N83: FALSE | O83: FALSE | P83: FALSE | Q83: FALSE | R83: FALSE | AW83: 1484600
A84: 52 | B84: =IF(A84>$A$8,"",OFFSET(InputPriceData!B$15,$A84+$A$11,0,1,1)) -> 2020-11-02 | C84: =IF(A84>$A$8,"",OFFSET(InputPriceData!G$15,CalculationsAndCharts!$A84+$A$11,IF($C$5,8,0),1,1)) -> 1707700 | D84: =IF(A84>$A$8,"",OFFSET(InputPriceData!C$15,CalculationsAndCharts!$A84+$A$11,IF($C$5,8,0),1,1)) -> 353.65 | E84: =IF(A84>$A$8,"",OFFSET(InputPriceData!D$15,CalculationsAndCharts!$A84+$A$11,IF($C$5,8,0),1,1)) -> 357.41 | F84: =IF(A84>$A$8,"",OFFSET(InputPriceData!E$15,CalculationsAndCharts!$A84+$A$11,IF($C$5,8,0),1,1)) -> 348.28 | G84: =IF(A84>$A$8,"",OFFSET(InputPriceData!F$15,CalculationsAndCharts!$A84+$A$11,IF($C$5,8,0),1,1)) -> 349.97 | H84: -8.214220147 | I84: 20.63170046 | J84: 4.542213167 | K84: -4.542213167 | L84: -7.916970522 | M84: 372.8812344 | N84: FALSE | O84: FALSE | P84: FALSE | Q84: FALSE | R84: FALSE | AX84: 1707700
A85: 53 | B85: =IF(A85>$A$8,"",OFFSET(InputPriceData!B$15,$A85+$A$11,0,1,1)) -> 2020-10-30 | C85: =IF(A85>$A$8,"",OFFSET(InputPriceData!G$15,CalculationsAndCharts!$A85+$A$11,IF($C$5,8,0),1,1)) -> 1309800 | D85: =IF(A85>$A$8,"",OFFSET(InputPriceData!C$15,CalculationsAndCharts!$A85+$A$11,IF($C$5,8,0),1,1)) -> 348.2 | E85: =IF(A85>$A$8,"",OFFSET(InputPriceData!D$15,CalculationsAndCharts!$A85+$A$11,IF($C$5,8,0),1,1)) -> 351.27 | F85: =IF(A85>$A$8,"",OFFSET(InputPriceData!E$15,CalculationsAndCharts!$A85+$A$11,IF($C$5,8,0),1,1)) -> 343.25 | G85: =IF(A85>$A$8,"",OFFSET(InputPriceData!F$15,CalculationsAndCharts!$A85+$A$11,IF($C$5,8,0),1,1)) -> 347.7 | H85: -8.001270043 | I85: 17.26187273 | J85: 4.154740994 | K85: -4.154740994 | L85: -7.619720897 | M85: 373.111498 | N85: FALSE | O85: FALSE | P85: FALSE | Q85: FALSE | R85: FALSE | AX85: 1309800
A86: 54 | B86: =IF(A86>$A$8,"",OFFSET(InputPriceData!B$15,$A86+$A$11,0,1,1)) -> 2020-10-29 | C86: =IF(A86>$A$8,"",OFFSET(InputPriceData!G$15,CalculationsAndCharts!$A86+$A$11,IF($C$5,8,0),1,1)) -> 1548000 | D86: =IF(A86>$A$8,"",OFFSET(InputPriceData!C$15,CalculationsAndCharts!$A86+$A$11,IF($C$5,8,0),1,1)) -> 347.57 | E86: =IF(A86>$A$8,"",OFFSET(InputPriceData!D$15,CalculationsAndCharts!$A86+$A$11,IF($C$5,8,0),1,1)) -> 353.76 | F86: =IF(A86>$A$8,"",OFFSET(InputPriceData!E$15,CalculationsAndCharts!$A86+$A$11,IF($C$5,8,0),1,1)) -> 345.87 | G86: =IF(A86>$A$8,"",OFFSET(InputPriceData!F$15,CalculationsAndCharts!$A86+$A$11,IF($C$5,8,0),1,1)) -> 349.99 | H86: -7.468802876 | I86: 14.17009022 | J86: 3.764318029 | K86: -3.764318029 | L86: -7.238171751 | M86: 373.36689 | N86: FALSE | O86: FALSE | P86: FALSE | Q86: FALSE | R86: FALSE | AW86: 1548000
A87: 55 | B87: =IF(A87>$A$8,"",OFFSET(InputPriceData!B$15,$A87+$A$11,0,1,1)) -> 2020-10-28 | C87: =IF(A87>$A$8,"",OFFSET(InputPriceData!G$15,CalculationsAndCharts!$A87+$A$11,IF($C$5,8,0),1,1)) -> 1679900 | D87: =IF(A87>$A$8,"",OFFSET(InputPriceData!C$15,CalculationsAndCharts!$A87+$A$11,IF($C$5,8,0),1,1)) -> 354.39 | E87: =IF(A87>$A$8,"",OFFSET(InputPriceData!D$15,CalculationsAndCharts!$A87+$A$11,IF($C$5,8,0),1,1)) -> 357.5 | F87: =IF(A87>$A$8,"",OFFSET(InputPriceData!E$15,CalculationsAndCharts!$A87+$A$11,IF($C$5,8,0),1,1)) -> 348.02 | G87: =IF(A87>$A$8,"",OFFSET(InputPriceData!F$15,CalculationsAndCharts!$A87+$A$11,IF($C$5,8,0),1,1)) -> 348.42 | H87: -8.459881246 | I87: 12.31325177 | J87: 3.509024333 | K87: -3.509024333 | L87: -7.007540626 | M87: 373.6018336 | N87: FALSE | O87: FALSE | P87: FALSE | Q87: FALSE | R87: FALSE | AX87: 1679900
A88: 56 | B88: =IF(A88>$A$8,"",OFFSET(InputPriceData!B$15,$A88+$A$11,0,1,1)) -> 2020-10-27 | C88: =IF(A88>$A$8,"",OFFSET(InputPriceData!G$15,CalculationsAndCharts!$A88+$A$11,IF($C$5,8,0),1,1)) -> 977400 | D88: =IF(A88>$A$8,"",OFFSET(InputPriceData!C$15,CalculationsAndCharts!$A88+$A$11,IF($C$5,8,0),1,1)) -> 364.45 | E88: =IF(A88>$A$8,"",OFFSET(InputPriceData!D$15,CalculationsAndCharts!$A88+$A$11,IF($C$5,8,0),1,1)) -> 365.42 | F88: =IF(A88>$A$8,"",OFFSET(InputPriceData!E$15,CalculationsAndCharts!$A88+$A$11,IF($C$5,8,0),1,1)) -> 358.3 | G88: =IF(A88>$A$8,"",OFFSET(InputPriceData!F$15,CalculationsAndCharts!$A88+$A$11,IF($C$5,8,0),1,1)) -> 359.91 | H88: -6.768728629 | I88: 8.776284101 | J88: 2.962479384 | K88: -2.962479384 | L88: -5.555200005 | M88: 373.8549173 | N88: FALSE | O88: FALSE | P88: FALSE | Q88: FALSE | R88: FALSE | AX88: 977400
A89: 57 | B89: =IF(A89>$A$8,"",OFFSET(InputPriceData!B$15,$A89+$A$11,0,1,1)) -> 2020-10-26 | C89: =IF(A89>$A$8,"",OFFSET(InputPriceData!G$15,CalculationsAndCharts!$A89+$A$11,IF($C$5,8,0),1,1)) -> 1387200 | D89: =IF(A89>$A$8,"",OFFSET(InputPriceData!C$15,CalculationsAndCharts!$A89+$A$11,IF($C$5,8,0),1,1)) -> 366.86 | E89: =IF(A89>$A$8,"",OFFSET(InputPriceData!D$15,CalculationsAndCharts!$A89+$A$11,IF($C$5,8,0),1,1)) -> 367.3 | F89: =IF(A89>$A$8,"",OFFSET(InputPriceData!E$15,CalculationsAndCharts!$A89+$A$11,IF($C$5,8,0),1,1)) -> 359.98 | G89: =IF(A89>$A$8,"",OFFSET(InputPriceData!F$15,CalculationsAndCharts!$A89+$A$11,IF($C$5,8,0),1,1)) -> 365.99 | H89: -5.624033007 | I89: 6.493090204 | J89: 2.548154274 | K89: -2.548154274 | L89: -4.341671382 | M89: 373.9950673 | N89: FALSE | O89: FALSE | P89: FALSE | Q89: FALSE | R89: FALSE | AX89: 1387200
A90: 58 | B90: =IF(A90>$A$8,"",OFFSET(InputPriceData!B$15,$A90+$A$11,0,1,1)) -> 2020-10-23 | C90: =IF(A90>$A$8,"",OFFSET(InputPriceData!G$15,CalculationsAndCharts!$A90+$A$11,IF($C$5,8,0),1,1)) -> 1178800 | D90: =IF(A90>$A$8,"",OFFSET(InputPriceData!C$15,CalculationsAndCharts!$A90+$A$11,IF($C$5,8,0),1,1)) -> 368.76 | E90: =IF(A90>$A$8,"",OFFSET(InputPriceData!D$15,CalculationsAndCharts!$A90+$A$11,IF($C$5,8,0),1,1)) -> 373.58 | F90: =IF(A90>$A$8,"",OFFSET(InputPriceData!E$15,CalculationsAndCharts!$A90+$A$11,IF($C$5,8,0),1,1)) -> 366.45 | G90: =IF(A90>$A$8,"",OFFSET(InputPriceData!F$15,CalculationsAndCharts!$A90+$A$11,IF($C$5,8,0),1,1)) -> 371.73 | H90: -3.19783339 | I90: 4.934807767 | J90: 2.221442722 | K90: -2.221442722 | L90: -3.059309756 | M90: 374.0755202 | N90: FALSE | O90: FALSE | P90: FALSE | Q90: FALSE | R90: FALSE | AW90: 1178800
A91: 59 | B91: =IF(A91>$A$8,"",OFFSET(InputPriceData!B$15,$A91+$A$11,0,1,1)) -> 2020-10-22 | C91: =IF(A91>$A$8,"",OFFSET(InputPriceData!G$15,CalculationsAndCharts!$A91+$A$11,IF($C$5,8,0),1,1)) -> 1255100 | D91: =IF(A91>$A$8,"",OFFSET(InputPriceData!C$15,CalculationsAndCharts!$A91+$A$11,IF($C$5,8,0),1,1)) -> 364.95 | E91: =IF(A91>$A$8,"",OFFSET(InputPriceData!D$15,CalculationsAndCharts!$A91+$A$11,IF($C$5,8,0),1,1)) -> 368.53 | F91: =IF(A91>$A$8,"",OFFSET(InputPriceData!E$15,CalculationsAndCharts!$A91+$A$11,IF($C$5,8,0),1,1)) -> 362.61 | G91: =IF(A91>$A$8,"",OFFSET(InputPriceData!F$15,CalculationsAndCharts!$A91+$A$11,IF($C$5,8,0),1,1)) -> 366.4 | H91: -2.58687156 | I91: 4.537603075 | J91: 2.130165035 | K91: -2.130165035 | L91: -2.920786123 | M91: 374.0990933 | N91: FALSE | O91: FALSE | P91: FALSE | Q91: FALSE | R91: FALSE | AW91: 1255100
A92: 60 | B92: =IF(A92>$A$8,"",OFFSET(InputPriceData!B$15,$A92+$A$11,0,1,1)) -> 2020-10-21 | C92: =IF(A92>$A$8,"",OFFSET(InputPriceData!G$15,CalculationsAndCharts!$A92+$A$11,IF($C$5,8,0),1,1)) -> 1931200 | D92: =IF(A92>$A$8,"",OFFSET(InputPriceData!C$15,CalculationsAndCharts!$A92+$A$11,IF($C$5,8,0),1,1)) -> 369.62 | E92: =IF(A92>$A$8,"",OFFSET(InputPriceData!D$15,CalculationsAndCharts!$A92+$A$11,IF($C$5,8,0),1,1)) -> 372.4 | F92: =IF(A92>$A$8,"",OFFSET(InputPriceData!E$15,CalculationsAndCharts!$A92+$A$11,IF($C$5,8,0),1,1)) -> 362.46 | G92: =IF(A92>$A$8,"",OFFSET(InputPriceData!F$15,CalculationsAndCharts!$A92+$A$11,IF($C$5,8,0),1,1)) -> 364.59 | H92: -4.201481949 | I92: 4.86294581 | J92: 2.205208791 | K92: -2.205208791 | L92: -3.254700686 | M92: 374.1764711 | N92: FALSE | O92: FALSE | P92: FALSE | Q92: FALSE | R92: FALSE | AX92: 1931200
A93: 61 | B93: =IF(A93>$A$8,"",OFFSET(InputPriceData!B$15,$A93+$A$11,0,1,1)) -> 2020-10-20 | C93: =IF(A93>$A$8,"",OFFSET(InputPriceData!G$15,CalculationsAndCharts!$A93+$A$11,IF($C$5,8,0),1,1)) -> 1779200 | D93: =IF(A93>$A$8,"",OFFSET(InputPriceData!C$15,CalculationsAndCharts!$A93+$A$11,IF($C$5,8,0),1,1)) -> 379.93 | E93: =IF(A93>$A$8,"",OFFSET(InputPriceData!D$15,CalculationsAndCharts!$A93+$A$11,IF($C$5,8,0),1,1)) -> 383.11 | F93: =IF(A93>$A$8,"",OFFSET(InputPriceData!E$15,CalculationsAndCharts!$A93+$A$11,IF($C$5,8,0),1,1)) -> 369.22 | G93: =IF(A93>$A$8,"",OFFSET(InputPriceData!F$15,CalculationsAndCharts!$A93+$A$11,IF($C$5,8,0),1,1)) -> 369.62 | H93: -4.174012237 | I93: 4.255338679 | J93: 2.062847226 | K93: -2.062847226 | L93: -2.307919423 | M93: 374.2728175 | N93: FALSE | O93: FALSE | P93: FALSE | Q93: FALSE | R93: FALSE | AX93: 1779200
A94: 62 | B94: =IF(A94>$A$8,"",OFFSET(InputPriceData!B$15,$A94+$A$11,0,1,1)) -> 2020-10-19 | C94: =IF(A94>$A$8,"",OFFSET(InputPriceData!G$15,CalculationsAndCharts!$A94+$A$11,IF($C$5,8,0),1,1)) -> 1181000 | D94: =IF(A94>$A$8,"",OFFSET(InputPriceData!C$15,CalculationsAndCharts!$A94+$A$11,IF($C$5,8,0),1,1)) -> 384.55 | E94: =IF(A94>$A$8,"",OFFSET(InputPriceData!D$15,CalculationsAndCharts!$A94+$A$11,IF($C$5,8,0),1,1)) -> 386.89 | F94: =IF(A94>$A$8,"",OFFSET(InputPriceData!E$15,CalculationsAndCharts!$A94+$A$11,IF($C$5,8,0),1,1)) -> 379.02 | G94: =IF(A94>$A$8,"",OFFSET(InputPriceData!F$15,CalculationsAndCharts!$A94+$A$11,IF($C$5,8,0),1,1)) -> 381.04 | H94: 1.079661512 | I94: 3.442231734 | J94: 1.855325237 | K94: -1.855325237 | L94: -0.4418266092 | M94: 374.3195795 | N94: TRUE | O94: TRUE | P94: FALSE | Q94: TRUE | R94: FALSE | AX94: 1181000
A95: 63 | B95: =IF(A95>$A$8,"",OFFSET(InputPriceData!B$15,$A95+$A$11,0,1,1)) -> 2020-10-16 | C95: =IF(A95>$A$8,"",OFFSET(InputPriceData!G$15,CalculationsAndCharts!$A95+$A$11,IF($C$5,8,0),1,1)) -> 952100 | D95: =IF(A95>$A$8,"",OFFSET(InputPriceData!C$15,CalculationsAndCharts!$A95+$A$11,IF($C$5,8,0),1,1)) -> 385.79 | E95: =IF(A95>$A$8,"",OFFSET(InputPriceData!D$15,CalculationsAndCharts!$A95+$A$11,IF($C$5,8,0),1,1)) -> 387.07 | F95: =IF(A95>$A$8,"",OFFSET(InputPriceData!E$15,CalculationsAndCharts!$A95+$A$11,IF($C$5,8,0),1,1)) -> 383.41 | G95: =IF(A95>$A$8,"",OFFSET(InputPriceData!F$15,CalculationsAndCharts!$A95+$A$11,IF($C$5,8,0),1,1)) -> 383.82 | H95: -2.186544343 | I95: 3.576712334 | J95: 1.891219801 | K95: -1.891219801 | L95: -1.96331473 | M95: 374.2520376 | N95: TRUE | O95: FALSE | P95: FALSE | Q95: FALSE | R95: FALSE | AX95: 952100
A96: 64 | B96: =IF(A96>$A$8,"",OFFSET(InputPriceData!B$15,$A96+$A$11,0,1,1)) -> 2020-10-15 | C96: =IF(A96>$A$8,"",OFFSET(InputPriceData!G$15,CalculationsAndCharts!$A96+$A$11,IF($C$5,8,0),1,1)) -> 792000 | D96: =IF(A96>$A$8,"",OFFSET(InputPriceData!C$15,CalculationsAndCharts!$A96+$A$11,IF($C$5,8,0),1,1)) -> 384.64 | E96: =IF(A96>$A$8,"",OFFSET(InputPriceData!D$15,CalculationsAndCharts!$A96+$A$11,IF($C$5,8,0),1,1)) -> 386.17 | F96: =IF(A96>$A$8,"",OFFSET(InputPriceData!E$15,CalculationsAndCharts!$A96+$A$11,IF($C$5,8,0),1,1)) -> 380.56 | G96: =IF(A96>$A$8,"",OFFSET(InputPriceData!F$15,CalculationsAndCharts!$A96+$A$11,IF($C$5,8,0),1,1)) -> 383.44 | H96: -2.479717185 | I96: 3.648777447 | J96: 1.910177334 | K96: -1.910177334 | L96: -1.740085118 | M96: 374.1558772 | N96: TRUE | O96: FALSE | P96: FALSE | Q96: FALSE | R96: FALSE | AX96: 792000
A97: 65 | B97: =IF(A97>$A$8,"",OFFSET(InputPriceData!B$15,$A97+$A$11,0,1,1)) -> 2020-10-14 | C97: =IF(A97>$A$8,"",OFFSET(InputPriceData!G$15,CalculationsAndCharts!$A97+$A$11,IF($C$5,8,0),1,1)) -> 1090300 | D97: =IF(A97>$A$8,"",OFFSET(InputPriceData!C$15,CalculationsAndCharts!$A97+$A$11,IF($C$5,8,0),1,1)) -> 384.45 | E97: =IF(A97>$A$8,"",OFFSET(InputPriceData!D$15,CalculationsAndCharts!$A97+$A$11,IF($C$5,8,0),1,1)) -> 392.71 | F97: =IF(A97>$A$8,"",OFFSET(InputPriceData!E$15,CalculationsAndCharts!$A97+$A$11,IF($C$5,8,0),1,1)) -> 384.45 | G97: =IF(A97>$A$8,"",OFFSET(InputPriceData!F$15,CalculationsAndCharts!$A97+$A$11,IF($C$5,8,0),1,1)) -> 388.01 | H97: =IF(A97<=$H$30,(G97-OFFSET(G97,$A$17,0,1,1))/OFFSET(G97,$A$17,0,1,1)*100,NA()) -> -1.226993865 | I97: =IF(A97<=$I$30,SUMSQ(OFFSET(H97,0,0,$A$19,1))/$A$19,NA()) -> 3.568156703 | J97: =IF(A97<=$I$30,SQRT(I97),NA()) -> 1.888956512 | K97: -1.888956512 | L97: =IF(A97<$L$30,$D$18*H97+$E$18*L98,IF(A97=$L$30,AVERAGE(OFFSET(H97,0,0,$A$18,1)),NA())) -> -1.00045305 | M97: 374.0625694 | N97: TRUE | O97: FALSE | P97: FALSE | Q97: FALSE | R97: FALSE | AW97: =IF(G97>=D97,C97,NA()) -> 1090300 | AX97: =IF(G97<D97,C97,NA()) -> 
A98: 66 | B98: =IF(A98>$A$8,"",OFFSET(InputPriceData!B$15,$A98+$A$11,0,1,1)) -> 2020-10-13 | C98: =IF(A98>$A$8,"",OFFSET(InputPriceData!G$15,CalculationsAndCharts!$A98+$A$11,IF($C$5,8,0),1,1)) -> 973300 | D98: =IF(A98>$A$8,"",OFFSET(InputPriceData!C$15,CalculationsAndCharts!$A98+$A$11,IF($C$5,8,0),1,1)) -> 383.46 | E98: =IF(A98>$A$8,"",OFFSET(InputPriceData!D$15,CalculationsAndCharts!$A98+$A$11,IF($C$5,8,0),1,1)) -> 387.85 | F98: =IF(A98>$A$8,"",OFFSET(InputPriceData!E$15,CalculationsAndCharts!$A98+$A$11,IF($C$5,8,0),1,1)) -> 382.45 | G98: =IF(A98>$A$8,"",OFFSET(InputPriceData!F$15,CalculationsAndCharts!$A98+$A$11,IF($C$5,8,0),1,1)) -> 386.25 | H98: -0.9158072957 | I98: 3.689057299 | J98: 1.92069188 | K98: =-J98 -> -1.92069188 | L98: -0.7739122349 | M98: =IF(A98<$M$30,$D$22*G98+$E$22*M99,IF(A98=$M$30,AVERAGE(OFFSET(G98,0,0,$A$22,1)),NA())) -> 373.9223942 | N98: =IF(A98<=$M$30,G98>=M98,NA()) -> TRUE | O98: =IF(A98<=$O$30,AND(L99<K99,L98>K98),NA()) -> FALSE | P98: =IF($A98<=$O$30,AND($L99>$J99,$L98<$J98),NA()) -> FALSE | Q98: =IF($A98<=$O$30,AND(OR(NOT($R$8),N98),O98),NA()) -> FALSE | R98: =IF($A98<=$O$30,AND(OR(NOT($R$8),NOT(N98)),P98),NA()) -> FALSE | U98: =IF(AND($A98<=$O$30,Q98,$R$17),$BJ$34,NA()) ->  | V98: =IF(AND($A98<=$O$30,Q98,$R$17),$BJ$33,NA()) ->  | W98: =IF(AND($A98<=$O$30,R98,$R$17),$BJ$34,NA()) ->  | X98: =IF(AND($A98<=$O$30,R98,$R$17),$BJ$33,NA()) ->  | AW98: 973300
A99: 67 | B99: =IF(A99>$A$8,"",OFFSET(InputPriceData!B$15,$A99+$A$11,0,1,1)) -> 2020-10-12 | C99: =IF(A99>$A$8,"",OFFSET(InputPriceData!G$15,CalculationsAndCharts!$A99+$A$11,IF($C$5,8,0),1,1)) -> 807400 | D99: =IF(A99>$A$8,"",OFFSET(InputPriceData!C$15,CalculationsAndCharts!$A99+$A$11,IF($C$5,8,0),1,1)) -> 383.32 | E99: =IF(A99>$A$8,"",OFFSET(InputPriceData!D$15,CalculationsAndCharts!$A99+$A$11,IF($C$5,8,0),1,1)) -> 387.8 | F99: =IF(A99>$A$8,"",OFFSET(InputPriceData!E$15,CalculationsAndCharts!$A99+$A$11,IF($C$5,8,0),1,1)) -> 380.6 | G99: =IF(A99>$A$8,"",OFFSET(InputPriceData!F$15,CalculationsAndCharts!$A99+$A$11,IF($C$5,8,0),1,1)) -> 386.22 | H99: -1.227558693 | I99: 3.765206556 | J99: 1.940414017 | K99: -1.940414017 | L99: -0.6320171741 | M99: 373.7984987 | N99: TRUE | O99: FALSE | P99: FALSE | Q99: FALSE | R99: FALSE | AW99: 807400
A100: 68 | B100: =IF(A100>$A$8,"",OFFSET(InputPriceData!B$15,$A100+$A$11,0,1,1)) -> 2020-10-09 | C100: =IF(A100>$A$8,"",OFFSET(InputPriceData!G$15,CalculationsAndCharts!$A100+$A$11,IF($C$5,8,0),1,1)) -> 675000 | D100: =IF(A100>$A$8,"",OFFSET(InputPriceData!C$15,CalculationsAndCharts!$A100+$A$11,IF($C$5,8,0),1,1)) -> 385.71 | E100: =IF(A100>$A$8,"",OFFSET(InputPriceData!D$15,CalculationsAndCharts!$A100+$A$11,IF($C$5,8,0),1,1)) -> 387.39 | F100: =IF(A100>$A$8,"",OFFSET(InputPriceData!E$15,CalculationsAndCharts!$A100+$A$11,IF($C$5,8,0),1,1)) -> 382.61 | G100: =IF(A100>$A$8,"",OFFSET(InputPriceData!F$15,CalculationsAndCharts!$A100+$A$11,IF($C$5,8,0),1,1)) -> 383.25 | H100: -0.9049773756 | I100: 3.763232187 | J100: 1.939905201 | K100: -1.939905201 | L100: -0.03647565554 | M100: 373.6736595 | N100: TRUE | O100: FALSE | P100: FALSE | Q100: FALSE | R100: FALSE | AX100: 675000
A101: 69 | B101: =IF(A101>$A$8,"",OFFSET(InputPriceData!B$15,$A101+$A$11,0,1,1)) -> 2020-10-08 | C101: =IF(A101>$A$8,"",OFFSET(InputPriceData!G$15,CalculationsAndCharts!$A101+$A$11,IF($C$5,8,0),1,1)) -> 694900 | D101: =IF(A101>$A$8,"",OFFSET(InputPriceData!C$15,CalculationsAndCharts!$A101+$A$11,IF($C$5,8,0),1,1)) -> 381.23 | E101: =IF(A101>$A$8,"",OFFSET(InputPriceData!D$15,CalculationsAndCharts!$A101+$A$11,IF($C$5,8,0),1,1)) -> 386.49 | F101: =IF(A101>$A$8,"",OFFSET(InputPriceData!E$15,CalculationsAndCharts!$A101+$A$11,IF($C$5,8,0),1,1)) -> 379.62 | G101: =IF(A101>$A$8,"",OFFSET(InputPriceData!F$15,CalculationsAndCharts!$A101+$A$11,IF($C$5,8,0),1,1)) -> 385.89 | H101: 2.499468763 | I101: 3.744483233 | J101: 1.935066726 | K101: -1.935066726 | L101: 0.8320260645 | M101: 373.5774148 | N101: TRUE | O101: FALSE | P101: FALSE | Q101: FALSE | R101: FALSE | AW101: 694900
A102: 70 | B102: =IF(A102>$A$8,"",OFFSET(InputPriceData!B$15,$A102+$A$11,0,1,1)) -> 2020-10-07 | C102: =IF(A102>$A$8,"",OFFSET(InputPriceData!G$15,CalculationsAndCharts!$A102+$A$11,IF($C$5,8,0),1,1)) -> 826500 | D102: =IF(A102>$A$8,"",OFFSET(InputPriceData!C$15,CalculationsAndCharts!$A102+$A$11,IF($C$5,8,0),1,1)) -> 375.97 | E102: =IF(A102>$A$8,"",OFFSET(InputPriceData!D$15,CalculationsAndCharts!$A102+$A$11,IF($C$5,8,0),1,1)) -> 381.17 | F102: =IF(A102>$A$8,"",OFFSET(InputPriceData!E$15,CalculationsAndCharts!$A102+$A$11,IF($C$5,8,0),1,1)) -> 375.93 | G102: =IF(A102>$A$8,"",OFFSET(InputPriceData!F$15,CalculationsAndCharts!$A102+$A$11,IF($C$5,8,0),1,1)) -> 380.28 | H102: -0.5959849435 | I102: 3.825867302 | J102: 1.955982439 | K102: -1.955982439 | L102: -0.8354166343 | M102: 373.4536703 | N102: TRUE | O102: FALSE | P102: FALSE | Q102: FALSE | R102: FALSE | AW102: 826500
A103: 71 | B103: =IF(A103>$A$8,"",OFFSET(InputPriceData!B$15,$A103+$A$11,0,1,1)) -> 2020-10-06 | C103: =IF(A103>$A$8,"",OFFSET(InputPriceData!G$15,CalculationsAndCharts!$A103+$A$11,IF($C$5,8,0),1,1)) -> 954900 | D103: =IF(A103>$A$8,"",OFFSET(InputPriceData!C$15,CalculationsAndCharts!$A103+$A$11,IF($C$5,8,0),1,1)) -> 383.35 | E103: =IF(A103>$A$8,"",OFFSET(InputPriceData!D$15,CalculationsAndCharts!$A103+$A$11,IF($C$5,8,0),1,1)) -> 383.43 | F103: =IF(A103>$A$8,"",OFFSET(InputPriceData!E$15,CalculationsAndCharts!$A103+$A$11,IF($C$5,8,0),1,1)) -> 373.41 | G103: =IF(A103>$A$8,"",OFFSET(InputPriceData!F$15,CalculationsAndCharts!$A103+$A$11,IF($C$5,8,0),1,1)) -> 373.85 | H103: -0.990492333 | I103: 3.870450003 | J103: 1.967345929 | K103: -1.967345929 | L103: -1.074848325 | M103: 373.3850639 | N103: TRUE | O103: FALSE | P103: FALSE | Q103: FALSE | R103: FALSE | AX103: 954900
A104: 72 | B104: =IF(A104>$A$8,"",OFFSET(InputPriceData!B$15,$A104+$A$11,0,1,1)) -> 2020-10-05 | C104: =IF(A104>$A$8,"",OFFSET(InputPriceData!G$15,CalculationsAndCharts!$A104+$A$11,IF($C$5,8,0),1,1)) -> 825000 | D104: =IF(A104>$A$8,"",OFFSET(InputPriceData!C$15,CalculationsAndCharts!$A104+$A$11,IF($C$5,8,0),1,1)) -> 380.58 | E104: =IF(A104>$A$8,"",OFFSET(InputPriceData!D$15,CalculationsAndCharts!$A104+$A$11,IF($C$5,8,0),1,1)) -> 383.21 | F104: =IF(A104>$A$8,"",OFFSET(InputPriceData!E$15,CalculationsAndCharts!$A104+$A$11,IF($C$5,8,0),1,1)) -> 376.23 | G104: =IF(A104>$A$8,"",OFFSET(InputPriceData!F$15,CalculationsAndCharts!$A104+$A$11,IF($C$5,8,0),1,1)) -> 381.29 | H104: -0.2772329018 | I104: 3.969835467 | J104: 1.992444596 | K104: -1.992444596 | L104: -1.159204317 | M104: 373.3803912 | N104: TRUE | O104: TRUE | P104: FALSE | Q104: TRUE | R104: FALSE | AW104: 825000
A105: 73 | B105: =IF(A105>$A$8,"",OFFSET(InputPriceData!B$15,$A105+$A$11,0,1,1)) -> 2020-10-02 | C105: =IF(A105>$A$8,"",OFFSET(InputPriceData!G$15,CalculationsAndCharts!$A105+$A$11,IF($C$5,8,0),1,1)) -> 1217200 | D105: =IF(A105>$A$8,"",OFFSET(InputPriceData!C$15,CalculationsAndCharts!$A105+$A$11,IF($C$5,8,0),1,1)) -> 373.39 | E105: =IF(A105>$A$8,"",OFFSET(InputPriceData!D$15,CalculationsAndCharts!$A105+$A$11,IF($C$5,8,0),1,1)) -> 380.82 | F105: =IF(A105>$A$8,"",OFFSET(InputPriceData!E$15,CalculationsAndCharts!$A105+$A$11,IF($C$5,8,0),1,1)) -> 371.68 | G105: =IF(A105>$A$8,"",OFFSET(InputPriceData!F$15,CalculationsAndCharts!$A105+$A$11,IF($C$5,8,0),1,1)) -> 377.94 | H105: -1.478063658 | I105: 3.976322056 | J105: 1.994071728 | K105: -1.994071728 | L105: -2.041175733 | M105: 373.3008977 | N105: TRUE | O105: FALSE | P105: FALSE | Q105: FALSE | R105: FALSE | AW105: 1217200
A106: 74 | B106: =IF(A106>$A$8,"",OFFSET(InputPriceData!B$15,$A106+$A$11,0,1,1)) -> 2020-10-01 | C106: =IF(A106>$A$8,"",OFFSET(InputPriceData!G$15,CalculationsAndCharts!$A106+$A$11,IF($C$5,8,0),1,1)) -> 1103900 | D106: =IF(A106>$A$8,"",OFFSET(InputPriceData!C$15,CalculationsAndCharts!$A106+$A$11,IF($C$5,8,0),1,1)) -> 381.33 | E106: =IF(A106>$A$8,"",OFFSET(InputPriceData!D$15,CalculationsAndCharts!$A106+$A$11,IF($C$5,8,0),1,1)) -> 387.29 | F106: =IF(A106>$A$8,"",OFFSET(InputPriceData!E$15,CalculationsAndCharts!$A106+$A$11,IF($C$5,8,0),1,1)) -> 376.37 | G106: =IF(A106>$A$8,"",OFFSET(InputPriceData!F$15,CalculationsAndCharts!$A106+$A$11,IF($C$5,8,0),1,1)) -> 378.24 | H106: -4.318130075 | I106: 4.142709895 | J106: 2.035364806 | K106: -2.035364806 | L106: -2.604287807 | M106: 373.2542735 | N106: TRUE | O106: FALSE | P106: FALSE | Q106: FALSE | R106: FALSE | AX106: 1103900
A107: 75 | B107: =IF(A107>$A$8,"",OFFSET(InputPriceData!B$15,$A107+$A$11,0,1,1)) -> 2020-09-30 | C107: =IF(A107>$A$8,"",OFFSET(InputPriceData!G$15,CalculationsAndCharts!$A107+$A$11,IF($C$5,8,0),1,1)) -> 1406700 | D107: =IF(A107>$A$8,"",OFFSET(InputPriceData!C$15,CalculationsAndCharts!$A107+$A$11,IF($C$5,8,0),1,1)) -> 386.76 | E107: =IF(A107>$A$8,"",OFFSET(InputPriceData!D$15,CalculationsAndCharts!$A107+$A$11,IF($C$5,8,0),1,1)) -> 387.05 | F107: =IF(A107>$A$8,"",OFFSET(InputPriceData!E$15,CalculationsAndCharts!$A107+$A$11,IF($C$5,8,0),1,1)) -> 377.87 | G107: =IF(A107>$A$8,"",OFFSET(InputPriceData!F$15,CalculationsAndCharts!$A107+$A$11,IF($C$5,8,0),1,1)) -> 380.62 | H107: -0.9111735916 | I107: 4.192944468 | J107: 2.047668056 | K107: -2.047668056 | L107: -0.8904455388 | M107: 373.2041657 | N107: TRUE | O107: FALSE | P107: FALSE | Q107: FALSE | R107: FALSE | AX107: 1406700
A108: 76 | B108: =IF(A108>$A$8,"",OFFSET(InputPriceData!B$15,$A108+$A$11,0,1,1)) -> 2020-09-29 | C108: =IF(A108>$A$8,"",OFFSET(InputPriceData!G$15,CalculationsAndCharts!$A108+$A$11,IF($C$5,8,0),1,1)) -> 1113100 | D108: =IF(A108>$A$8,"",OFFSET(InputPriceData!C$15,CalculationsAndCharts!$A108+$A$11,IF($C$5,8,0),1,1)) -> 386.9 | E108: =IF(A108>$A$8,"",OFFSET(InputPriceData!D$15,CalculationsAndCharts!$A108+$A$11,IF($C$5,8,0),1,1)) -> 390.42 | F108: =IF(A108>$A$8,"",OFFSET(InputPriceData!E$15,CalculationsAndCharts!$A108+$A$11,IF($C$5,8,0),1,1)) -> 384.82 | G108: =IF(A108>$A$8,"",OFFSET(InputPriceData!F$15,CalculationsAndCharts!$A108+$A$11,IF($C$5,8,0),1,1)) -> 386.04 | H108: -0.3896271449 | I108: 4.588445055 | J108: 2.142065605 | K108: -2.142065605 | L108: -0.8697174861 | M108: 373.1296347 | N108: TRUE | O108: FALSE | P108: FALSE | Q108: FALSE | R108: FALSE | AX108: 1113100
A109: 77 | B109: =IF(A109>$A$8,"",OFFSET(InputPriceData!B$15,$A109+$A$11,0,1,1)) -> 2020-09-28 | C109: =IF(A109>$A$8,"",OFFSET(InputPriceData!G$15,CalculationsAndCharts!$A109+$A$11,IF($C$5,8,0),1,1)) -> 980000 | D109: =IF(A109>$A$8,"",OFFSET(InputPriceData!C$15,CalculationsAndCharts!$A109+$A$11,IF($C$5,8,0),1,1)) -> 387.29 | E109: =IF(A109>$A$8,"",OFFSET(InputPriceData!D$15,CalculationsAndCharts!$A109+$A$11,IF($C$5,8,0),1,1)) -> 393.86 | F109: =IF(A109>$A$8,"",OFFSET(InputPriceData!E$15,CalculationsAndCharts!$A109+$A$11,IF($C$5,8,0),1,1)) -> 386.94 | G109: =IF(A109>$A$8,"",OFFSET(InputPriceData!F$15,CalculationsAndCharts!$A109+$A$11,IF($C$5,8,0),1,1)) -> 387.8 | H109: -0.6812477591 | I109: 5.430122373 | J109: 2.330262297 | K109: -2.330262297 | L109: -1.349807827 | M109: 372.9998823 | N109: TRUE | O109: FALSE | P109: FALSE | Q109: FALSE | R109: FALSE | AW109: 980000
A110: 78 | B110: =IF(A110>$A$8,"",OFFSET(InputPriceData!B$15,$A110+$A$11,0,1,1)) -> 2020-09-25 | C110: =IF(A110>$A$8,"",OFFSET(InputPriceData!G$15,CalculationsAndCharts!$A110+$A$11,IF($C$5,8,0),1,1)) -> 1375400 | D110: =IF(A110>$A$8,"",OFFSET(InputPriceData!C$15,CalculationsAndCharts!$A110+$A$11,IF($C$5,8,0),1,1)) -> 374.83 | E110: =IF(A110>$A$8,"",OFFSET(InputPriceData!D$15,CalculationsAndCharts!$A110+$A$11,IF($C$5,8,0),1,1)) -> 385.7 | F110: =IF(A110>$A$8,"",OFFSET(InputPriceData!E$15,CalculationsAndCharts!$A110+$A$11,IF($C$5,8,0),1,1)) -> 373.84 | G110: =IF(A110>$A$8,"",OFFSET(InputPriceData!F$15,CalculationsAndCharts!$A110+$A$11,IF($C$5,8,0),1,1)) -> 384.01 | H110: -1.510643755 | I110: 6.369255919 | J110: 2.523738481 | K110: -2.523738481 | L110: -2.018367896 | M110: 372.8511374 | N110: TRUE | O110: FALSE | P110: FALSE | Q110: FALSE | R110: FALSE | AW110: 1375400
A111: 79 | B111: =IF(A111>$A$8,"",OFFSET(InputPriceData!B$15,$A111+$A$11,0,1,1)) -> 2020-09-24 | C111: =IF(A111>$A$8,"",OFFSET(InputPriceData!G$15,CalculationsAndCharts!$A111+$A$11,IF($C$5,8,0),1,1)) -> 1295100 | D111: =IF(A111>$A$8,"",OFFSET(InputPriceData!C$15,CalculationsAndCharts!$A111+$A$11,IF($C$5,8,0),1,1)) -> 380.59 | E111: =IF(A111>$A$8,"",OFFSET(InputPriceData!D$15,CalculationsAndCharts!$A111+$A$11,IF($C$5,8,0),1,1)) -> 381.82 | F111: =IF(A111>$A$8,"",OFFSET(InputPriceData!E$15,CalculationsAndCharts!$A111+$A$11,IF($C$5,8,0),1,1)) -> 372.49 | G111: =IF(A111>$A$8,"",OFFSET(InputPriceData!F$15,CalculationsAndCharts!$A111+$A$11,IF($C$5,8,0),1,1)) -> 376.13 | H111: -3.633009659 | I111: 6.862374752 | J111: 2.619613474 | K111: -2.619613474 | L111: -2.526092036 | M111: 372.738988 | N111: TRUE | O111: FALSE | P111: FALSE | Q111: FALSE | R111: FALSE | AX111: 1295100
A112: 80 | B112: =IF(A112>$A$8,"",OFFSET(InputPriceData!B$15,$A112+$A$11,0,1,1)) -> 2020-09-23 | C112: =IF(A112>$A$8,"",OFFSET(InputPriceData!G$15,CalculationsAndCharts!$A112+$A$11,IF($C$5,8,0),1,1)) -> 1223300 | D112: =IF(A112>$A$8,"",OFFSET(InputPriceData!C$15,CalculationsAndCharts!$A112+$A$11,IF($C$5,8,0),1,1)) -> 386.53 | E112: =IF(A112>$A$8,"",OFFSET(InputPriceData!D$15,CalculationsAndCharts!$A112+$A$11,IF($C$5,8,0),1,1)) -> 391.69 | F112: =IF(A112>$A$8,"",OFFSET(InputPriceData!E$15,CalculationsAndCharts!$A112+$A$11,IF($C$5,8,0),1,1)) -> 379.34 | G112: =IF(A112>$A$8,"",OFFSET(InputPriceData!F$15,CalculationsAndCharts!$A112+$A$11,IF($C$5,8,0),1,1)) -> 380.58 | H112: -2.34527353 | I112: 6.423053268 | J112: 2.534374335 | K112: -2.534374335 | L112: -1.419174414 | M112: 372.7049075 | N112: TRUE | O112: FALSE | P112: FALSE | Q112: FALSE | R112: FALSE | AX112: 1223300
A113: 81 | B113: =IF(A113>$A$8,"",OFFSET(InputPriceData!B$15,$A113+$A$11,0,1,1)) -> 2020-09-22 | C113: =IF(A113>$A$8,"",OFFSET(InputPriceData!G$15,CalculationsAndCharts!$A113+$A$11,IF($C$5,8,0),1,1)) -> 1286300 | D113: =IF(A113>$A$8,"",OFFSET(InputPriceData!C$15,CalculationsAndCharts!$A113+$A$11,IF($C$5,8,0),1,1)) -> 379.23 | E113: =IF(A113>$A$8,"",OFFSET(InputPriceData!D$15,CalculationsAndCharts!$A113+$A$11,IF($C$5,8,0),1,1)) -> 389.75 | F113: =IF(A113>$A$8,"",OFFSET(InputPriceData!E$15,CalculationsAndCharts!$A113+$A$11,IF($C$5,8,0),1,1)) -> 378.69 | G113: =IF(A113>$A$8,"",OFFSET(InputPriceData!F$15,CalculationsAndCharts!$A113+$A$11,IF($C$5,8,0),1,1)) -> 385.72 | H113: -1.07714403 | I113: 6.37216011 | J113: 2.52431379 | K113: -2.52431379 | L113: -0.4930752977 | M113: 372.6257608 | N113: TRUE | O113: FALSE | P113: FALSE | Q113: FALSE | R113: FALSE | AW113: 1286300
A114: 82 | B114: =IF(A114>$A$8,"",OFFSET(InputPriceData!B$15,$A114+$A$11,0,1,1)) -> 2020-09-21 | C114: =IF(A114>$A$8,"",OFFSET(InputPriceData!G$15,CalculationsAndCharts!$A114+$A$11,IF($C$5,8,0),1,1)) -> 1447400 | D114: =IF(A114>$A$8,"",OFFSET(InputPriceData!C$15,CalculationsAndCharts!$A114+$A$11,IF($C$5,8,0),1,1)) -> 385.8 | E114: =IF(A114>$A$8,"",OFFSET(InputPriceData!D$15,CalculationsAndCharts!$A114+$A$11,IF($C$5,8,0),1,1)) -> 387.16 | F114: =IF(A114>$A$8,"",OFFSET(InputPriceData!E$15,CalculationsAndCharts!$A114+$A$11,IF($C$5,8,0),1,1)) -> 374.61 | G114: =IF(A114>$A$8,"",OFFSET(InputPriceData!F$15,CalculationsAndCharts!$A114+$A$11,IF($C$5,8,0),1,1)) -> 376.97 | H114: -1.963486945 | I114: 6.88922903 | J114: 2.624734088 | K114: -2.624734088 | L114: 0.09099343418 | M114: 372.4941605 | N114: TRUE | O114: FALSE | P114: FALSE | Q114: FALSE | R114: FALSE | AX114: 1447400
A115: 83 | B115: =IF(A115>$A$8,"",OFFSET(InputPriceData!B$15,$A115+$A$11,0,1,1)) -> 2020-09-18 | C115: =IF(A115>$A$8,"",OFFSET(InputPriceData!G$15,CalculationsAndCharts!$A115+$A$11,IF($C$5,8,0),1,1)) -> 2636400 | D115: =IF(A115>$A$8,"",OFFSET(InputPriceData!C$15,CalculationsAndCharts!$A115+$A$11,IF($C$5,8,0),1,1)) -> 391.41 | E115: =IF(A115>$A$8,"",OFFSET(InputPriceData!D$15,CalculationsAndCharts!$A115+$A$11,IF($C$5,8,0),1,1)) -> 396.23 | F115: =IF(A115>$A$8,"",OFFSET(InputPriceData!E$15,CalculationsAndCharts!$A115+$A$11,IF($C$5,8,0),1,1)) -> 391.41 | G115: =IF(A115>$A$8,"",OFFSET(InputPriceData!F$15,CalculationsAndCharts!$A115+$A$11,IF($C$5,8,0),1,1)) -> 392.4 | H115: 2.494449523 | I115: 6.734391273 | J115: 2.595070572 | K115: -2.595070572 | L115: 2.145473813 | M115: 372.4491771 | N115: TRUE | O115: FALSE | P115: FALSE | Q115: FALSE | R115: FALSE | AW115: 2636400
A116: 84 | B116: =IF(A116>$A$8,"",OFFSET(InputPriceData!B$15,$A116+$A$11,0,1,1)) -> 2020-09-17 | C116: =IF(A116>$A$8,"",OFFSET(InputPriceData!G$15,CalculationsAndCharts!$A116+$A$11,IF($C$5,8,0),1,1)) -> 959500 | D116: =IF(A116>$A$8,"",OFFSET(InputPriceData!C$15,CalculationsAndCharts!$A116+$A$11,IF($C$5,8,0),1,1)) -> 389.28 | E116: =IF(A116>$A$8,"",OFFSET(InputPriceData!D$15,CalculationsAndCharts!$A116+$A$11,IF($C$5,8,0),1,1)) -> 395.78 | F116: =IF(A116>$A$8,"",OFFSET(InputPriceData!E$15,CalculationsAndCharts!$A116+$A$11,IF($C$5,8,0),1,1)) -> 386.83 | G116: =IF(A116>$A$8,"",OFFSET(InputPriceData!F$15,CalculationsAndCharts!$A116+$A$11,IF($C$5,8,0),1,1)) -> 393.19 | H116: 2.129925453 | I116: 6.423508266 | J116: 2.534464098 | K116: -2.534464098 | L116: 1.796498103 | M116: 372.2486664 | N116: TRUE | O116: FALSE | P116: FALSE | Q116: FALSE | R116: FALSE | AW116: 959500
A117: 85 | B117: =IF(A117>$A$8,"",OFFSET(InputPriceData!B$15,$A117+$A$11,0,1,1)) -> 2020-09-16 | C117: =IF(A117>$A$8,"",OFFSET(InputPriceData!G$15,CalculationsAndCharts!$A117+$A$11,IF($C$5,8,0),1,1)) -> 1052200 | D117: =IF(A117>$A$8,"",OFFSET(InputPriceData!C$15,CalculationsAndCharts!$A117+$A$11,IF($C$5,8,0),1,1)) -> 388.39 | E117: =IF(A117>$A$8,"",OFFSET(InputPriceData!D$15,CalculationsAndCharts!$A117+$A$11,IF($C$5,8,0),1,1)) -> 396.82 | F117: =IF(A117>$A$8,"",OFFSET(InputPriceData!E$15,CalculationsAndCharts!$A117+$A$11,IF($C$5,8,0),1,1)) -> 388.21 | G117: =IF(A117>$A$8,"",OFFSET(InputPriceData!F$15,CalculationsAndCharts!$A117+$A$11,IF($C$5,8,0),1,1)) -> 392.83 | H117: 1.9807892 | I117: 6.249027607 | J117: 2.499805514 | K117: -2.499805514 | L117: 1.463070753 | M117: 372.0382007 | N117: TRUE | O117: FALSE | P117: FALSE | Q117: FALSE | R117: FALSE | AW117: 1052200
A118: 86 | B118: =IF(A118>$A$8,"",OFFSET(InputPriceData!B$15,$A118+$A$11,0,1,1)) -> 2020-09-15 | C118: =IF(A118>$A$8,"",OFFSET(InputPriceData!G$15,CalculationsAndCharts!$A118+$A$11,IF($C$5,8,0),1,1)) -> 955700 | D118: =IF(A118>$A$8,"",OFFSET(InputPriceData!C$15,CalculationsAndCharts!$A118+$A$11,IF($C$5,8,0),1,1)) -> 392.9 | E118: =IF(A118>$A$8,"",OFFSET(InputPriceData!D$15,CalculationsAndCharts!$A118+$A$11,IF($C$5,8,0),1,1)) -> 393.25 | F118: =IF(A118>$A$8,"",OFFSET(InputPriceData!E$15,CalculationsAndCharts!$A118+$A$11,IF($C$5,8,0),1,1)) -> 384.2 | G118: =IF(A118>$A$8,"",OFFSET(InputPriceData!F$15,CalculationsAndCharts!$A118+$A$11,IF($C$5,8,0),1,1)) -> 389.82 | H118: 1.536778496 | I118: 6.868047718 | J118: 2.620696037 | K118: -2.620696037 | L118: 0.9453523061 | M118: 371.8292379 | N118: TRUE | O118: FALSE | P118: FALSE | Q118: FALSE | R118: FALSE | AX118: 955700
A119: 87 | B119: =IF(A119>$A$8,"",OFFSET(InputPriceData!B$15,$A119+$A$11,0,1,1)) -> 2020-09-14 | C119: =IF(A119>$A$8,"",OFFSET(InputPriceData!G$15,CalculationsAndCharts!$A119+$A$11,IF($C$5,8,0),1,1)) -> 991000 | D119: =IF(A119>$A$8,"",OFFSET(InputPriceData!C$15,CalculationsAndCharts!$A119+$A$11,IF($C$5,8,0),1,1)) -> 390.64 | E119: =IF(A119>$A$8,"",OFFSET(InputPriceData!D$15,CalculationsAndCharts!$A119+$A$11,IF($C$5,8,0),1,1)) -> 393.91 | F119: =IF(A119>$A$8,"",OFFSET(InputPriceData!E$15,CalculationsAndCharts!$A119+$A$11,IF($C$5,8,0),1,1)) -> 388.9 | G119: =IF(A119>$A$8,"",OFFSET(InputPriceData!F$15,CalculationsAndCharts!$A119+$A$11,IF($C$5,8,0),1,1)) -> 391.02 | H119: 1.211368225 | I119: 8.804965489 | J119: 2.96731621 | K119: -2.96731621 | L119: 0.3539261166 | M119: 371.6484262 | N119: TRUE | O119: FALSE | P119: FALSE | Q119: FALSE | R119: FALSE | AW119: 991000
A120: 88 | B120: =IF(A120>$A$8,"",OFFSET(InputPriceData!B$15,$A120+$A$11,0,1,1)) -> 2020-09-11 | C120: =IF(A120>$A$8,"",OFFSET(InputPriceData!G$15,CalculationsAndCharts!$A120+$A$11,IF($C$5,8,0),1,1)) -> 933800 | D120: =IF(A120>$A$8,"",OFFSET(InputPriceData!C$15,CalculationsAndCharts!$A120+$A$11,IF($C$5,8,0),1,1)) -> 378.82 | E120: =IF(A120>$A$8,"",OFFSET(InputPriceData!D$15,CalculationsAndCharts!$A120+$A$11,IF($C$5,8,0),1,1)) -> 387.79 | F120: =IF(A120>$A$8,"",OFFSET(InputPriceData!E$15,CalculationsAndCharts!$A120+$A$11,IF($C$5,8,0),1,1)) -> 378.11 | G120: =IF(A120>$A$8,"",OFFSET(InputPriceData!F$15,CalculationsAndCharts!$A120+$A$11,IF($C$5,8,0),1,1)) -> 386.75 | H120: 0.6663369687 | I120: 10.66543618 | J120: 3.26579794 | K120: -3.26579794 | L120: -0.5035159916 | M120: 371.453737 | N120: TRUE | O120: FALSE | P120: FALSE | Q120: FALSE | R120: FALSE | AW120: 933800
A121: 89 | B121: =IF(A121>$A$8,"",OFFSET(InputPriceData!B$15,$A121+$A$11,0,1,1)) -> 2020-09-10 | C121: =IF(A121>$A$8,"",OFFSET(InputPriceData!G$15,CalculationsAndCharts!$A121+$A$11,IF($C$5,8,0),1,1)) -> 716000 | D121: =IF(A121>$A$8,"",OFFSET(InputPriceData!C$15,CalculationsAndCharts!$A121+$A$11,IF($C$5,8,0),1,1)) -> 383.34 | E121: =IF(A121>$A$8,"",OFFSET(InputPriceData!D$15,CalculationsAndCharts!$A121+$A$11,IF($C$5,8,0),1,1)) -> 385.83 | F121: =IF(A121>$A$8,"",OFFSET(InputPriceData!E$15,CalculationsAndCharts!$A121+$A$11,IF($C$5,8,0),1,1)) -> 375.7 | G121: =IF(A121>$A$8,"",OFFSET(InputPriceData!F$15,CalculationsAndCharts!$A121+$A$11,IF($C$5,8,0),1,1)) -> 376.48 | H121: -2.80624758 | I121: 12.6819742 | J121: 3.561175958 | K121: -3.561175958 | L121: -1.673368952 | M121: 371.3000057 | N121: TRUE | O121: FALSE | P121: FALSE | Q121: FALSE | R121: FALSE | S121: =IF(AND($A121<=$O$30,Q121,$R$17),$BD$34,NA()) ->  | T121: =IF(AND($A121<=$O$30,R121,$R$17),$BD$34,NA()) ->  | AX121: 716000
A122: 90 | B122: =IF(A122>$A$8,"",OFFSET(InputPriceData!B$15,$A122+$A$11,0,1,1)) -> 2020-09-09 | C122: =IF(A122>$A$8,"",OFFSET(InputPriceData!G$15,CalculationsAndCharts!$A122+$A$11,IF($C$5,8,0),1,1)) -> 1218300 | D122: =IF(A122>$A$8,"",OFFSET(InputPriceData!C$15,CalculationsAndCharts!$A122+$A$11,IF($C$5,8,0),1,1)) -> 380.03 | E122: =IF(A122>$A$8,"",OFFSET(InputPriceData!D$15,CalculationsAndCharts!$A122+$A$11,IF($C$5,8,0),1,1)) -> 386.72 | F122: =IF(A122>$A$8,"",OFFSET(InputPriceData!E$15,CalculationsAndCharts!$A122+$A$11,IF($C$5,8,0),1,1)) -> 378.36 | G122: =IF(A122>$A$8,"",OFFSET(InputPriceData!F$15,CalculationsAndCharts!$A122+$A$11,IF($C$5,8,0),1,1)) -> 382.56 | H122: -1.11662531 | I122: 15.21286098 | J122: 3.900366775 | K122: -3.900366775 | L122: -0.540490324 | M122: 371.2479455 | N122: TRUE | O122: FALSE | P122: FALSE | Q122: FALSE | R122: FALSE | AW122: 1218300
A123: 91 | B123: =IF(A123>$A$8,"",OFFSET(InputPriceData!B$15,$A123+$A$11,0,1,1)) -> 2020-09-08 | C123: =IF(A123>$A$8,"",OFFSET(InputPriceData!G$15,CalculationsAndCharts!$A123+$A$11,IF($C$5,8,0),1,1)) -> 1071600 | D123: =IF(A123>$A$8,"",OFFSET(InputPriceData!C$15,CalculationsAndCharts!$A123+$A$11,IF($C$5,8,0),1,1)) -> 381.32 | E123: =IF(A123>$A$8,"",OFFSET(InputPriceData!D$15,CalculationsAndCharts!$A123+$A$11,IF($C$5,8,0),1,1)) -> 382.61 | F123: =IF(A123>$A$8,"",OFFSET(InputPriceData!E$15,CalculationsAndCharts!$A123+$A$11,IF($C$5,8,0),1,1)) -> 375.73 | G123: =IF(A123>$A$8,"",OFFSET(InputPriceData!F$15,CalculationsAndCharts!$A123+$A$11,IF($C$5,8,0),1,1)) -> 377.59 | H123: -1.723016059 | I123: 20.35917425 | J123: 4.512114167 | K123: -4.512114167 | L123: 0.03564466214 | M123: 371.1342565 | N123: TRUE | O123: FALSE | P123: FALSE | Q123: FALSE | R123: FALSE | AX123: 1071600
A124: 92 | B124: =IF(A124>$A$8,"",OFFSET(InputPriceData!B$15,$A124+$A$11,0,1,1)) -> 2020-09-04 | C124: =IF(A124>$A$8,"",OFFSET(InputPriceData!G$15,CalculationsAndCharts!$A124+$A$11,IF($C$5,8,0),1,1)) -> 933600 | D124: =IF(A124>$A$8,"",OFFSET(InputPriceData!C$15,CalculationsAndCharts!$A124+$A$11,IF($C$5,8,0),1,1)) -> 385.81 | E124: =IF(A124>$A$8,"",OFFSET(InputPriceData!D$15,CalculationsAndCharts!$A124+$A$11,IF($C$5,8,0),1,1)) -> 388.83 | F124: =IF(A124>$A$8,"",OFFSET(InputPriceData!E$15,CalculationsAndCharts!$A124+$A$11,IF($C$5,8,0),1,1)) -> 376.94 | G124: =IF(A124>$A$8,"",OFFSET(InputPriceData!F$15,CalculationsAndCharts!$A124+$A$11,IF($C$5,8,0),1,1)) -> 382.35 | H124: 0.4545215701 | I124: 25.46703717 | J124: 5.046487607 | K124: -5.046487607 | L124: 1.794305383 | M124: 371.0693747 | N124: TRUE | O124: FALSE | P124: FALSE | Q124: FALSE | R124: FALSE | AX124: 933600
A125: 93 | B125: =IF(A125>$A$8,"",OFFSET(InputPriceData!B$15,$A125+$A$11,0,1,1)) -> 2020-09-03 | C125: =IF(A125>$A$8,"",OFFSET(InputPriceData!G$15,CalculationsAndCharts!$A125+$A$11,IF($C$5,8,0),1,1)) -> 1500800 | D125: =IF(A125>$A$8,"",OFFSET(InputPriceData!C$15,CalculationsAndCharts!$A125+$A$11,IF($C$5,8,0),1,1)) -> 396.73 | E125: =IF(A125>$A$8,"",OFFSET(InputPriceData!D$15,CalculationsAndCharts!$A125+$A$11,IF($C$5,8,0),1,1)) -> 399.09 | F125: =IF(A125>$A$8,"",OFFSET(InputPriceData!E$15,CalculationsAndCharts!$A125+$A$11,IF($C$5,8,0),1,1)) -> 380.72 | G125: =IF(A125>$A$8,"",OFFSET(InputPriceData!F$15,CalculationsAndCharts!$A125+$A$11,IF($C$5,8,0),1,1)) -> 383.61 | H125: 2.347856247 | I125: 30.87953704 | J125: 5.55693594 | K125: -5.55693594 | L125: 3.134089196 | M125: 370.9560015 | N125: TRUE | O125: FALSE | P125: FALSE | Q125: FALSE | R125: FALSE | AX125: 1500800
A126: 94 | B126: =IF(A126>$A$8,"",OFFSET(InputPriceData!B$15,$A126+$A$11,0,1,1)) -> 2020-09-02 | C126: =IF(A126>$A$8,"",OFFSET(InputPriceData!G$15,CalculationsAndCharts!$A126+$A$11,IF($C$5,8,0),1,1)) -> 1214500 | D126: =IF(A126>$A$8,"",OFFSET(InputPriceData!C$15,CalculationsAndCharts!$A126+$A$11,IF($C$5,8,0),1,1)) -> 382.47 | E126: =IF(A126>$A$8,"",OFFSET(InputPriceData!D$15,CalculationsAndCharts!$A126+$A$11,IF($C$5,8,0),1,1)) -> 396.13 | F126: =IF(A126>$A$8,"",OFFSET(InputPriceData!E$15,CalculationsAndCharts!$A126+$A$11,IF($C$5,8,0),1,1)) -> 381.44 | G126: =IF(A126>$A$8,"",OFFSET(InputPriceData!F$15,CalculationsAndCharts!$A126+$A$11,IF($C$5,8,0),1,1)) -> 395.31 | H126: 4.432937944 | I126: 37.44864224 | J126: 6.119529577 | K126: -6.119529577 | L126: 3.920322145 | M126: 370.8288257 | N126: TRUE | O126: FALSE | P126: FALSE | Q126: FALSE | R126: FALSE | AW126: 1214500
A127: 95 | B127: =IF(A127>$A$8,"",OFFSET(InputPriceData!B$15,$A127+$A$11,0,1,1)) -> 2020-09-01 | C127: =IF(A127>$A$8,"",OFFSET(InputPriceData!G$15,CalculationsAndCharts!$A127+$A$11,IF($C$5,8,0),1,1)) -> 908900 | D127: =IF(A127>$A$8,"",OFFSET(InputPriceData!C$15,CalculationsAndCharts!$A127+$A$11,IF($C$5,8,0),1,1)) -> 385.13 | E127: =IF(A127>$A$8,"",OFFSET(InputPriceData!D$15,CalculationsAndCharts!$A127+$A$11,IF($C$5,8,0),1,1)) -> 386.49 | F127: =IF(A127>$A$8,"",OFFSET(InputPriceData!E$15,CalculationsAndCharts!$A127+$A$11,IF($C$5,8,0),1,1)) -> 382.33 | G127: =IF(A127>$A$8,"",OFFSET(InputPriceData!F$15,CalculationsAndCharts!$A127+$A$11,IF($C$5,8,0),1,1)) -> 384.12 | H127: 2.956391219 | I127: 40.97844415 | J127: 6.401440787 | K127: -6.401440787 | L127: 3.407706347 | M127: 370.5827837 | N127: TRUE | O127: FALSE | P127: FALSE | Q127: FALSE | R127: FALSE | AX127: 908900
A128: 96 | B128: =IF(A128>$A$8,"",OFFSET(InputPriceData!B$15,$A128+$A$11,0,1,1)) -> 2020-08-31 | C128: =IF(A128>$A$8,"",OFFSET(InputPriceData!G$15,CalculationsAndCharts!$A128+$A$11,IF($C$5,8,0),1,1)) -> 1030400 | D128: =IF(A128>$A$8,"",OFFSET(InputPriceData!C$15,CalculationsAndCharts!$A128+$A$11,IF($C$5,8,0),1,1)) -> 389.45 | E128: =IF(A128>$A$8,"",OFFSET(InputPriceData!D$15,CalculationsAndCharts!$A128+$A$11,IF($C$5,8,0),1,1)) -> 392.26 | F128: =IF(A128>$A$8,"",OFFSET(InputPriceData!E$15,CalculationsAndCharts!$A128+$A$11,IF($C$5,8,0),1,1)) -> 385.77 | G128: =IF(A128>$A$8,"",OFFSET(InputPriceData!F$15,CalculationsAndCharts!$A128+$A$11,IF($C$5,8,0),1,1)) -> 387.55 | H128: 4.121329357 | I128: 42.98976575 | J128: 6.556658124 | K128: -6.556658124 | L128: 3.859021474 | M128: 370.4467313 | N128: TRUE | O128: FALSE | P128: FALSE | Q128: FALSE | R128: FALSE | AX128: 1030400
A129: 97 | B129: =IF(A129>$A$8,"",OFFSET(InputPriceData!B$15,$A129+$A$11,0,1,1)) -> 2020-08-28 | C129: =IF(A129>$A$8,"",OFFSET(InputPriceData!G$15,CalculationsAndCharts!$A129+$A$11,IF($C$5,8,0),1,1)) -> 728300 | D129: =IF(A129>$A$8,"",OFFSET(InputPriceData!C$15,CalculationsAndCharts!$A129+$A$11,IF($C$5,8,0),1,1)) -> 390.38 | E129: =IF(A129>$A$8,"",OFFSET(InputPriceData!D$15,CalculationsAndCharts!$A129+$A$11,IF($C$5,8,0),1,1)) -> 390.86 | F129: =IF(A129>$A$8,"",OFFSET(InputPriceData!E$15,CalculationsAndCharts!$A129+$A$11,IF($C$5,8,0),1,1)) -> 386.65 | G129: =IF(A129>$A$8,"",OFFSET(InputPriceData!F$15,CalculationsAndCharts!$A129+$A$11,IF($C$5,8,0),1,1)) -> 390.46 | H129: 4.387114022 | I129: 42.94098981 | J129: 6.552937495 | K129: -6.552937495 | L129: 3.596713592 | M129: 370.2748391 | N129: TRUE | O129: FALSE | P129: FALSE | Q129: FALSE | R129: FALSE | AW129: 728300
A130: 98 | B130: =IF(A130>$A$8,"",OFFSET(InputPriceData!B$15,$A130+$A$11,0,1,1)) -> 2020-08-27 | C130: =IF(A130>$A$8,"",OFFSET(InputPriceData!G$15,CalculationsAndCharts!$A130+$A$11,IF($C$5,8,0),1,1)) -> 700300 | D130: =IF(A130>$A$8,"",OFFSET(InputPriceData!C$15,CalculationsAndCharts!$A130+$A$11,IF($C$5,8,0),1,1)) -> 391.69 | E130: =IF(A130>$A$8,"",OFFSET(InputPriceData!D$15,CalculationsAndCharts!$A130+$A$11,IF($C$5,8,0),1,1)) -> 394.9 | F130: =IF(A130>$A$8,"",OFFSET(InputPriceData!E$15,CalculationsAndCharts!$A130+$A$11,IF($C$5,8,0),1,1)) -> 389.76 | G130: =IF(A130>$A$8,"",OFFSET(InputPriceData!F$15,CalculationsAndCharts!$A130+$A$11,IF($C$5,8,0),1,1)) -> 389.9 | H130: 3.484884678 | I130: 43.07748915 | J130: 6.563344357 | K130: -6.563344357 | L130: 2.806313161 | M130: 370.0719732 | N130: TRUE | O130: FALSE | P130: FALSE | Q130: FALSE | R130: FALSE | AX130: 700300
A131: 99 | B131: =IF(A131>$A$8,"",OFFSET(InputPriceData!B$15,$A131+$A$11,0,1,1)) -> 2020-08-26 | C131: =IF(A131>$A$8,"",OFFSET(InputPriceData!G$15,CalculationsAndCharts!$A131+$A$11,IF($C$5,8,0),1,1)) -> 908600 | D131: =IF(A131>$A$8,"",OFFSET(InputPriceData!C$15,CalculationsAndCharts!$A131+$A$11,IF($C$5,8,0),1,1)) -> 387.9 | E131: =IF(A131>$A$8,"",OFFSET(InputPriceData!D$15,CalculationsAndCharts!$A131+$A$11,IF($C$5,8,0),1,1)) -> 392.5 | F131: =IF(A131>$A$8,"",OFFSET(InputPriceData!E$15,CalculationsAndCharts!$A131+$A$11,IF($C$5,8,0),1,1)) -> 385.49 | G131: =IF(A131>$A$8,"",OFFSET(InputPriceData!F$15,CalculationsAndCharts!$A131+$A$11,IF($C$5,8,0),1,1)) -> 390.31 | H131: 2.100554567 | I131: 44.21587161 | J131: 6.649501606 | K131: -6.649501606 | L131: 2.127741645 | M131: 369.8726966 | N131: TRUE | O131: FALSE | P131: FALSE | Q131: FALSE | R131: FALSE | AW131: 908600
A132: 100 | B132: =IF(A132>$A$8,"",OFFSET(InputPriceData!B$15,$A132+$A$11,0,1,1)) -> 2020-08-25 | C132: =IF(A132>$A$8,"",OFFSET(InputPriceData!G$15,CalculationsAndCharts!$A132+$A$11,IF($C$5,8,0),1,1)) -> 987400 | D132: =IF(A132>$A$8,"",OFFSET(InputPriceData!C$15,CalculationsAndCharts!$A132+$A$11,IF($C$5,8,0),1,1)) -> 390.59 | E132: =IF(A132>$A$8,"",OFFSET(InputPriceData!D$15,CalculationsAndCharts!$A132+$A$11,IF($C$5,8,0),1,1)) -> 397.16 | F132: =IF(A132>$A$8,"",OFFSET(InputPriceData!E$15,CalculationsAndCharts!$A132+$A$11,IF($C$5,8,0),1,1)) -> 387.31 | G132: =IF(A132>$A$8,"",OFFSET(InputPriceData!F$15,CalculationsAndCharts!$A132+$A$11,IF($C$5,8,0),1,1)) -> 389.72 | H132: 2.117178493 | I132: 45.87586251 | J132: 6.773172263 | K132: -6.773172263 | L132: 2.154928722 | M132: 369.6672965 | N132: TRUE | O132: FALSE | P132: FALSE | Q132: FALSE | R132: FALSE | AX132: 987400
A133: 101 | B133: =IF(A133>$A$8,"",OFFSET(InputPriceData!B$15,$A133+$A$11,0,1,1)) -> 2020-08-24 | C133: =IF(A133>$A$8,"",OFFSET(InputPriceData!G$15,CalculationsAndCharts!$A133+$A$11,IF($C$5,8,0),1,1)) -> 1006400 | D133: =IF(A133>$A$8,"",OFFSET(InputPriceData!C$15,CalculationsAndCharts!$A133+$A$11,IF($C$5,8,0),1,1)) -> 385.76 | E133: =IF(A133>$A$8,"",OFFSET(InputPriceData!D$15,CalculationsAndCharts!$A133+$A$11,IF($C$5,8,0),1,1)) -> 390.44 | F133: =IF(A133>$A$8,"",OFFSET(InputPriceData!E$15,CalculationsAndCharts!$A133+$A$11,IF($C$5,8,0),1,1)) -> 384.84 | G133: =IF(A133>$A$8,"",OFFSET(InputPriceData!F$15,CalculationsAndCharts!$A133+$A$11,IF($C$5,8,0),1,1)) -> 389.92 | H133: 3.391403495 | I133: 47.01063593 | J133: 6.856430261 | K133: -6.856430261 | L133: 2.192678951 | M133: 369.4657618 | N133: TRUE | O133: FALSE | P133: FALSE | Q133: FALSE | R133: FALSE | AW133: 1006400
A134: 102 | B134: =IF(A134>$A$8,"",OFFSET(InputPriceData!B$15,$A134+$A$11,0,1,1)) -> 2020-08-21 | C134: =IF(A134>$A$8,"",OFFSET(InputPriceData!G$15,CalculationsAndCharts!$A134+$A$11,IF($C$5,8,0),1,1)) -> 996000 | D134: =IF(A134>$A$8,"",OFFSET(InputPriceData!C$15,CalculationsAndCharts!$A134+$A$11,IF($C$5,8,0),1,1)) -> 382.68 | E134: =IF(A134>$A$8,"",OFFSET(InputPriceData!D$15,CalculationsAndCharts!$A134+$A$11,IF($C$5,8,0),1,1)) -> 385.72 | F134: =IF(A134>$A$8,"",OFFSET(InputPriceData!E$15,CalculationsAndCharts!$A134+$A$11,IF($C$5,8,0),1,1)) -> 381.84 | G134: =IF(A134>$A$8,"",OFFSET(InputPriceData!F$15,CalculationsAndCharts!$A134+$A$11,IF($C$5,8,0),1,1)) -> 384.52 | H134: 0.870933893 | I134: 48.95580704 | J134: 6.996842648 | K134: -6.996842648 | L134: 0.9939544068 | M134: 369.2601916 | N134: TRUE | O134: FALSE | P134: FALSE | Q134: FALSE | R134: FALSE | AW134: 996000
A135: 103 | B135: =IF(A135>$A$8,"",OFFSET(InputPriceData!B$15,$A135+$A$11,0,1,1)) -> 2020-08-20 | C135: =IF(A135>$A$8,"",OFFSET(InputPriceData!G$15,CalculationsAndCharts!$A135+$A$11,IF($C$5,8,0),1,1)) -> 1203700 | D135: =IF(A135>$A$8,"",OFFSET(InputPriceData!C$15,CalculationsAndCharts!$A135+$A$11,IF($C$5,8,0),1,1)) -> 383.24 | E135: =IF(A135>$A$8,"",OFFSET(InputPriceData!D$15,CalculationsAndCharts!$A135+$A$11,IF($C$5,8,0),1,1)) -> 384.15 | F135: =IF(A135>$A$8,"",OFFSET(InputPriceData!E$15,CalculationsAndCharts!$A135+$A$11,IF($C$5,8,0),1,1)) -> 378.6 | G135: =IF(A135>$A$8,"",OFFSET(InputPriceData!F$15,CalculationsAndCharts!$A135+$A$11,IF($C$5,8,0),1,1)) -> 382.85 | H135: 0.06795786612 | I135: 50.996548 | J135: 7.141186736 | K135: -7.141186736 | L135: 1.116974921 | M135: 369.1068267 | N135: TRUE | O135: FALSE | P135: FALSE | Q135: FALSE | R135: FALSE | AX135: 1203700
A136: 104 | B136: =IF(A136>$A$8,"",OFFSET(InputPriceData!B$15,$A136+$A$11,0,1,1)) -> 2020-08-19 | C136: =IF(A136>$A$8,"",OFFSET(InputPriceData!G$15,CalculationsAndCharts!$A136+$A$11,IF($C$5,8,0),1,1)) -> 717400 | D136: =IF(A136>$A$8,"",OFFSET(InputPriceData!C$15,CalculationsAndCharts!$A136+$A$11,IF($C$5,8,0),1,1)) -> 385.02 | E136: =IF(A136>$A$8,"",OFFSET(InputPriceData!D$15,CalculationsAndCharts!$A136+$A$11,IF($C$5,8,0),1,1)) -> 386.89 | F136: =IF(A136>$A$8,"",OFFSET(InputPriceData!E$15,CalculationsAndCharts!$A136+$A$11,IF($C$5,8,0),1,1)) -> 383.8 | G136: =IF(A136>$A$8,"",OFFSET(InputPriceData!F$15,CalculationsAndCharts!$A136+$A$11,IF($C$5,8,0),1,1)) -> 384.99 | H136: -1.023215158 | I136: 53.98111258 | J136: 7.34718399 | K136: -7.34718399 | L136: 2.165991975 | M136: 368.9687043 | N136: TRUE | O136: FALSE | P136: FALSE | Q136: FALSE | R136: FALSE | AX136: 717400
A137: 105 | B137: =IF(A137>$A$8,"",OFFSET(InputPriceData!B$15,$A137+$A$11,0,1,1)) -> 2020-08-18 | C137: =IF(A137>$A$8,"",OFFSET(InputPriceData!G$15,CalculationsAndCharts!$A137+$A$11,IF($C$5,8,0),1,1)) -> 806100 | D137: =IF(A137>$A$8,"",OFFSET(InputPriceData!C$15,CalculationsAndCharts!$A137+$A$11,IF($C$5,8,0),1,1)) -> 384.12 | E137: =IF(A137>$A$8,"",OFFSET(InputPriceData!D$15,CalculationsAndCharts!$A137+$A$11,IF($C$5,8,0),1,1)) -> 386.83 | F137: =IF(A137>$A$8,"",OFFSET(InputPriceData!E$15,CalculationsAndCharts!$A137+$A$11,IF($C$5,8,0),1,1)) -> 383.3 | G137: =IF(A137>$A$8,"",OFFSET(InputPriceData!F$15,CalculationsAndCharts!$A137+$A$11,IF($C$5,8,0),1,1)) -> 385.2 | H137: 4.037812289 | I137: 55.74141164 | J137: 7.46601712 | K137: -7.46601712 | L137: 5.355199108 | M137: 368.8076863 | N137: TRUE | O137: FALSE | P137: FALSE | Q137: FALSE | R137: FALSE | AW137: 806100
A138: 106 | B138: =IF(A138>$A$8,"",OFFSET(InputPriceData!B$15,$A138+$A$11,0,1,1)) -> 2020-08-17 | C138: =IF(A138>$A$8,"",OFFSET(InputPriceData!G$15,CalculationsAndCharts!$A138+$A$11,IF($C$5,8,0),1,1)) -> 864100 | D138: =IF(A138>$A$8,"",OFFSET(InputPriceData!C$15,CalculationsAndCharts!$A138+$A$11,IF($C$5,8,0),1,1)) -> 388.87 | E138: =IF(A138>$A$8,"",OFFSET(InputPriceData!D$15,CalculationsAndCharts!$A138+$A$11,IF($C$5,8,0),1,1)) -> 390.06 | F138: =IF(A138>$A$8,"",OFFSET(InputPriceData!E$15,CalculationsAndCharts!$A138+$A$11,IF($C$5,8,0),1,1)) -> 382.7 | G138: =IF(A138>$A$8,"",OFFSET(InputPriceData!F$15,CalculationsAndCharts!$A138+$A$11,IF($C$5,8,0),1,1)) -> 383.92 | H138: 6.410931567 | I138: 54.92871668 | J138: 7.411391008 | K138: -7.411391008 | L138: 6.672585928 | M138: 368.6429394 | N138: TRUE | O138: FALSE | P138: FALSE | Q138: FALSE | R138: FALSE | AX138: 864100
A139: 107 | B139: =IF(A139>$A$8,"",OFFSET(InputPriceData!B$15,$A139+$A$11,0,1,1)) -> 2020-08-14 | C139: =IF(A139>$A$8,"",OFFSET(InputPriceData!G$15,CalculationsAndCharts!$A139+$A$11,IF($C$5,8,0),1,1)) -> 648600 | D139: =IF(A139>$A$8,"",OFFSET(InputPriceData!C$15,CalculationsAndCharts!$A139+$A$11,IF($C$5,8,0),1,1)) -> 383.6 | E139: =IF(A139>$A$8,"",OFFSET(InputPriceData!D$15,CalculationsAndCharts!$A139+$A$11,IF($C$5,8,0),1,1)) -> 389.09 | F139: =IF(A139>$A$8,"",OFFSET(InputPriceData!E$15,CalculationsAndCharts!$A139+$A$11,IF($C$5,8,0),1,1)) -> 382.99 | G139: =IF(A139>$A$8,"",OFFSET(InputPriceData!F$15,CalculationsAndCharts!$A139+$A$11,IF($C$5,8,0),1,1)) -> 386.34 | H139: 6.219069614 | I139: 53.03411821 | J139: 7.282452761 | K139: -7.282452761 | L139: 6.934240288 | M139: 368.4894011 | N139: TRUE | O139: FALSE | P139: TRUE | Q139: FALSE | R139: TRUE | AW139: 648600
A140: 108 | B140: =IF(A140>$A$8,"",OFFSET(InputPriceData!B$15,$A140+$A$11,0,1,1)) -> 2020-08-13 | C140: =IF(A140>$A$8,"",OFFSET(InputPriceData!G$15,CalculationsAndCharts!$A140+$A$11,IF($C$5,8,0),1,1)) -> 1053600 | D140: =IF(A140>$A$8,"",OFFSET(InputPriceData!C$15,CalculationsAndCharts!$A140+$A$11,IF($C$5,8,0),1,1)) -> 385.29 | E140: =IF(A140>$A$8,"",OFFSET(InputPriceData!D$15,CalculationsAndCharts!$A140+$A$11,IF($C$5,8,0),1,1)) -> 388.94 | F140: =IF(A140>$A$8,"",OFFSET(InputPriceData!E$15,CalculationsAndCharts!$A140+$A$11,IF($C$5,8,0),1,1)) -> 381.98 | G140: =IF(A140>$A$8,"",OFFSET(InputPriceData!F$15,CalculationsAndCharts!$A140+$A$11,IF($C$5,8,0),1,1)) -> 384.19 | H140: 6.385512142 | I140: 51.44173302 | J140: 7.172289245 | K140: -7.172289245 | L140: 7.649410962 | M140: 368.3099981 | N140: TRUE | O140: FALSE | P140: FALSE | Q140: FALSE | R140: FALSE | AX140: 1053600
A141: 109 | B141: =IF(A141>$A$8,"",OFFSET(InputPriceData!B$15,$A141+$A$11,0,1,1)) -> 2020-08-12 | C141: =IF(A141>$A$8,"",OFFSET(InputPriceData!G$15,CalculationsAndCharts!$A141+$A$11,IF($C$5,8,0),1,1)) -> 878500 | D141: =IF(A141>$A$8,"",OFFSET(InputPriceData!C$15,CalculationsAndCharts!$A141+$A$11,IF($C$5,8,0),1,1)) -> 388.91 | E141: =IF(A141>$A$8,"",OFFSET(InputPriceData!D$15,CalculationsAndCharts!$A141+$A$11,IF($C$5,8,0),1,1)) -> 391.38 | F141: =IF(A141>$A$8,"",OFFSET(InputPriceData!E$15,CalculationsAndCharts!$A141+$A$11,IF($C$5,8,0),1,1)) -> 386.21 | G141: =IF(A141>$A$8,"",OFFSET(InputPriceData!F$15,CalculationsAndCharts!$A141+$A$11,IF($C$5,8,0),1,1)) -> 387.35 | H141: 7.648056026 | I141: 50.30511993 | J141: 7.092610234 | K141: -7.092610234 | L141: 8.913309782 | M141: 368.1504001 | N141: TRUE | O141: FALSE | P141: FALSE | Q141: FALSE | R141: FALSE | AX141: 878500
A142: 110 | B142: =IF(A142>$A$8,"",OFFSET(InputPriceData!B$15,$A142+$A$11,0,1,1)) -> 2020-08-11 | C142: =IF(A142>$A$8,"",OFFSET(InputPriceData!G$15,CalculationsAndCharts!$A142+$A$11,IF($C$5,8,0),1,1)) -> 1312800 | D142: =IF(A142>$A$8,"",OFFSET(InputPriceData!C$15,CalculationsAndCharts!$A142+$A$11,IF($C$5,8,0),1,1)) -> 386.43 | E142: =IF(A142>$A$8,"",OFFSET(InputPriceData!D$15,CalculationsAndCharts!$A142+$A$11,IF($C$5,8,0),1,1)) -> 394.31 | F142: =IF(A142>$A$8,"",OFFSET(InputPriceData!E$15,CalculationsAndCharts!$A142+$A$11,IF($C$5,8,0),1,1)) -> 386.25 | G142: =IF(A142>$A$8,"",OFFSET(InputPriceData!F$15,CalculationsAndCharts!$A142+$A$11,IF($C$5,8,0),1,1)) -> 386.88 | H142: 10.20652329 | I142: 48.51288872 | J142: 6.965119433 | K142: -6.965119433 | L142: 10.17856354 | M142: 367.9574393 | N142: TRUE | O142: FALSE | P142: FALSE | Q142: FALSE | R142: FALSE | AW142: 1312800
A143: 111 | B143: =IF(A143>$A$8,"",OFFSET(InputPriceData!B$15,$A143+$A$11,0,1,1)) -> 2020-08-10 | C143: =IF(A143>$A$8,"",OFFSET(InputPriceData!G$15,CalculationsAndCharts!$A143+$A$11,IF($C$5,8,0),1,1)) -> 856000 | D143: =IF(A143>$A$8,"",OFFSET(InputPriceData!C$15,CalculationsAndCharts!$A143+$A$11,IF($C$5,8,0),1,1)) -> 381.01 | E143: =IF(A143>$A$8,"",OFFSET(InputPriceData!D$15,CalculationsAndCharts!$A143+$A$11,IF($C$5,8,0),1,1)) -> 386.04 | F143: =IF(A143>$A$8,"",OFFSET(InputPriceData!E$15,CalculationsAndCharts!$A143+$A$11,IF($C$5,8,0),1,1)) -> 380.95 | G143: =IF(A143>$A$8,"",OFFSET(InputPriceData!F$15,CalculationsAndCharts!$A143+$A$11,IF($C$5,8,0),1,1)) -> 384.21 | H143: 10.25309917 | I143: 44.41810569 | J143: 6.664690967 | K143: -6.664690967 | L143: 10.15060379 | M143: 367.7672628 | N143: TRUE | O143: FALSE | P143: FALSE | Q143: FALSE | R143: FALSE | AW143: 856000
A144: 112 | B144: =IF(A144>$A$8,"",OFFSET(InputPriceData!B$15,$A144+$A$11,0,1,1)) -> 2020-08-07 | C144: =IF(A144>$A$8,"",OFFSET(InputPriceData!G$15,CalculationsAndCharts!$A144+$A$11,IF($C$5,8,0),1,1)) -> 924300 | D144: =IF(A144>$A$8,"",OFFSET(InputPriceData!C$15,CalculationsAndCharts!$A144+$A$11,IF($C$5,8,0),1,1)) -> 375.08 | E144: =IF(A144>$A$8,"",OFFSET(InputPriceData!D$15,CalculationsAndCharts!$A144+$A$11,IF($C$5,8,0),1,1)) -> 381.64 | F144: =IF(A144>$A$8,"",OFFSET(InputPriceData!E$15,CalculationsAndCharts!$A144+$A$11,IF($C$5,8,0),1,1)) -> 373.85 | G144: =IF(A144>$A$8,"",OFFSET(InputPriceData!F$15,CalculationsAndCharts!$A144+$A$11,IF($C$5,8,0),1,1)) -> 380.62 | H144: 10.41424925 | I144: 42.00843226 | J144: 6.481391229 | K144: -6.481391229 | L144: 10.0481084 | M144: 367.6020092 | N144: TRUE | O144: FALSE | P144: FALSE | Q144: FALSE | R144: FALSE | AW144: 924300
A145: 113 | B145: =IF(A145>$A$8,"",OFFSET(InputPriceData!B$15,$A145+$A$11,0,1,1)) -> 2020-08-06 | C145: =IF(A145>$A$8,"",OFFSET(InputPriceData!G$15,CalculationsAndCharts!$A145+$A$11,IF($C$5,8,0),1,1)) -> 698500 | D145: =IF(A145>$A$8,"",OFFSET(InputPriceData!C$15,CalculationsAndCharts!$A145+$A$11,IF($C$5,8,0),1,1)) -> 376.83 | E145: =IF(A145>$A$8,"",OFFSET(InputPriceData!D$15,CalculationsAndCharts!$A145+$A$11,IF($C$5,8,0),1,1)) -> 378.22 | F145: =IF(A145>$A$8,"",OFFSET(InputPriceData!E$15,CalculationsAndCharts!$A145+$A$11,IF($C$5,8,0),1,1)) -> 373.19 | G145: =IF(A145>$A$8,"",OFFSET(InputPriceData!F$15,CalculationsAndCharts!$A145+$A$11,IF($C$5,8,0),1,1)) -> 374.81 | H145: 11.70019371 | I145: 40.65438947 | J145: 6.376079475 | K145: -6.376079475 | L145: 9.681967563 | M145: 367.4711751 | N145: TRUE | O145: FALSE | P145: FALSE | Q145: FALSE | R145: FALSE | AX145: 698500
A146: 114 | B146: =IF(A146>$A$8,"",OFFSET(InputPriceData!B$15,$A146+$A$11,0,1,1)) -> 2020-08-05 | C146: =IF(A146>$A$8,"",OFFSET(InputPriceData!G$15,CalculationsAndCharts!$A146+$A$11,IF($C$5,8,0),1,1)) -> 1018500 | D146: =IF(A146>$A$8,"",OFFSET(InputPriceData!C$15,CalculationsAndCharts!$A146+$A$11,IF($C$5,8,0),1,1)) -> 375.07 | E146: =IF(A146>$A$8,"",OFFSET(InputPriceData!D$15,CalculationsAndCharts!$A146+$A$11,IF($C$5,8,0),1,1)) -> 379.88 | F146: =IF(A146>$A$8,"",OFFSET(InputPriceData!E$15,CalculationsAndCharts!$A146+$A$11,IF($C$5,8,0),1,1)) -> 373.36 | G146: =IF(A146>$A$8,"",OFFSET(InputPriceData!F$15,CalculationsAndCharts!$A146+$A$11,IF($C$5,8,0),1,1)) -> 378.53 | H146: 9.499840898 | I146: 46.29652386 | J146: 6.804154897 | K146: -6.804154897 | L146: 7.663741414 | M146: 367.3974181 | N146: TRUE | O146: FALSE | P146: FALSE | Q146: FALSE | R146: FALSE | AW146: 1018500
A147: 115 | B147: =IF(A147>$A$8,"",OFFSET(InputPriceData!B$15,$A147+$A$11,0,1,1)) -> 2020-08-04 | C147: =IF(A147>$A$8,"",OFFSET(InputPriceData!G$15,CalculationsAndCharts!$A147+$A$11,IF($C$5,8,0),1,1)) -> 900600 | D147: =IF(A147>$A$8,"",OFFSET(InputPriceData!C$15,CalculationsAndCharts!$A147+$A$11,IF($C$5,8,0),1,1)) -> 374.16 | E147: =IF(A147>$A$8,"",OFFSET(InputPriceData!D$15,CalculationsAndCharts!$A147+$A$11,IF($C$5,8,0),1,1)) -> 375.9 | F147: =IF(A147>$A$8,"",OFFSET(InputPriceData!E$15,CalculationsAndCharts!$A147+$A$11,IF($C$5,8,0),1,1)) -> 371.41 | G147: =IF(A147>$A$8,"",OFFSET(InputPriceData!F$15,CalculationsAndCharts!$A147+$A$11,IF($C$5,8,0),1,1)) -> 373.09 | H147: 6.997619662 | I147: 51.97459707 | J147: 7.209340959 | K147: -7.209340959 | L147: 5.82764193 | M147: 367.2855328 | N147: TRUE | O147: FALSE | P147: FALSE | Q147: FALSE | R147: FALSE | AX147: 900600
A148: 116 | B148: =IF(A148>$A$8,"",OFFSET(InputPriceData!B$15,$A148+$A$11,0,1,1)) -> 2020-08-03 | C148: =IF(A148>$A$8,"",OFFSET(InputPriceData!G$15,CalculationsAndCharts!$A148+$A$11,IF($C$5,8,0),1,1)) -> 923100 | D148: =IF(A148>$A$8,"",OFFSET(InputPriceData!C$15,CalculationsAndCharts!$A148+$A$11,IF($C$5,8,0),1,1)) -> 371.95 | E148: =IF(A148>$A$8,"",OFFSET(InputPriceData!D$15,CalculationsAndCharts!$A148+$A$11,IF($C$5,8,0),1,1)) -> 373.5 | F148: =IF(A148>$A$8,"",OFFSET(InputPriceData!E$15,CalculationsAndCharts!$A148+$A$11,IF($C$5,8,0),1,1)) -> 366.62 | G148: =IF(A148>$A$8,"",OFFSET(InputPriceData!F$15,CalculationsAndCharts!$A148+$A$11,IF($C$5,8,0),1,1)) -> 372.21 | H148: 4.001229428 | I148: 60.37656901 | J148: 7.770236097 | K148: -7.770236097 | L148: 4.657664199 | M148: 367.2271965 | N148: TRUE | O148: FALSE | P148: FALSE | Q148: FALSE | R148: FALSE | AW148: 923100
A149: 117 | B149: =IF(A149>$A$8,"",OFFSET(InputPriceData!B$15,$A149+$A$11,0,1,1)) -> 2020-07-31 | C149: =IF(A149>$A$8,"",OFFSET(InputPriceData!G$15,CalculationsAndCharts!$A149+$A$11,IF($C$5,8,0),1,1)) -> 1101800 | D149: =IF(A149>$A$8,"",OFFSET(InputPriceData!C$15,CalculationsAndCharts!$A149+$A$11,IF($C$5,8,0),1,1)) -> 375.61 | E149: =IF(A149>$A$8,"",OFFSET(InputPriceData!D$15,CalculationsAndCharts!$A149+$A$11,IF($C$5,8,0),1,1)) -> 376.42 | F149: =IF(A149>$A$8,"",OFFSET(InputPriceData!E$15,CalculationsAndCharts!$A149+$A$11,IF($C$5,8,0),1,1)) -> 368.83 | G149: =IF(A149>$A$8,"",OFFSET(InputPriceData!F$15,CalculationsAndCharts!$A149+$A$11,IF($C$5,8,0),1,1)) -> 374.05 | H149: 4.687937308 | I149: 66.44826931 | J149: 8.151580786 | K149: -8.151580786 | L149: 5.31409897 | M149: 367.177118 | N149: TRUE | O149: FALSE | P149: FALSE | Q149: FALSE | R149: FALSE | AX149: 1101800
A150: 118 | B150: =IF(A150>$A$8,"",OFFSET(InputPriceData!B$15,$A150+$A$11,0,1,1)) -> 2020-07-30 | C150: =IF(A150>$A$8,"",OFFSET(InputPriceData!G$15,CalculationsAndCharts!$A150+$A$11,IF($C$5,8,0),1,1)) -> 983300 | D150: =IF(A150>$A$8,"",OFFSET(InputPriceData!C$15,CalculationsAndCharts!$A150+$A$11,IF($C$5,8,0),1,1)) -> 377.75 | E150: =IF(A150>$A$8,"",OFFSET(InputPriceData!D$15,CalculationsAndCharts!$A150+$A$11,IF($C$5,8,0),1,1)) -> 380.84 | F150: =IF(A150>$A$8,"",OFFSET(InputPriceData!E$15,CalculationsAndCharts!$A150+$A$11,IF($C$5,8,0),1,1)) -> 375.92 | G150: =IF(A150>$A$8,"",OFFSET(InputPriceData!F$15,CalculationsAndCharts!$A150+$A$11,IF($C$5,8,0),1,1)) -> 376.77 | H150: 5.90864371 | I150: 70.67766637 | J150: 8.407001033 | K150: -8.407001033 | L150: 5.940260632 | M150: 367.1080438 | N150: TRUE | O150: FALSE | P150: FALSE | Q150: FALSE | R150: FALSE | AX150: 983300
A151: 119 | B151: =IF(A151>$A$8,"",OFFSET(InputPriceData!B$15,$A151+$A$11,0,1,1)) -> 2020-07-29 | C151: =IF(A151>$A$8,"",OFFSET(InputPriceData!G$15,CalculationsAndCharts!$A151+$A$11,IF($C$5,8,0),1,1)) -> 1209600 | D151: =IF(A151>$A$8,"",OFFSET(InputPriceData!C$15,CalculationsAndCharts!$A151+$A$11,IF($C$5,8,0),1,1)) -> 384.51 | E151: =IF(A151>$A$8,"",OFFSET(InputPriceData!D$15,CalculationsAndCharts!$A151+$A$11,IF($C$5,8,0),1,1)) -> 385.41 | F151: =IF(A151>$A$8,"",OFFSET(InputPriceData!E$15,CalculationsAndCharts!$A151+$A$11,IF($C$5,8,0),1,1)) -> 379.64 | G151: =IF(A151>$A$8,"",OFFSET(InputPriceData!F$15,CalculationsAndCharts!$A151+$A$11,IF($C$5,8,0),1,1)) -> 382.28 | H151: 6.132874316 | I151: 74.42659797 | J151: 8.627085137 | K151: -8.627085137 | L151: 5.971877553 | M151: 367.0109388 | N151: TRUE | O151: FALSE | P151: FALSE | Q151: FALSE | R151: FALSE | AX151: 1209600
A152: 120 | B152: =IF(A152>$A$8,"",OFFSET(InputPriceData!B$15,$A152+$A$11,0,1,1)) -> 2020-07-28 | C152: =IF(A152>$A$8,"",OFFSET(InputPriceData!G$15,CalculationsAndCharts!$A152+$A$11,IF($C$5,8,0),1,1)) -> 1132100 | D152: =IF(A152>$A$8,"",OFFSET(InputPriceData!C$15,CalculationsAndCharts!$A152+$A$11,IF($C$5,8,0),1,1)) -> 377.05 | E152: =IF(A152>$A$8,"",OFFSET(InputPriceData!D$15,CalculationsAndCharts!$A152+$A$11,IF($C$5,8,0),1,1)) -> 385.15 | F152: =IF(A152>$A$8,"",OFFSET(InputPriceData!E$15,CalculationsAndCharts!$A152+$A$11,IF($C$5,8,0),1,1)) -> 377.05 | G152: =IF(A152>$A$8,"",OFFSET(InputPriceData!F$15,CalculationsAndCharts!$A152+$A$11,IF($C$5,8,0),1,1)) -> 381.64 | H152: 5.213244011 | I152: 74.5771499 | J152: 8.635806268 | K152: -8.635806268 | L152: 5.810880789 | M152: 366.8574808 | N152: TRUE | O152: FALSE | P152: FALSE | Q152: FALSE | R152: FALSE | AW152: 1132100
A153: 121 | B153: =IF(A153>$A$8,"",OFFSET(InputPriceData!B$15,$A153+$A$11,0,1,1)) -> 2020-07-27 | C153: =IF(A153>$A$8,"",OFFSET(InputPriceData!G$15,CalculationsAndCharts!$A153+$A$11,IF($C$5,8,0),1,1)) -> 1047000 | D153: =IF(A153>$A$8,"",OFFSET(InputPriceData!C$15,CalculationsAndCharts!$A153+$A$11,IF($C$5,8,0),1,1)) -> 379.74 | E153: =IF(A153>$A$8,"",OFFSET(InputPriceData!D$15,CalculationsAndCharts!$A153+$A$11,IF($C$5,8,0),1,1)) -> 380.98 | F153: =IF(A153>$A$8,"",OFFSET(InputPriceData!E$15,CalculationsAndCharts!$A153+$A$11,IF($C$5,8,0),1,1)) -> 375.18 | G153: =IF(A153>$A$8,"",OFFSET(InputPriceData!F$15,CalculationsAndCharts!$A153+$A$11,IF($C$5,8,0),1,1)) -> 377.13 | H153: 7.099650697 | I153: 74.74143149 | J153: 8.645312689 | K153: -8.645312689 | L153: 6.408517567 | M153: 366.7089128 | N153: TRUE | O153: FALSE | P153: FALSE | Q153: FALSE | R153: FALSE | AX153: 1047000
A154: 122 | B154: =IF(A154>$A$8,"",OFFSET(InputPriceData!B$15,$A154+$A$11,0,1,1)) -> 2020-07-24 | C154: =IF(A154>$A$8,"",OFFSET(InputPriceData!G$15,CalculationsAndCharts!$A154+$A$11,IF($C$5,8,0),1,1)) -> 1305700 | D154: =IF(A154>$A$8,"",OFFSET(InputPriceData!C$15,CalculationsAndCharts!$A154+$A$11,IF($C$5,8,0),1,1)) -> 382.97 | E154: =IF(A154>$A$8,"",OFFSET(InputPriceData!D$15,CalculationsAndCharts!$A154+$A$11,IF($C$5,8,0),1,1)) -> 388.39 | F154: =IF(A154>$A$8,"",OFFSET(InputPriceData!E$15,CalculationsAndCharts!$A154+$A$11,IF($C$5,8,0),1,1)) -> 378.63 | G154: =IF(A154>$A$8,"",OFFSET(InputPriceData!F$15,CalculationsAndCharts!$A154+$A$11,IF($C$5,8,0),1,1)) -> 381.2 | H154: 6.447739521 | I154: 75.54717416 | J154: 8.691787743 | K154: -8.691787743 | L154: 5.717384437 | M154: 366.6041783 | N154: TRUE | O154: FALSE | P154: FALSE | Q154: FALSE | R154: FALSE | AX154: 1305700
A155: 123 | B155: =IF(A155>$A$8,"",OFFSET(InputPriceData!B$15,$A155+$A$11,0,1,1)) -> 2020-07-23 | C155: =IF(A155>$A$8,"",OFFSET(InputPriceData!G$15,CalculationsAndCharts!$A155+$A$11,IF($C$5,8,0),1,1)) -> 1442800 | D155: =IF(A155>$A$8,"",OFFSET(InputPriceData!C$15,CalculationsAndCharts!$A155+$A$11,IF($C$5,8,0),1,1)) -> 388.66 | E155: =IF(A155>$A$8,"",OFFSET(InputPriceData!D$15,CalculationsAndCharts!$A155+$A$11,IF($C$5,8,0),1,1)) -> 389.04 | F155: =IF(A155>$A$8,"",OFFSET(InputPriceData!E$15,CalculationsAndCharts!$A155+$A$11,IF($C$5,8,0),1,1)) -> 380.71 | G155: =IF(A155>$A$8,"",OFFSET(InputPriceData!F$15,CalculationsAndCharts!$A155+$A$11,IF($C$5,8,0),1,1)) -> 382.59 | H155: 7.726312826 | I155: 76.9867148 | J155: 8.77420736 | K155: -8.77420736 | L155: 4.987029352 | M155: 366.4574866 | N155: TRUE | O155: FALSE | P155: FALSE | Q155: FALSE | R155: FALSE | AX155: 1442800
A156: 124 | B156: =IF(A156>$A$8,"",OFFSET(InputPriceData!B$15,$A156+$A$11,0,1,1)) -> 2020-07-22 | C156: =IF(A156>$A$8,"",OFFSET(InputPriceData!G$15,CalculationsAndCharts!$A156+$A$11,IF($C$5,8,0),1,1)) -> 2280700 | D156: =IF(A156>$A$8,"",OFFSET(InputPriceData!C$15,CalculationsAndCharts!$A156+$A$11,IF($C$5,8,0),1,1)) -> 371.82 | E156: =IF(A156>$A$8,"",OFFSET(InputPriceData!D$15,CalculationsAndCharts!$A156+$A$11,IF($C$5,8,0),1,1)) -> 389.55 | F156: =IF(A156>$A$8,"",OFFSET(InputPriceData!E$15,CalculationsAndCharts!$A156+$A$11,IF($C$5,8,0),1,1)) -> 370.75 | G156: =IF(A156>$A$8,"",OFFSET(InputPriceData!F$15,CalculationsAndCharts!$A156+$A$11,IF($C$5,8,0),1,1)) -> 388.97 | H156: 6.021042303 | I156: 77.91339251 | J156: 8.826856321 | K156: -8.826856321 | L156: 2.247745878 | M156: 366.2953508 | N156: TRUE | O156: FALSE | P156: FALSE | Q156: FALSE | R156: FALSE | AW156: 2280700
A157: 125 | B157: =IF(A157>$A$8,"",OFFSET(InputPriceData!B$15,$A157+$A$11,0,1,1)) -> 2020-07-21 | C157: =IF(A157>$A$8,"",OFFSET(InputPriceData!G$15,CalculationsAndCharts!$A157+$A$11,IF($C$5,8,0),1,1)) -> 1998100 | D157: =IF(A157>$A$8,"",OFFSET(InputPriceData!C$15,CalculationsAndCharts!$A157+$A$11,IF($C$5,8,0),1,1)) -> 373.08 | E157: =IF(A157>$A$8,"",OFFSET(InputPriceData!D$15,CalculationsAndCharts!$A157+$A$11,IF($C$5,8,0),1,1)) -> 373.99 | F157: =IF(A157>$A$8,"",OFFSET(InputPriceData!E$15,CalculationsAndCharts!$A157+$A$11,IF($C$5,8,0),1,1)) -> 365.77 | G157: =IF(A157>$A$8,"",OFFSET(InputPriceData!F$15,CalculationsAndCharts!$A157+$A$11,IF($C$5,8,0),1,1)) -> 370.25 | H157: -0.2236714455 | I157: 76.11183828 | J157: 8.724209895 | K157: -8.724209895 | L157: -1.525550547 | M157: 366.0674649 | N157: TRUE | O157: FALSE | P157: FALSE | Q157: FALSE | R157: FALSE | AX157: 1998100
A158: 126 | B158: =IF(A158>$A$8,"",OFFSET(InputPriceData!B$15,$A158+$A$11,0,1,1)) -> 2020-07-20 | C158: =IF(A158>$A$8,"",OFFSET(InputPriceData!G$15,CalculationsAndCharts!$A158+$A$11,IF($C$5,8,0),1,1)) -> 1444500 | D158: =IF(A158>$A$8,"",OFFSET(InputPriceData!C$15,CalculationsAndCharts!$A158+$A$11,IF($C$5,8,0),1,1)) -> 364.21 | E158: =IF(A158>$A$8,"",OFFSET(InputPriceData!D$15,CalculationsAndCharts!$A158+$A$11,IF($C$5,8,0),1,1)) -> 364.21 | F158: =IF(A158>$A$8,"",OFFSET(InputPriceData!E$15,CalculationsAndCharts!$A158+$A$11,IF($C$5,8,0),1,1)) -> 357.73 | G158: =IF(A158>$A$8,"",OFFSET(InputPriceData!F$15,CalculationsAndCharts!$A158+$A$11,IF($C$5,8,0),1,1)) -> 360.79 | H158: -1.79110978 | I158: 76.42249322 | J158: 8.741995952 | K158: -8.741995952 | L158: -2.827429649 | M158: 366.0254293 | N158: FALSE | O158: FALSE | P158: FALSE | Q158: FALSE | R158: FALSE | AX158: 1444500
A159: 127 | B159: =IF(A159>$A$8,"",OFFSET(InputPriceData!B$15,$A159+$A$11,0,1,1)) -> 2020-07-17 | C159: =IF(A159>$A$8,"",OFFSET(InputPriceData!G$15,CalculationsAndCharts!$A159+$A$11,IF($C$5,8,0),1,1)) -> 1135500 | D159: =IF(A159>$A$8,"",OFFSET(InputPriceData!C$15,CalculationsAndCharts!$A159+$A$11,IF($C$5,8,0),1,1)) -> 361.55 | E159: =IF(A159>$A$8,"",OFFSET(InputPriceData!D$15,CalculationsAndCharts!$A159+$A$11,IF($C$5,8,0),1,1)) -> 364.21 | F159: =IF(A159>$A$8,"",OFFSET(InputPriceData!E$15,CalculationsAndCharts!$A159+$A$11,IF($C$5,8,0),1,1)) -> 358.14 | G159: =IF(A159>$A$8,"",OFFSET(InputPriceData!F$15,CalculationsAndCharts!$A159+$A$11,IF($C$5,8,0),1,1)) -> 363.72 | H159: -2.613259077 | I159: 76.37887453 | J159: 8.739500817 | K159: -8.739500817 | L159: -3.863749517 | M159: 366.0780467 | N159: FALSE | O159: FALSE | P159: FALSE | Q159: FALSE | R159: FALSE | AW159: 1135500
A160: 128 | B160: =IF(A160>$A$8,"",OFFSET(InputPriceData!B$15,$A160+$A$11,0,1,1)) -> 2020-07-16 | C160: =IF(A160>$A$8,"",OFFSET(InputPriceData!G$15,CalculationsAndCharts!$A160+$A$11,IF($C$5,8,0),1,1)) -> 955400 | D160: =IF(A160>$A$8,"",OFFSET(InputPriceData!C$15,CalculationsAndCharts!$A160+$A$11,IF($C$5,8,0),1,1)) -> 357.6 | E160: =IF(A160>$A$8,"",OFFSET(InputPriceData!D$15,CalculationsAndCharts!$A160+$A$11,IF($C$5,8,0),1,1)) -> 361.19 | F160: =IF(A160>$A$8,"",OFFSET(InputPriceData!E$15,CalculationsAndCharts!$A160+$A$11,IF($C$5,8,0),1,1)) -> 354.36 | G160: =IF(A160>$A$8,"",OFFSET(InputPriceData!F$15,CalculationsAndCharts!$A160+$A$11,IF($C$5,8,0),1,1)) -> 361.13 | H160: -4.247646825 | I160: 77.29410521 | J160: 8.791706615 | K160: -8.791706615 | L160: -5.114239958 | M160: 366.1017457 | N160: FALSE | O160: FALSE | P160: FALSE | Q160: FALSE | R160: FALSE | AW160: 955400
A161: 129 | B161: =IF(A161>$A$8,"",OFFSET(InputPriceData!B$15,$A161+$A$11,0,1,1)) -> 2020-07-15 | C161: =IF(A161>$A$8,"",OFFSET(InputPriceData!G$15,CalculationsAndCharts!$A161+$A$11,IF($C$5,8,0),1,1)) -> 1617300 | D161: =IF(A161>$A$8,"",OFFSET(InputPriceData!C$15,CalculationsAndCharts!$A161+$A$11,IF($C$5,8,0),1,1)) -> 356.95 | E161: =IF(A161>$A$8,"",OFFSET(InputPriceData!D$15,CalculationsAndCharts!$A161+$A$11,IF($C$5,8,0),1,1)) -> 360.84 | F161: =IF(A161>$A$8,"",OFFSET(InputPriceData!E$15,CalculationsAndCharts!$A161+$A$11,IF($C$5,8,0),1,1)) -> 355.88 | G161: =IF(A161>$A$8,"",OFFSET(InputPriceData!F$15,CalculationsAndCharts!$A161+$A$11,IF($C$5,8,0),1,1)) -> 359.83 | H161: =IF(A161<=$H$30,(G161-OFFSET(G161,$A$17,0,1,1))/OFFSET(G161,$A$17,0,1,1)*100,NA()) -> -4.75900585 | I161: =IF(A161<=$I$30,SUMSQ(OFFSET(H161,0,0,$A$19,1))/$A$19,NA()) -> 76.99913777 | J161: =IF(A161<=$I$30,SQRT(I161),NA()) -> 8.774915257 | K161: -8.774915257 | L161: =IF(A161<$L$30,$D$18*H161+$E$18*L162,IF(A161=$L$30,AVERAGE(OFFSET(H161,0,0,$A$18,1)),NA())) -> -5.980833091 | M161: 366.151713 | N161: FALSE | O161: FALSE | P161: FALSE | Q161: FALSE | R161: FALSE | AW161: =IF(G161>=D161,C161,NA()) -> 1617300 | AX161: =IF(G161<D161,C161,NA()) -> 
A162: 130 | B162: =IF(A162>$A$8,"",OFFSET(InputPriceData!B$15,$A162+$A$11,0,1,1)) -> 2020-07-14 | C162: =IF(A162>$A$8,"",OFFSET(InputPriceData!G$15,CalculationsAndCharts!$A162+$A$11,IF($C$5,8,0),1,1)) -> 1651900 | D162: =IF(A162>$A$8,"",OFFSET(InputPriceData!C$15,CalculationsAndCharts!$A162+$A$11,IF($C$5,8,0),1,1)) -> 344.6 | E162: =IF(A162>$A$8,"",OFFSET(InputPriceData!D$15,CalculationsAndCharts!$A162+$A$11,IF($C$5,8,0),1,1)) -> 351.3 | F162: =IF(A162>$A$8,"",OFFSET(InputPriceData!E$15,CalculationsAndCharts!$A162+$A$11,IF($C$5,8,0),1,1)) -> 344.47 | G162: =IF(A162>$A$8,"",OFFSET(InputPriceData!F$15,CalculationsAndCharts!$A162+$A$11,IF($C$5,8,0),1,1)) -> 351.05 | H162: -4.719900119 | I162: 76.06683894 | J162: 8.721630521 | K162: =-J162 -> -8.721630521 | L162: -7.202660332 | M162: =IF(A162<$M$30,$D$22*G162+$E$22*M163,IF(A162=$M$30,AVERAGE(OFFSET(G162,0,0,$A$22,1)),NA())) -> 366.2152478 | N162: =IF(A162<=$M$30,G162>=M162,NA()) -> FALSE | O162: =IF(A162<=$O$30,AND(L163<K163,L162>K162),NA()) -> TRUE | P162: =IF($A162<=$O$30,AND($L163>$J163,$L162<$J162),NA()) -> FALSE | Q162: =IF($A162<=$O$30,AND(OR(NOT($R$8),N162),O162),NA()) -> TRUE | R162: =IF($A162<=$O$30,AND(OR(NOT($R$8),NOT(N162)),P162),NA()) -> FALSE | U162: =IF(AND($A162<=$O$30,Q162,$R$17),$BJ$34,NA()) ->  | V162: =IF(AND($A162<=$O$30,Q162,$R$17),$BJ$33,NA()) ->  | W162: =IF(AND($A162<=$O$30,R162,$R$17),$BJ$34,NA()) ->  | X162: =IF(AND($A162<=$O$30,R162,$R$17),$BJ$33,NA()) ->  | AW162: 1651900
A163: 131 | B163: =IF(A163>$A$8,"",OFFSET(InputPriceData!B$15,$A163+$A$11,0,1,1)) -> 2020-07-13 | C163: =IF(A163>$A$8,"",OFFSET(InputPriceData!G$15,CalculationsAndCharts!$A163+$A$11,IF($C$5,8,0),1,1)) -> 2031300 | D163: =IF(A163>$A$8,"",OFFSET(InputPriceData!C$15,CalculationsAndCharts!$A163+$A$11,IF($C$5,8,0),1,1)) -> 349.01 | E163: =IF(A163>$A$8,"",OFFSET(InputPriceData!D$15,CalculationsAndCharts!$A163+$A$11,IF($C$5,8,0),1,1)) -> 352.39 | F163: =IF(A163>$A$8,"",OFFSET(InputPriceData!E$15,CalculationsAndCharts!$A163+$A$11,IF($C$5,8,0),1,1)) -> 344.08 | G163: =IF(A163>$A$8,"",OFFSET(InputPriceData!F$15,CalculationsAndCharts!$A163+$A$11,IF($C$5,8,0),1,1)) -> 348.48 | H163: -7.545367717 | I163: 75.83611155 | J163: 8.708393167 | K163: -8.708393167 | L163: -9.685420545 | M163: 366.3676623 | N163: FALSE | O163: FALSE | P163: FALSE | Q163: FALSE | R163: FALSE | AX163: 2031300
A164: 132 | B164: =IF(A164>$A$8,"",OFFSET(InputPriceData!B$15,$A164+$A$11,0,1,1)) -> 2020-07-10 | C164: =IF(A164>$A$8,"",OFFSET(InputPriceData!G$15,CalculationsAndCharts!$A164+$A$11,IF($C$5,8,0),1,1)) -> 1514200 | D164: =IF(A164>$A$8,"",OFFSET(InputPriceData!C$15,CalculationsAndCharts!$A164+$A$11,IF($C$5,8,0),1,1)) -> 337.89 | E164: =IF(A164>$A$8,"",OFFSET(InputPriceData!D$15,CalculationsAndCharts!$A164+$A$11,IF($C$5,8,0),1,1)) -> 344.8 | F164: =IF(A164>$A$8,"",OFFSET(InputPriceData!E$15,CalculationsAndCharts!$A164+$A$11,IF($C$5,8,0),1,1)) -> 337.23 | G164: =IF(A164>$A$8,"",OFFSET(InputPriceData!F$15,CalculationsAndCharts!$A164+$A$11,IF($C$5,8,0),1,1)) -> 344.72 | H164: -9.020849828 | I164: 76.05739647 | J164: 8.721089179 | K164: -8.721089179 | L164: -11.82547337 | M164: 366.5474378 | N164: FALSE | O164: FALSE | P164: FALSE | Q164: FALSE | R164: FALSE | AW164: 1514200
A165: 133 | B165: =IF(A165>$A$8,"",OFFSET(InputPriceData!B$15,$A165+$A$11,0,1,1)) -> 2020-07-09 | C165: =IF(A165>$A$8,"",OFFSET(InputPriceData!G$15,CalculationsAndCharts!$A165+$A$11,IF($C$5,8,0),1,1)) -> 1823800 | D165: =IF(A165>$A$8,"",OFFSET(InputPriceData!C$15,CalculationsAndCharts!$A165+$A$11,IF($C$5,8,0),1,1)) -> 343.49 | E165: =IF(A165>$A$8,"",OFFSET(InputPriceData!D$15,CalculationsAndCharts!$A165+$A$11,IF($C$5,8,0),1,1)) -> 344.96 | F165: =IF(A165>$A$8,"",OFFSET(InputPriceData!E$15,CalculationsAndCharts!$A165+$A$11,IF($C$5,8,0),1,1)) -> 334.78 | G165: =IF(A165>$A$8,"",OFFSET(InputPriceData!F$15,CalculationsAndCharts!$A165+$A$11,IF($C$5,8,0),1,1)) -> 335.55 | H165: -15.80307631 | I165: 73.81771143 | J165: 8.591723426 | K165: -8.591723426 | L165: -14.63009692 | M165: 366.7668091 | N165: FALSE | O165: FALSE | P165: FALSE | Q165: FALSE | R165: FALSE | AX165: 1823800
A166: 134 | B166: =IF(A166>$A$8,"",OFFSET(InputPriceData!B$15,$A166+$A$11,0,1,1)) -> 2020-07-08 | C166: =IF(A166>$A$8,"",OFFSET(InputPriceData!G$15,CalculationsAndCharts!$A166+$A$11,IF($C$5,8,0),1,1)) -> 1965100 | D166: =IF(A166>$A$8,"",OFFSET(InputPriceData!C$15,CalculationsAndCharts!$A166+$A$11,IF($C$5,8,0),1,1)) -> 348.92 | E166: =IF(A166>$A$8,"",OFFSET(InputPriceData!D$15,CalculationsAndCharts!$A166+$A$11,IF($C$5,8,0),1,1)) -> 352.67 | F166: =IF(A166>$A$8,"",OFFSET(InputPriceData!E$15,CalculationsAndCharts!$A166+$A$11,IF($C$5,8,0),1,1)) -> 344.11 | G166: =IF(A166>$A$8,"",OFFSET(InputPriceData!F$15,CalculationsAndCharts!$A166+$A$11,IF($C$5,8,0),1,1)) -> 345.69 | H166: -14.27614938 | I166: 65.8046733 | J166: 8.112007969 | K166: -8.112007969 | L166: -13.45711753 | M166: 367.0805458 | N166: FALSE | O166: FALSE | P166: FALSE | Q166: FALSE | R166: FALSE | AX166: 1965100
A167: 135 | B167: =IF(A167>$A$8,"",OFFSET(InputPriceData!B$15,$A167+$A$11,0,1,1)) -> 2020-07-07 | C167: =IF(A167>$A$8,"",OFFSET(InputPriceData!G$15,CalculationsAndCharts!$A167+$A$11,IF($C$5,8,0),1,1)) -> 1395900 | D167: =IF(A167>$A$8,"",OFFSET(InputPriceData!C$15,CalculationsAndCharts!$A167+$A$11,IF($C$5,8,0),1,1)) -> 357.89 | E167: =IF(A167>$A$8,"",OFFSET(InputPriceData!D$15,CalculationsAndCharts!$A167+$A$11,IF($C$5,8,0),1,1)) -> 358.21 | F167: =IF(A167>$A$8,"",OFFSET(InputPriceData!E$15,CalculationsAndCharts!$A167+$A$11,IF($C$5,8,0),1,1)) -> 348.2 | G167: =IF(A167>$A$8,"",OFFSET(InputPriceData!F$15,CalculationsAndCharts!$A167+$A$11,IF($C$5,8,0),1,1)) -> 348.69 | H167: -14.73112758 | I167: 59.8043994 | J167: 7.733330421 | K167: -7.733330421 | L167: -12.63808567 | M167: 367.2955262 | N167: FALSE | O167: FALSE | P167: FALSE | Q167: FALSE | R167: FALSE | AX167: 1395900
A168: 136 | B168: =IF(A168>$A$8,"",OFFSET(InputPriceData!B$15,$A168+$A$11,0,1,1)) -> 2020-07-06 | C168: =IF(A168>$A$8,"",OFFSET(InputPriceData!G$15,CalculationsAndCharts!$A168+$A$11,IF($C$5,8,0),1,1)) -> 1202300 | D168: =IF(A168>$A$8,"",OFFSET(InputPriceData!C$15,CalculationsAndCharts!$A168+$A$11,IF($C$5,8,0),1,1)) -> 361.73 | E168: =IF(A168>$A$8,"",OFFSET(InputPriceData!D$15,CalculationsAndCharts!$A168+$A$11,IF($C$5,8,0),1,1)) -> 362.36 | F168: =IF(A168>$A$8,"",OFFSET(InputPriceData!E$15,CalculationsAndCharts!$A168+$A$11,IF($C$5,8,0),1,1)) -> 356.16 | G168: =IF(A168>$A$8,"",OFFSET(InputPriceData!F$15,CalculationsAndCharts!$A168+$A$11,IF($C$5,8,0),1,1)) -> 357.89 | H168: -11.72364462 | I168: 54.10771767 | J168: 7.355794836 | K168: -7.355794836 | L168: -10.54504377 | M168: 367.4825164 | N168: FALSE | O168: FALSE | P168: FALSE | Q168: FALSE | R168: FALSE | AX168: 1202300
A169: 137 | B169: =IF(A169>$A$8,"",OFFSET(InputPriceData!B$15,$A169+$A$11,0,1,1)) -> 2020-07-02 | C169: =IF(A169>$A$8,"",OFFSET(InputPriceData!G$15,CalculationsAndCharts!$A169+$A$11,IF($C$5,8,0),1,1)) -> 1396000 | D169: =IF(A169>$A$8,"",OFFSET(InputPriceData!C$15,CalculationsAndCharts!$A169+$A$11,IF($C$5,8,0),1,1)) -> 358.81 | E169: =IF(A169>$A$8,"",OFFSET(InputPriceData!D$15,CalculationsAndCharts!$A169+$A$11,IF($C$5,8,0),1,1)) -> 361.32 | F169: =IF(A169>$A$8,"",OFFSET(InputPriceData!E$15,CalculationsAndCharts!$A169+$A$11,IF($C$5,8,0),1,1)) -> 356.01 | G169: =IF(A169>$A$8,"",OFFSET(InputPriceData!F$15,CalculationsAndCharts!$A169+$A$11,IF($C$5,8,0),1,1)) -> 357.3 | H169: -10.32301785 | I169: 51.9837823 | J169: 7.209977968 | K169: -7.209977968 | L169: -9.366442925 | M169: 367.5789236 | N169: FALSE | O169: FALSE | P169: FALSE | Q169: FALSE | R169: FALSE | AX169: 1396000
A170: 138 | B170: =IF(A170>$A$8,"",OFFSET(InputPriceData!B$15,$A170+$A$11,0,1,1)) -> 2020-07-01 | C170: =IF(A170>$A$8,"",OFFSET(InputPriceData!G$15,CalculationsAndCharts!$A170+$A$11,IF($C$5,8,0),1,1)) -> 1430100 | D170: =IF(A170>$A$8,"",OFFSET(InputPriceData!C$15,CalculationsAndCharts!$A170+$A$11,IF($C$5,8,0),1,1)) -> 361.59 | E170: =IF(A170>$A$8,"",OFFSET(InputPriceData!D$15,CalculationsAndCharts!$A170+$A$11,IF($C$5,8,0),1,1)) -> 363.51 | F170: =IF(A170>$A$8,"",OFFSET(InputPriceData!E$15,CalculationsAndCharts!$A170+$A$11,IF($C$5,8,0),1,1)) -> 355.64 | G170: =IF(A170>$A$8,"",OFFSET(InputPriceData!F$15,CalculationsAndCharts!$A170+$A$11,IF($C$5,8,0),1,1)) -> 355.75 | H170: -10.48287663 | I170: 49.29971273 | J170: 7.021375416 | K170: -7.021375416 | L170: -8.409868005 | M170: 367.6822294 | N170: FALSE | O170: FALSE | P170: FALSE | Q170: FALSE | R170: FALSE | AX170: 1430100
A171: 139 | B171: =IF(A171>$A$8,"",OFFSET(InputPriceData!B$15,$A171+$A$11,0,1,1)) -> 2020-06-30 | C171: =IF(A171>$A$8,"",OFFSET(InputPriceData!G$15,CalculationsAndCharts!$A171+$A$11,IF($C$5,8,0),1,1)) -> 1482100 | D171: =IF(A171>$A$8,"",OFFSET(InputPriceData!C$15,CalculationsAndCharts!$A171+$A$11,IF($C$5,8,0),1,1)) -> 360.61 | E171: =IF(A171>$A$8,"",OFFSET(InputPriceData!D$15,CalculationsAndCharts!$A171+$A$11,IF($C$5,8,0),1,1)) -> 362.49 | F171: =IF(A171>$A$8,"",OFFSET(InputPriceData!E$15,CalculationsAndCharts!$A171+$A$11,IF($C$5,8,0),1,1)) -> 357.71 | G171: =IF(A171>$A$8,"",OFFSET(InputPriceData!F$15,CalculationsAndCharts!$A171+$A$11,IF($C$5,8,0),1,1)) -> 360.19 | H171: -6.373632087 | I171: 44.52114077 | J171: 6.672416412 | K171: -6.672416412 | L171: -6.336859384 | M171: 367.8021513 | N171: FALSE | O171: FALSE | P171: FALSE | Q171: FALSE | R171: FALSE | AX171: 1482100
A172: 140 | B172: =IF(A172>$A$8,"",OFFSET(InputPriceData!B$15,$A172+$A$11,0,1,1)) -> 2020-06-29 | C172: =IF(A172>$A$8,"",OFFSET(InputPriceData!G$15,CalculationsAndCharts!$A172+$A$11,IF($C$5,8,0),1,1)) -> 1073000 | D172: =IF(A172>$A$8,"",OFFSET(InputPriceData!C$15,CalculationsAndCharts!$A172+$A$11,IF($C$5,8,0),1,1)) -> 355.72 | E172: =IF(A172>$A$8,"",OFFSET(InputPriceData!D$15,CalculationsAndCharts!$A172+$A$11,IF($C$5,8,0),1,1)) -> 362.73 | F172: =IF(A172>$A$8,"",OFFSET(InputPriceData!E$15,CalculationsAndCharts!$A172+$A$11,IF($C$5,8,0),1,1)) -> 354.83 | G172: =IF(A172>$A$8,"",OFFSET(InputPriceData!F$15,CalculationsAndCharts!$A172+$A$11,IF($C$5,8,0),1,1)) -> 362.73 | H172: -5.519379037 | I172: 42.9853842 | J172: 6.556323986 | K172: -6.556323986 | L172: -6.300086682 | M172: 367.8786553 | N172: FALSE | O172: TRUE | P172: FALSE | Q172: TRUE | R172: FALSE | AW172: 1073000
A173: 141 | B173: =IF(A173>$A$8,"",OFFSET(InputPriceData!B$15,$A173+$A$11,0,1,1)) -> 2020-06-26 | C173: =IF(A173>$A$8,"",OFFSET(InputPriceData!G$15,CalculationsAndCharts!$A173+$A$11,IF($C$5,8,0),1,1)) -> 2008600 | D173: =IF(A173>$A$8,"",OFFSET(InputPriceData!C$15,CalculationsAndCharts!$A173+$A$11,IF($C$5,8,0),1,1)) -> 354.9 | E173: =IF(A173>$A$8,"",OFFSET(InputPriceData!D$15,CalculationsAndCharts!$A173+$A$11,IF($C$5,8,0),1,1)) -> 362.65 | F173: =IF(A173>$A$8,"",OFFSET(InputPriceData!E$15,CalculationsAndCharts!$A173+$A$11,IF($C$5,8,0),1,1)) -> 350.41 | G173: =IF(A173>$A$8,"",OFFSET(InputPriceData!F$15,CalculationsAndCharts!$A173+$A$11,IF($C$5,8,0),1,1)) -> 352.13 | H173: -8.155972874 | I173: 41.67165085 | J173: 6.455358305 | K173: -6.455358305 | L173: -7.080794326 | M173: 367.9304006 | N173: FALSE | O173: FALSE | P173: FALSE | Q173: FALSE | R173: FALSE | AX173: 2008600
A174: 142 | B174: =IF(A174>$A$8,"",OFFSET(InputPriceData!B$15,$A174+$A$11,0,1,1)) -> 2020-06-25 | C174: =IF(A174>$A$8,"",OFFSET(InputPriceData!G$15,CalculationsAndCharts!$A174+$A$11,IF($C$5,8,0),1,1)) -> 1391600 | D174: =IF(A174>$A$8,"",OFFSET(InputPriceData!C$15,CalculationsAndCharts!$A174+$A$11,IF($C$5,8,0),1,1)) -> 353.22 | E174: =IF(A174>$A$8,"",OFFSET(InputPriceData!D$15,CalculationsAndCharts!$A174+$A$11,IF($C$5,8,0),1,1)) -> 358.6 | F174: =IF(A174>$A$8,"",OFFSET(InputPriceData!E$15,CalculationsAndCharts!$A174+$A$11,IF($C$5,8,0),1,1)) -> 348.75 | G174: =IF(A174>$A$8,"",OFFSET(InputPriceData!F$15,CalculationsAndCharts!$A174+$A$11,IF($C$5,8,0),1,1)) -> 358.11 | H174: -8.388334612 | I174: 38.35557416 | J174: 6.193187722 | K174: -6.193187722 | L174: -6.005615777 | M174: 368.0891986 | N174: FALSE | O174: FALSE | P174: FALSE | Q174: FALSE | R174: FALSE | AW174: 1391600
A175: 143 | B175: =IF(A175>$A$8,"",OFFSET(InputPriceData!B$15,$A175+$A$11,0,1,1)) -> 2020-06-24 | C175: =IF(A175>$A$8,"",OFFSET(InputPriceData!G$15,CalculationsAndCharts!$A175+$A$11,IF($C$5,8,0),1,1)) -> 2302800 | D175: =IF(A175>$A$8,"",OFFSET(InputPriceData!C$15,CalculationsAndCharts!$A175+$A$11,IF($C$5,8,0),1,1)) -> 366.09 | E175: =IF(A175>$A$8,"",OFFSET(InputPriceData!D$15,CalculationsAndCharts!$A175+$A$11,IF($C$5,8,0),1,1)) -> 366.42 | F175: =IF(A175>$A$8,"",OFFSET(InputPriceData!E$15,CalculationsAndCharts!$A175+$A$11,IF($C$5,8,0),1,1)) -> 353.67 | G175: =IF(A175>$A$8,"",OFFSET(InputPriceData!F$15,CalculationsAndCharts!$A175+$A$11,IF($C$5,8,0),1,1)) -> 355.15 | H175: -8.844742178 | I175: 35.20575095 | J175: 5.933443431 | K175: -5.933443431 | L175: -3.622896942 | M175: 368.189492 | N175: FALSE | O175: FALSE | P175: FALSE | Q175: FALSE | R175: FALSE | AX175: 2302800
A176: 144 | B176: =IF(A176>$A$8,"",OFFSET(InputPriceData!B$15,$A176+$A$11,0,1,1)) -> 2020-06-23 | C176: =IF(A176>$A$8,"",OFFSET(InputPriceData!G$15,CalculationsAndCharts!$A176+$A$11,IF($C$5,8,0),1,1)) -> 1469300 | D176: =IF(A176>$A$8,"",OFFSET(InputPriceData!C$15,CalculationsAndCharts!$A176+$A$11,IF($C$5,8,0),1,1)) -> 373.34 | E176: =IF(A176>$A$8,"",OFFSET(InputPriceData!D$15,CalculationsAndCharts!$A176+$A$11,IF($C$5,8,0),1,1)) -> 373.87 | F176: =IF(A176>$A$8,"",OFFSET(InputPriceData!E$15,CalculationsAndCharts!$A176+$A$11,IF($C$5,8,0),1,1)) -> 366.23 | G176: =IF(A176>$A$8,"",OFFSET(InputPriceData!F$15,CalculationsAndCharts!$A176+$A$11,IF($C$5,8,0),1,1)) -> 366.88 | H176: 0.4710263994 | I176: 31.81321911 | J176: 5.640320834 | K176: -5.640320834 | L176: 1.598948293 | M176: 368.3205422 | N176: FALSE | O176: FALSE | P176: FALSE | Q176: FALSE | R176: FALSE | AX176: 1469300
A177: 145 | B177: =IF(A177>$A$8,"",OFFSET(InputPriceData!B$15,$A177+$A$11,0,1,1)) -> 2020-06-22 | C177: =IF(A177>$A$8,"",OFFSET(InputPriceData!G$15,CalculationsAndCharts!$A177+$A$11,IF($C$5,8,0),1,1)) -> 1370600 | D177: =IF(A177>$A$8,"",OFFSET(InputPriceData!C$15,CalculationsAndCharts!$A177+$A$11,IF($C$5,8,0),1,1)) -> 367.43 | E177: =IF(A177>$A$8,"",OFFSET(InputPriceData!D$15,CalculationsAndCharts!$A177+$A$11,IF($C$5,8,0),1,1)) -> 371.95 | F177: =IF(A177>$A$8,"",OFFSET(InputPriceData!E$15,CalculationsAndCharts!$A177+$A$11,IF($C$5,8,0),1,1)) -> 365.64 | G177: =IF(A177>$A$8,"",OFFSET(InputPriceData!F$15,CalculationsAndCharts!$A177+$A$11,IF($C$5,8,0),1,1)) -> 371.08 | H177: 2.502624164 | I177: 31.94371264 | J177: 5.651876913 | K177: -5.651876913 | L177: 2.726870187 | M177: 368.33502 | N177: TRUE | O177: FALSE | P177: FALSE | Q177: FALSE | R177: FALSE | AW177: 1370600
A178: 146 | B178: =IF(A178>$A$8,"",OFFSET(InputPriceData!B$15,$A178+$A$11,0,1,1)) -> 2020-06-19 | C178: =IF(A178>$A$8,"",OFFSET(InputPriceData!G$15,CalculationsAndCharts!$A178+$A$11,IF($C$5,8,0),1,1)) -> 4322200 | D178: =IF(A178>$A$8,"",OFFSET(InputPriceData!C$15,CalculationsAndCharts!$A178+$A$11,IF($C$5,8,0),1,1)) -> 378.37 | E178: =IF(A178>$A$8,"",OFFSET(InputPriceData!D$15,CalculationsAndCharts!$A178+$A$11,IF($C$5,8,0),1,1)) -> 378.61 | F178: =IF(A178>$A$8,"",OFFSET(InputPriceData!E$15,CalculationsAndCharts!$A178+$A$11,IF($C$5,8,0),1,1)) -> 367.18 | G178: =IF(A178>$A$8,"",OFFSET(InputPriceData!F$15,CalculationsAndCharts!$A178+$A$11,IF($C$5,8,0),1,1)) -> 367.37 | H178: 1.528299801 | I178: 32.19012384 | J178: 5.673634094 | K178: -5.673634094 | L178: 2.95111621 | M178: 368.3074323 | N178: FALSE | O178: FALSE | P178: FALSE | Q178: FALSE | R178: FALSE | AX178: 4322200
A179: 147 | B179: =IF(A179>$A$8,"",OFFSET(InputPriceData!B$15,$A179+$A$11,0,1,1)) -> 2020-06-18 | C179: =IF(A179>$A$8,"",OFFSET(InputPriceData!G$15,CalculationsAndCharts!$A179+$A$11,IF($C$5,8,0),1,1)) -> 1562000 | D179: =IF(A179>$A$8,"",OFFSET(InputPriceData!C$15,CalculationsAndCharts!$A179+$A$11,IF($C$5,8,0),1,1)) -> 374.76 | E179: =IF(A179>$A$8,"",OFFSET(InputPriceData!D$15,CalculationsAndCharts!$A179+$A$11,IF($C$5,8,0),1,1)) -> 376.37 | F179: =IF(A179>$A$8,"",OFFSET(InputPriceData!E$15,CalculationsAndCharts!$A179+$A$11,IF($C$5,8,0),1,1)) -> 371.19 | G179: =IF(A179>$A$8,"",OFFSET(InputPriceData!F$15,CalculationsAndCharts!$A179+$A$11,IF($C$5,8,0),1,1)) -> 373.48 | H179: 5.013355827 | I179: 32.29374792 | J179: 5.68275883 | K179: -5.68275883 | L179: 4.37393262 | M179: 368.3168537 | N179: TRUE | O179: FALSE | P179: FALSE | Q179: FALSE | R179: FALSE | AX179: 1562000
A180: 148 | B180: =IF(A180>$A$8,"",OFFSET(InputPriceData!B$15,$A180+$A$11,0,1,1)) -> 2020-06-17 | C180: =IF(A180>$A$8,"",OFFSET(InputPriceData!G$15,CalculationsAndCharts!$A180+$A$11,IF($C$5,8,0),1,1)) -> 1519000 | D180: =IF(A180>$A$8,"",OFFSET(InputPriceData!C$15,CalculationsAndCharts!$A180+$A$11,IF($C$5,8,0),1,1)) -> 377.54 | E180: =IF(A180>$A$8,"",OFFSET(InputPriceData!D$15,CalculationsAndCharts!$A180+$A$11,IF($C$5,8,0),1,1)) -> 381.23 | F180: =IF(A180>$A$8,"",OFFSET(InputPriceData!E$15,CalculationsAndCharts!$A180+$A$11,IF($C$5,8,0),1,1)) -> 372.03 | G180: =IF(A180>$A$8,"",OFFSET(InputPriceData!F$15,CalculationsAndCharts!$A180+$A$11,IF($C$5,8,0),1,1)) -> 377.15 | H180: 3.484702977 | I180: 32.14277042 | J180: 5.669459447 | K180: -5.669459447 | L180: 3.734509412 | M180: 368.2649628 | N180: TRUE | O180: FALSE | P180: FALSE | Q180: FALSE | R180: FALSE | AX180: 1519000
A181: 149 | B181: =IF(A181>$A$8,"",OFFSET(InputPriceData!B$15,$A181+$A$11,0,1,1)) -> 2020-06-16 | C181: =IF(A181>$A$8,"",OFFSET(InputPriceData!G$15,CalculationsAndCharts!$A181+$A$11,IF($C$5,8,0),1,1)) -> 2038600 | D181: =IF(A181>$A$8,"",OFFSET(InputPriceData!C$15,CalculationsAndCharts!$A181+$A$11,IF($C$5,8,0),1,1)) -> 381.55 | E181: =IF(A181>$A$8,"",OFFSET(InputPriceData!D$15,CalculationsAndCharts!$A181+$A$11,IF($C$5,8,0),1,1)) -> 386.71 | F181: =IF(A181>$A$8,"",OFFSET(InputPriceData!E$15,CalculationsAndCharts!$A181+$A$11,IF($C$5,8,0),1,1)) -> 374.66 | G181: =IF(A181>$A$8,"",OFFSET(InputPriceData!F$15,CalculationsAndCharts!$A181+$A$11,IF($C$5,8,0),1,1)) -> 377.81 | H181: 2.000539957 | I181: 31.5494873 | J181: 5.616893029 | K181: -5.616893029 | L181: 3.984315846 | M181: 368.1756659 | N181: TRUE | O181: FALSE | P181: TRUE | Q181: FALSE | R181: TRUE | AX181: 2038600
A182: 150 | B182: =IF(A182>$A$8,"",OFFSET(InputPriceData!B$15,$A182+$A$11,0,1,1)) -> 2020-06-15 | C182: =IF(A182>$A$8,"",OFFSET(InputPriceData!G$15,CalculationsAndCharts!$A182+$A$11,IF($C$5,8,0),1,1)) -> 2271300 | D182: =IF(A182>$A$8,"",OFFSET(InputPriceData!C$15,CalculationsAndCharts!$A182+$A$11,IF($C$5,8,0),1,1)) -> 368.44 | E182: =IF(A182>$A$8,"",OFFSET(InputPriceData!D$15,CalculationsAndCharts!$A182+$A$11,IF($C$5,8,0),1,1)) -> 372.26 | F182: =IF(A182>$A$8,"",OFFSET(InputPriceData!E$15,CalculationsAndCharts!$A182+$A$11,IF($C$5,8,0),1,1)) -> 362.78 | G182: =IF(A182>$A$8,"",OFFSET(InputPriceData!F$15,CalculationsAndCharts!$A182+$A$11,IF($C$5,8,0),1,1)) -> 368.44 | H182: 4.202726399 | I182: 31.45873371 | J182: 5.608808582 | K182: -5.608808582 | L182: 5.968091736 | M182: 368.0788385 | N182: TRUE | O182: FALSE | P182: FALSE | Q182: FALSE | R182: FALSE | AW182: 2271300
A183: 151 | B183: =IF(A183>$A$8,"",OFFSET(InputPriceData!B$15,$A183+$A$11,0,1,1)) -> 2020-06-12 | C183: =IF(A183>$A$8,"",OFFSET(InputPriceData!G$15,CalculationsAndCharts!$A183+$A$11,IF($C$5,8,0),1,1)) -> 1788100 | D183: =IF(A183>$A$8,"",OFFSET(InputPriceData!C$15,CalculationsAndCharts!$A183+$A$11,IF($C$5,8,0),1,1)) -> 388.23 | E183: =IF(A183>$A$8,"",OFFSET(InputPriceData!D$15,CalculationsAndCharts!$A183+$A$11,IF($C$5,8,0),1,1)) -> 389.31 | F183: =IF(A183>$A$8,"",OFFSET(InputPriceData!E$15,CalculationsAndCharts!$A183+$A$11,IF($C$5,8,0),1,1)) -> 371.59 | G183: =IF(A183>$A$8,"",OFFSET(InputPriceData!F$15,CalculationsAndCharts!$A183+$A$11,IF($C$5,8,0),1,1)) -> 376.92 | H183: 7.833152143 | I183: 35.81914206 | J183: 5.984909528 | K183: -5.984909528 | L183: 7.733457073 | M183: 368.0752087 | N183: TRUE | O183: FALSE | P183: FALSE | Q183: FALSE | R183: FALSE | AX183: 1788100
A184: 152 | B184: =IF(A184>$A$8,"",OFFSET(InputPriceData!B$15,$A184+$A$11,0,1,1)) -> 2020-06-11 | C184: =IF(A184>$A$8,"",OFFSET(InputPriceData!G$15,CalculationsAndCharts!$A184+$A$11,IF($C$5,8,0),1,1)) -> 1698800 | D184: =IF(A184>$A$8,"",OFFSET(InputPriceData!C$15,CalculationsAndCharts!$A184+$A$11,IF($C$5,8,0),1,1)) -> 387.6 | E184: =IF(A184>$A$8,"",OFFSET(InputPriceData!D$15,CalculationsAndCharts!$A184+$A$11,IF($C$5,8,0),1,1)) -> 392.16 | F184: =IF(A184>$A$8,"",OFFSET(InputPriceData!E$15,CalculationsAndCharts!$A184+$A$11,IF($C$5,8,0),1,1)) -> 378.59 | G184: =IF(A184>$A$8,"",OFFSET(InputPriceData!F$15,CalculationsAndCharts!$A184+$A$11,IF($C$5,8,0),1,1)) -> 378.9 | H184: 6.048308097 | I184: 34.38471835 | J184: 5.863848424 | K184: -5.863848424 | L184: 7.633762003 | M184: 367.9863163 | N184: TRUE | O184: FALSE | P184: FALSE | Q184: FALSE | R184: FALSE | AX184: 1698800
A185: 153 | B185: =IF(A185>$A$8,"",OFFSET(InputPriceData!B$15,$A185+$A$11,0,1,1)) -> 2020-06-10 | C185: =IF(A185>$A$8,"",OFFSET(InputPriceData!G$15,CalculationsAndCharts!$A185+$A$11,IF($C$5,8,0),1,1)) -> 1188200 | D185: =IF(A185>$A$8,"",OFFSET(InputPriceData!C$15,CalculationsAndCharts!$A185+$A$11,IF($C$5,8,0),1,1)) -> 401.23 | E185: =IF(A185>$A$8,"",OFFSET(InputPriceData!D$15,CalculationsAndCharts!$A185+$A$11,IF($C$5,8,0),1,1)) -> 403.79 | F185: =IF(A185>$A$8,"",OFFSET(InputPriceData!E$15,CalculationsAndCharts!$A185+$A$11,IF($C$5,8,0),1,1)) -> 398.22 | G185: =IF(A185>$A$8,"",OFFSET(InputPriceData!F$15,CalculationsAndCharts!$A185+$A$11,IF($C$5,8,0),1,1)) -> 398.53 | H185: 9.459199648 | I185: 32.92697781 | J185: 5.738203361 | K185: -5.738203361 | L185: 9.219215908 | M185: 367.8766311 | N185: TRUE | O185: FALSE | P185: FALSE | Q185: FALSE | R185: FALSE | S185: =IF(AND($A185<=$O$30,Q185,$R$17),$BD$34,NA()) ->  | T185: =IF(AND($A185<=$O$30,R185,$R$17),$BD$34,NA()) ->  | AX185: 1188200
A186: 154 | B186: =IF(A186>$A$8,"",OFFSET(InputPriceData!B$15,$A186+$A$11,0,1,1)) -> 2020-06-09 | C186: =IF(A186>$A$8,"",OFFSET(InputPriceData!G$15,CalculationsAndCharts!$A186+$A$11,IF($C$5,8,0),1,1)) -> 1188400 | D186: =IF(A186>$A$8,"",OFFSET(InputPriceData!C$15,CalculationsAndCharts!$A186+$A$11,IF($C$5,8,0),1,1)) -> 405.21 | E186: =IF(A186>$A$8,"",OFFSET(InputPriceData!D$15,CalculationsAndCharts!$A186+$A$11,IF($C$5,8,0),1,1)) -> 406.6 | F186: =IF(A186>$A$8,"",OFFSET(InputPriceData!E$15,CalculationsAndCharts!$A186+$A$11,IF($C$5,8,0),1,1)) -> 401.72 | G186: =IF(A186>$A$8,"",OFFSET(InputPriceData!F$15,CalculationsAndCharts!$A186+$A$11,IF($C$5,8,0),1,1)) -> 403.26 | H186: 9.154395842 | I186: 28.72854044 | J186: 5.359901159 | K186: -5.359901159 | L186: 8.979232168 | M186: 367.568557 | N186: TRUE | O186: FALSE | P186: FALSE | Q186: FALSE | R186: FALSE | AX186: 1188400
A187: 155 | B187: =IF(A187>$A$8,"",OFFSET(InputPriceData!B$15,$A187+$A$11,0,1,1)) -> 2020-06-08 | C187: =IF(A187>$A$8,"",OFFSET(InputPriceData!G$15,CalculationsAndCharts!$A187+$A$11,IF($C$5,8,0),1,1)) -> 1294600 | D187: =IF(A187>$A$8,"",OFFSET(InputPriceData!C$15,CalculationsAndCharts!$A187+$A$11,IF($C$5,8,0),1,1)) -> 409.62 | E187: =IF(A187>$A$8,"",OFFSET(InputPriceData!D$15,CalculationsAndCharts!$A187+$A$11,IF($C$5,8,0),1,1)) -> 412.2 | F187: =IF(A187>$A$8,"",OFFSET(InputPriceData!E$15,CalculationsAndCharts!$A187+$A$11,IF($C$5,8,0),1,1)) -> 406.41 | G187: =IF(A187>$A$8,"",OFFSET(InputPriceData!F$15,CalculationsAndCharts!$A187+$A$11,IF($C$5,8,0),1,1)) -> 408.93 | H187: 10.15246202 | I187: 24.69876372 | J187: 4.969785078 | K187: -4.969785078 | L187: 8.804068494 | M187: 367.209849 | N187: TRUE | O187: FALSE | P187: FALSE | Q187: FALSE | R187: FALSE | AX187: 1294600
A188: 156 | B188: =IF(A188>$A$8,"",OFFSET(InputPriceData!B$15,$A188+$A$11,0,1,1)) -> 2020-06-05 | C188: =IF(A188>$A$8,"",OFFSET(InputPriceData!G$15,CalculationsAndCharts!$A188+$A$11,IF($C$5,8,0),1,1)) -> 1702500 | D188: =IF(A188>$A$8,"",OFFSET(InputPriceData!C$15,CalculationsAndCharts!$A188+$A$11,IF($C$5,8,0),1,1)) -> 404.68 | E188: =IF(A188>$A$8,"",OFFSET(InputPriceData!D$15,CalculationsAndCharts!$A188+$A$11,IF($C$5,8,0),1,1)) -> 410.6 | F188: =IF(A188>$A$8,"",OFFSET(InputPriceData!E$15,CalculationsAndCharts!$A188+$A$11,IF($C$5,8,0),1,1)) -> 401.18 | G188: =IF(A188>$A$8,"",OFFSET(InputPriceData!F$15,CalculationsAndCharts!$A188+$A$11,IF($C$5,8,0),1,1)) -> 405.42 | H188: 9.745005685 | I188: 19.74406394 | J188: 4.443429299 | K188: -4.443429299 | L188: 7.455674968 | M188: 366.790551 | N188: TRUE | O188: FALSE | P188: FALSE | Q188: FALSE | R188: FALSE | AW188: 1702500
A189: 157 | B189: =IF(A189>$A$8,"",OFFSET(InputPriceData!B$15,$A189+$A$11,0,1,1)) -> 2020-06-04 | C189: =IF(A189>$A$8,"",OFFSET(InputPriceData!G$15,CalculationsAndCharts!$A189+$A$11,IF($C$5,8,0),1,1)) -> 1261700 | D189: =IF(A189>$A$8,"",OFFSET(InputPriceData!C$15,CalculationsAndCharts!$A189+$A$11,IF($C$5,8,0),1,1)) -> 396.57 | E189: =IF(A189>$A$8,"",OFFSET(InputPriceData!D$15,CalculationsAndCharts!$A189+$A$11,IF($C$5,8,0),1,1)) -> 399.62 | F189: =IF(A189>$A$8,"",OFFSET(InputPriceData!E$15,CalculationsAndCharts!$A189+$A$11,IF($C$5,8,0),1,1)) -> 393.82 | G189: =IF(A189>$A$8,"",OFFSET(InputPriceData!F$15,CalculationsAndCharts!$A189+$A$11,IF($C$5,8,0),1,1)) -> 398.43 | H189: 7.272090894 | I189: 15.87284621 | J189: 3.984074072 | K189: -3.984074072 | L189: 5.166344251 | M189: 366.4023154 | N189: TRUE | O189: FALSE | P189: FALSE | Q189: FALSE | R189: FALSE | AW189: 1261700
A190: 158 | B190: =IF(A190>$A$8,"",OFFSET(InputPriceData!B$15,$A190+$A$11,0,1,1)) -> 2020-06-03 | C190: =IF(A190>$A$8,"",OFFSET(InputPriceData!G$15,CalculationsAndCharts!$A190+$A$11,IF($C$5,8,0),1,1)) -> 1382200 | D190: =IF(A190>$A$8,"",OFFSET(InputPriceData!C$15,CalculationsAndCharts!$A190+$A$11,IF($C$5,8,0),1,1)) -> 388.54 | E190: =IF(A190>$A$8,"",OFFSET(InputPriceData!D$15,CalculationsAndCharts!$A190+$A$11,IF($C$5,8,0),1,1)) -> 398.37 | F190: =IF(A190>$A$8,"",OFFSET(InputPriceData!E$15,CalculationsAndCharts!$A190+$A$11,IF($C$5,8,0),1,1)) -> 387.5 | G190: =IF(A190>$A$8,"",OFFSET(InputPriceData!F$15,CalculationsAndCharts!$A190+$A$11,IF($C$5,8,0),1,1)) -> 397.41 | H190: 3.784080226 | I190: 15.37931915 | J190: 3.921647504 | K190: -3.921647504 | L190: 3.060597608 | M190: 366.0804291 | N190: TRUE | O190: FALSE | P190: FALSE | Q190: FALSE | R190: FALSE | AW190: 1382200
A191: 159 | B191: =IF(A191>$A$8,"",OFFSET(InputPriceData!B$15,$A191+$A$11,0,1,1)) -> 2020-06-02 | C191: =IF(A191>$A$8,"",OFFSET(InputPriceData!G$15,CalculationsAndCharts!$A191+$A$11,IF($C$5,8,0),1,1)) -> 1404700 | D191: =IF(A191>$A$8,"",OFFSET(InputPriceData!C$15,CalculationsAndCharts!$A191+$A$11,IF($C$5,8,0),1,1)) -> 383.6 | E191: =IF(A191>$A$8,"",OFFSET(InputPriceData!D$15,CalculationsAndCharts!$A191+$A$11,IF($C$5,8,0),1,1)) -> 388.13 | F191: =IF(A191>$A$8,"",OFFSET(InputPriceData!E$15,CalculationsAndCharts!$A191+$A$11,IF($C$5,8,0),1,1)) -> 381.97 | G191: =IF(A191>$A$8,"",OFFSET(InputPriceData!F$15,CalculationsAndCharts!$A191+$A$11,IF($C$5,8,0),1,1)) -> 384.71 | H191: 3.14770625 | I191: 16.50861326 | J191: 4.063079283 | K191: -4.063079283 | L191: 2.33711499 | M191: 365.765559 | N191: TRUE | O191: FALSE | P191: FALSE | Q191: FALSE | R191: FALSE | AW191: 1404700
A192: 160 | B192: =IF(A192>$A$8,"",OFFSET(InputPriceData!B$15,$A192+$A$11,0,1,1)) -> 2020-06-01 | C192: =IF(A192>$A$8,"",OFFSET(InputPriceData!G$15,CalculationsAndCharts!$A192+$A$11,IF($C$5,8,0),1,1)) -> 1090300 | D192: =IF(A192>$A$8,"",OFFSET(InputPriceData!C$15,CalculationsAndCharts!$A192+$A$11,IF($C$5,8,0),1,1)) -> 383.9 | E192: =IF(A192>$A$8,"",OFFSET(InputPriceData!D$15,CalculationsAndCharts!$A192+$A$11,IF($C$5,8,0),1,1)) -> 388.89 | F192: =IF(A192>$A$8,"",OFFSET(InputPriceData!E$15,CalculationsAndCharts!$A192+$A$11,IF($C$5,8,0),1,1)) -> 382.29 | G192: =IF(A192>$A$8,"",OFFSET(InputPriceData!F$15,CalculationsAndCharts!$A192+$A$11,IF($C$5,8,0),1,1)) -> 383.92 | H192: 2.046674818 | I192: 19.59390615 | J192: 4.42650044 | K192: -4.42650044 | L192: 1.52652373 | M192: 365.5751626 | N192: TRUE | O192: FALSE | P192: FALSE | Q192: FALSE | R192: FALSE | AW192: 1090300
A193: 161 | B193: =IF(A193>$A$8,"",OFFSET(InputPriceData!B$15,$A193+$A$11,0,1,1)) -> 2020-05-29 | C193: =IF(A193>$A$8,"",OFFSET(InputPriceData!G$15,CalculationsAndCharts!$A193+$A$11,IF($C$5,8,0),1,1)) -> 1733800 | D193: =IF(A193>$A$8,"",OFFSET(InputPriceData!C$15,CalculationsAndCharts!$A193+$A$11,IF($C$5,8,0),1,1)) -> 390.9 | E193: =IF(A193>$A$8,"",OFFSET(InputPriceData!D$15,CalculationsAndCharts!$A193+$A$11,IF($C$5,8,0),1,1)) -> 391.1 | F193: =IF(A193>$A$8,"",OFFSET(InputPriceData!E$15,CalculationsAndCharts!$A193+$A$11,IF($C$5,8,0),1,1)) -> 379.78 | G193: =IF(A193>$A$8,"",OFFSET(InputPriceData!F$15,CalculationsAndCharts!$A193+$A$11,IF($C$5,8,0),1,1)) -> 383.4 | H193: 0.4453759497 | I193: 22.86188586 | J193: 4.781410447 | K193: -4.781410447 | L193: 1.006372643 | M193: 365.3907924 | N193: TRUE | O193: FALSE | P193: FALSE | Q193: FALSE | R193: FALSE | AX193: 1733800
A194: 162 | B194: =IF(A194>$A$8,"",OFFSET(InputPriceData!B$15,$A194+$A$11,0,1,1)) -> 2020-05-28 | C194: =IF(A194>$A$8,"",OFFSET(InputPriceData!G$15,CalculationsAndCharts!$A194+$A$11,IF($C$5,8,0),1,1)) -> 1487900 | D194: =IF(A194>$A$8,"",OFFSET(InputPriceData!C$15,CalculationsAndCharts!$A194+$A$11,IF($C$5,8,0),1,1)) -> 393.87 | E194: =IF(A194>$A$8,"",OFFSET(InputPriceData!D$15,CalculationsAndCharts!$A194+$A$11,IF($C$5,8,0),1,1)) -> 396.61 | F194: =IF(A194>$A$8,"",OFFSET(InputPriceData!E$15,CalculationsAndCharts!$A194+$A$11,IF($C$5,8,0),1,1)) -> 390.63 | G194: =IF(A194>$A$8,"",OFFSET(InputPriceData!F$15,CalculationsAndCharts!$A194+$A$11,IF($C$5,8,0),1,1)) -> 390.9 | H194: 2.714349528 | I194: 33.99473337 | J194: 5.830500268 | K194: -5.830500268 | L194: 1.567369336 | M194: 365.2097953 | N194: TRUE | O194: FALSE | P194: FALSE | Q194: FALSE | R194: FALSE | AX194: 1487900
A195: 163 | B195: =IF(A195>$A$8,"",OFFSET(InputPriceData!B$15,$A195+$A$11,0,1,1)) -> 2020-05-27 | C195: =IF(A195>$A$8,"",OFFSET(InputPriceData!G$15,CalculationsAndCharts!$A195+$A$11,IF($C$5,8,0),1,1)) -> 1986900 | D195: =IF(A195>$A$8,"",OFFSET(InputPriceData!C$15,CalculationsAndCharts!$A195+$A$11,IF($C$5,8,0),1,1)) -> 369.65 | E195: =IF(A195>$A$8,"",OFFSET(InputPriceData!D$15,CalculationsAndCharts!$A195+$A$11,IF($C$5,8,0),1,1)) -> 389.61 | F195: =IF(A195>$A$8,"",OFFSET(InputPriceData!E$15,CalculationsAndCharts!$A195+$A$11,IF($C$5,8,0),1,1)) -> 369.46 | G195: =IF(A195>$A$8,"",OFFSET(InputPriceData!F$15,CalculationsAndCharts!$A195+$A$11,IF($C$5,8,0),1,1)) -> 389.61 | H195: 3.221618757 | I195: 44.05690311 | J195: 6.637537428 | K195: -6.637537428 | L195: 0.4203891432 | M195: 364.9516023 | N195: TRUE | O195: FALSE | P195: FALSE | Q195: FALSE | R195: FALSE | AW195: 1986900
A196: 164 | B196: =IF(A196>$A$8,"",OFFSET(InputPriceData!B$15,$A196+$A$11,0,1,1)) -> 2020-05-26 | C196: =IF(A196>$A$8,"",OFFSET(InputPriceData!G$15,CalculationsAndCharts!$A196+$A$11,IF($C$5,8,0),1,1)) -> 1596100 | D196: =IF(A196>$A$8,"",OFFSET(InputPriceData!C$15,CalculationsAndCharts!$A196+$A$11,IF($C$5,8,0),1,1)) -> 369.82 | E196: =IF(A196>$A$8,"",OFFSET(InputPriceData!D$15,CalculationsAndCharts!$A196+$A$11,IF($C$5,8,0),1,1)) -> 369.82 | F196: =IF(A196>$A$8,"",OFFSET(InputPriceData!E$15,CalculationsAndCharts!$A196+$A$11,IF($C$5,8,0),1,1)) -> 363.56 | G196: =IF(A196>$A$8,"",OFFSET(InputPriceData!F$15,CalculationsAndCharts!$A196+$A$11,IF($C$5,8,0),1,1)) -> 365.16 | H196: -1.682776447 | I196: 48.82689903 | J196: 6.987624706 | K196: -6.987624706 | L196: -2.380840471 | M196: 364.7037792 | N196: TRUE | O196: FALSE | P196: FALSE | Q196: FALSE | R196: FALSE | AX196: 1596100
A197: 165 | B197: =IF(A197>$A$8,"",OFFSET(InputPriceData!B$15,$A197+$A$11,0,1,1)) -> 2020-05-22 | C197: =IF(A197>$A$8,"",OFFSET(InputPriceData!G$15,CalculationsAndCharts!$A197+$A$11,IF($C$5,8,0),1,1)) -> 752600 | D197: =IF(A197>$A$8,"",OFFSET(InputPriceData!C$15,CalculationsAndCharts!$A197+$A$11,IF($C$5,8,0),1,1)) -> 362.86 | E197: =IF(A197>$A$8,"",OFFSET(InputPriceData!D$15,CalculationsAndCharts!$A197+$A$11,IF($C$5,8,0),1,1)) -> 363.16 | F197: =IF(A197>$A$8,"",OFFSET(InputPriceData!E$15,CalculationsAndCharts!$A197+$A$11,IF($C$5,8,0),1,1)) -> 358.7 | G197: =IF(A197>$A$8,"",OFFSET(InputPriceData!F$15,CalculationsAndCharts!$A197+$A$11,IF($C$5,8,0),1,1)) -> 362.02 | H197: -3.345347751 | I197: 52.44041135 | J197: 7.241575198 | K197: -7.241575198 | L197: -3.078904495 | M197: 364.6991941 | N197: FALSE | O197: FALSE | P197: FALSE | Q197: FALSE | R197: FALSE | AX197: 752600
A198: 166 | B198: =IF(A198>$A$8,"",OFFSET(InputPriceData!B$15,$A198+$A$11,0,1,1)) -> 2020-05-21 | C198: =IF(A198>$A$8,"",OFFSET(InputPriceData!G$15,CalculationsAndCharts!$A198+$A$11,IF($C$5,8,0),1,1)) -> 1179100 | D198: =IF(A198>$A$8,"",OFFSET(InputPriceData!C$15,CalculationsAndCharts!$A198+$A$11,IF($C$5,8,0),1,1)) -> 355.83 | E198: =IF(A198>$A$8,"",OFFSET(InputPriceData!D$15,CalculationsAndCharts!$A198+$A$11,IF($C$5,8,0),1,1)) -> 363.03 | F198: =IF(A198>$A$8,"",OFFSET(InputPriceData!E$15,CalculationsAndCharts!$A198+$A$11,IF($C$5,8,0),1,1)) -> 355.74 | G198: =IF(A198>$A$8,"",OFFSET(InputPriceData!F$15,CalculationsAndCharts!$A198+$A$11,IF($C$5,8,0),1,1)) -> 361.84 | H198: -2.0995671 | I198: 55.90913886 | J198: 7.477241393 | K198: -7.477241393 | L198: -2.81246124 | M198: 364.7261207 | N198: FALSE | O198: FALSE | P198: FALSE | Q198: FALSE | R198: FALSE | AW198: 1179100
A199: 167 | B199: =IF(A199>$A$8,"",OFFSET(InputPriceData!B$15,$A199+$A$11,0,1,1)) -> 2020-05-20 | C199: =IF(A199>$A$8,"",OFFSET(InputPriceData!G$15,CalculationsAndCharts!$A199+$A$11,IF($C$5,8,0),1,1)) -> 1880500 | D199: =IF(A199>$A$8,"",OFFSET(InputPriceData!C$15,CalculationsAndCharts!$A199+$A$11,IF($C$5,8,0),1,1)) -> 365.4 | E199: =IF(A199>$A$8,"",OFFSET(InputPriceData!D$15,CalculationsAndCharts!$A199+$A$11,IF($C$5,8,0),1,1)) -> 366.93 | F199: =IF(A199>$A$8,"",OFFSET(InputPriceData!E$15,CalculationsAndCharts!$A199+$A$11,IF($C$5,8,0),1,1)) -> 355.26 | G199: =IF(A199>$A$8,"",OFFSET(InputPriceData!F$15,CalculationsAndCharts!$A199+$A$11,IF($C$5,8,0),1,1)) -> 355.65 | H199: -4.702572347 | I199: 71.61918885 | J199: 8.462812112 | K199: -8.462812112 | L199: -3.525355381 | M199: 364.7551269 | N199: FALSE | O199: FALSE | P199: FALSE | Q199: FALSE | R199: FALSE | AX199: 1880500
A200: 168 | B200: =IF(A200>$A$8,"",OFFSET(InputPriceData!B$15,$A200+$A$11,0,1,1)) -> 2020-05-19 | C200: =IF(A200>$A$8,"",OFFSET(InputPriceData!G$15,CalculationsAndCharts!$A200+$A$11,IF($C$5,8,0),1,1)) -> 1087100 | D200: =IF(A200>$A$8,"",OFFSET(InputPriceData!C$15,CalculationsAndCharts!$A200+$A$11,IF($C$5,8,0),1,1)) -> 370.92 | E200: =IF(A200>$A$8,"",OFFSET(InputPriceData!D$15,CalculationsAndCharts!$A200+$A$11,IF($C$5,8,0),1,1)) -> 375.23 | F200: =IF(A200>$A$8,"",OFFSET(InputPriceData!E$15,CalculationsAndCharts!$A200+$A$11,IF($C$5,8,0),1,1)) -> 364.22 | G200: =IF(A200>$A$8,"",OFFSET(InputPriceData!F$15,CalculationsAndCharts!$A200+$A$11,IF($C$5,8,0),1,1)) -> 364.45 | H200: -0.526775479 | I200: 120.642128 | J200: 10.98372105 | K200: -10.98372105 | L200: -2.348138415 | M200: 364.8466357 | N200: FALSE | O200: FALSE | P200: FALSE | Q200: FALSE | R200: FALSE | AX200: 1087100
A201: 169 | B201: =IF(A201>$A$8,"",OFFSET(InputPriceData!B$15,$A201+$A$11,0,1,1)) -> 2020-05-18 | C201: =IF(A201>$A$8,"",OFFSET(InputPriceData!G$15,CalculationsAndCharts!$A201+$A$11,IF($C$5,8,0),1,1)) -> 1879700 | D201: =IF(A201>$A$8,"",OFFSET(InputPriceData!C$15,CalculationsAndCharts!$A201+$A$11,IF($C$5,8,0),1,1)) -> 364.19 | E201: =IF(A201>$A$8,"",OFFSET(InputPriceData!D$15,CalculationsAndCharts!$A201+$A$11,IF($C$5,8,0),1,1)) -> 373.29 | F201: =IF(A201>$A$8,"",OFFSET(InputPriceData!E$15,CalculationsAndCharts!$A201+$A$11,IF($C$5,8,0),1,1)) -> 359.1 | G201: =IF(A201>$A$8,"",OFFSET(InputPriceData!F$15,CalculationsAndCharts!$A201+$A$11,IF($C$5,8,0),1,1)) -> 370.4 | H201: -1.478880732 | I201: 181.5873197 | J201: 13.47543393 | K201: -13.47543393 | L201: -4.169501351 | M201: 364.850622 | N201: TRUE | O201: FALSE | P201: FALSE | Q201: FALSE | R201: FALSE | AW201: 1879700
A202: 170 | B202: =IF(A202>$A$8,"",OFFSET(InputPriceData!B$15,$A202+$A$11,0,1,1)) -> 2020-05-15 | C202: =IF(A202>$A$8,"",OFFSET(InputPriceData!G$15,CalculationsAndCharts!$A202+$A$11,IF($C$5,8,0),1,1)) -> 1854500 | D202: =IF(A202>$A$8,"",OFFSET(InputPriceData!C$15,CalculationsAndCharts!$A202+$A$11,IF($C$5,8,0),1,1)) -> 345.86 | E202: =IF(A202>$A$8,"",OFFSET(InputPriceData!D$15,CalculationsAndCharts!$A202+$A$11,IF($C$5,8,0),1,1)) -> 354.67 | F202: =IF(A202>$A$8,"",OFFSET(InputPriceData!E$15,CalculationsAndCharts!$A202+$A$11,IF($C$5,8,0),1,1)) -> 345.66 | G202: =IF(A202>$A$8,"",OFFSET(InputPriceData!F$15,CalculationsAndCharts!$A202+$A$11,IF($C$5,8,0),1,1)) -> 353.58 | H202: -10.240658 | I202: 231.3679698 | J202: 15.21078465 | K202: -15.21078465 | L202: -6.860121969 | M202: 364.7948494 | N202: FALSE | O202: FALSE | P202: FALSE | Q202: FALSE | R202: FALSE | AW202: 1854500
A203: 171 | B203: =IF(A203>$A$8,"",OFFSET(InputPriceData!B$15,$A203+$A$11,0,1,1)) -> 2020-05-14 | C203: =IF(A203>$A$8,"",OFFSET(InputPriceData!G$15,CalculationsAndCharts!$A203+$A$11,IF($C$5,8,0),1,1)) -> 1776400 | D203: =IF(A203>$A$8,"",OFFSET(InputPriceData!C$15,CalculationsAndCharts!$A203+$A$11,IF($C$5,8,0),1,1)) -> 354.16 | E203: =IF(A203>$A$8,"",OFFSET(InputPriceData!D$15,CalculationsAndCharts!$A203+$A$11,IF($C$5,8,0),1,1)) -> 354.7 | F203: =IF(A203>$A$8,"",OFFSET(InputPriceData!E$15,CalculationsAndCharts!$A203+$A$11,IF($C$5,8,0),1,1)) -> 345.6 | G203: =IF(A203>$A$8,"",OFFSET(InputPriceData!F$15,CalculationsAndCharts!$A203+$A$11,IF($C$5,8,0),1,1)) -> 349.54 | H203: -5.715750007 | I203: 264.7337043 | J203: 16.27063933 | K203: -16.27063933 | L203: -3.479585937 | M203: 364.9075614 | N203: FALSE | O203: FALSE | P203: FALSE | Q203: FALSE | R203: FALSE | AX203: 1776400
A204: 172 | B204: =IF(A204>$A$8,"",OFFSET(InputPriceData!B$15,$A204+$A$11,0,1,1)) -> 2020-05-13 | C204: =IF(A204>$A$8,"",OFFSET(InputPriceData!G$15,CalculationsAndCharts!$A204+$A$11,IF($C$5,8,0),1,1)) -> 1287400 | D204: =IF(A204>$A$8,"",OFFSET(InputPriceData!C$15,CalculationsAndCharts!$A204+$A$11,IF($C$5,8,0),1,1)) -> 364.26 | E204: =IF(A204>$A$8,"",OFFSET(InputPriceData!D$15,CalculationsAndCharts!$A204+$A$11,IF($C$5,8,0),1,1)) -> 365.41 | F204: =IF(A204>$A$8,"",OFFSET(InputPriceData!E$15,CalculationsAndCharts!$A204+$A$11,IF($C$5,8,0),1,1)) -> 355.16 | G204: =IF(A204>$A$8,"",OFFSET(InputPriceData!F$15,CalculationsAndCharts!$A204+$A$11,IF($C$5,8,0),1,1)) -> 357.29 | H204: -2.725292676 | I204: 271.9958983 | J204: 16.49229815 | K204: -16.49229815 | L204: -1.243421867 | M204: 365.0620093 | N204: FALSE | O204: FALSE | P204: FALSE | Q204: FALSE | R204: FALSE | AX204: 1287400
A205: 173 | B205: =IF(A205>$A$8,"",OFFSET(InputPriceData!B$15,$A205+$A$11,0,1,1)) -> 2020-05-12 | C205: =IF(A205>$A$8,"",OFFSET(InputPriceData!G$15,CalculationsAndCharts!$A205+$A$11,IF($C$5,8,0),1,1)) -> 1447700 | D205: =IF(A205>$A$8,"",OFFSET(InputPriceData!C$15,CalculationsAndCharts!$A205+$A$11,IF($C$5,8,0),1,1)) -> 370.85 | E205: =IF(A205>$A$8,"",OFFSET(InputPriceData!D$15,CalculationsAndCharts!$A205+$A$11,IF($C$5,8,0),1,1)) -> 375.21 | F205: =IF(A205>$A$8,"",OFFSET(InputPriceData!E$15,CalculationsAndCharts!$A205+$A$11,IF($C$5,8,0),1,1)) -> 364.01 | G205: =IF(A205>$A$8,"",OFFSET(InputPriceData!F$15,CalculationsAndCharts!$A205+$A$11,IF($C$5,8,0),1,1)) -> 364.09 | H205: -2.346851196 | I205: 286.8030605 | J205: 16.93526086 | K205: -16.93526086 | L205: 0.2384489427 | M205: 365.1401199 | N205: FALSE | O205: FALSE | P205: FALSE | Q205: FALSE | R205: FALSE | AX205: 1447700
... 1077 more rows

Sheet Follow
A1: Stocks and Indexes I wish to follow
A3: To ease following a stock, enter a Yahoo Finance acceptable symbol in column "A" anywhere below cell "A9".
A4: Thereafter you may doubleclick the cell containing a symbol of interest to initiate data retrieval and charting for that symbol.
A7: Symbol
A8: To | B8: Description | C8: Last Trade as of most recent check
A9: Follow | C9: Date | D9: Time | E9: Open | F9: High | G9: Low | H9: Close | I9: Volume | J9: Change | K9: Retrieved @
A10: A | B10: Agilent Technologies, Inc. (A) -NYSE (Daily) | C10: 2020-03-09 | D10: 16:04:00 | E10: 72.589996 | F10: 74.190002 | G10: 70.169998 | H10: 70.75 | I10: 4591093 | J10: -7.809998 | K10: 2020-03-09T16:59:21
A11: AA | B11: Alcoa Corporation (AA) -NYSE (Daily) | C11: 2020-01-31 | D11: 16:04:00 | E11: 14.01 | F11: 14.24 | G11: 13.62 | H11: 13.95 | I11: 9931500 | J11: -0.34 | K11: 2020-02-02T15:07:13
A12: AAL | B12: American Airlines Group Inc. (AAL) -NasdaqGS (Daily) | C12: 2020-03-09 | D12: 16:00:00 | E12: 14.87 | F12: 15.79 | G12: 14.46 | H12: 14.75 | I12: 41078614 | J12: -1.22 | K12: 2020-03-09T17:00:15
A13: AAPL | B13: Apple Inc. (AAPL) -NasdaqGS (Daily) | C13: 2020-06-17 | D13: 16:00:00 | E13: 355.149994 | F13: 355.369995 | G13: 351.089996 | H13: 351.589996 | I13: 27604481 | J13: -0.489991 | K13: 2020-06-17T17:45:34
A14: ADM | B14: Archer-Daniels-Midland Company (ADM) -NYSE (Weekly) | C14: 2018-07-13 | D14: 16:00:00 | E14: 47.5 | F14: 47.84 | G14: 47.169998 | H14: 47.57 | I14: 2402809 | J14: 0
A15: ADBE | B15: Adobe Inc. (ADBE) -NasdaqGS (Daily) | C15: 2020-06-17 | D15: 16:00:00 | E15: 414 | F15: 417.425995 | G15: 411.429993 | H15: 413.48999 | I15: 2026063 | J15: 1.819977 | K15: 2020-06-17T17:42:59
A16: ALGN | B16: Align Technology, Inc. (ALGN) -NasdaqGS (Daily) | C16: 2020-01-30 | D16: 16:00:00 | E16: 248.740005 | F16: 264.450012 | G16: 248.350006 | H16: 262.890015 | I16: 1833160 | J16: 1.290009
A17: AMC | B17: AMC Entertainment Holdings, Inc. (AMC) -NYSE (Weekly) | C17: 2018-07-13 | D17: 16:02:00 | E17: 17.049999 | F17: 17.15 | G17: 16.525 | H17: 17.049999 | I17: 1442776 | J17: 0
A18: AMD | B18: Advanced Micro Devices, Inc. (AMD) -NasdaqGS (Daily) | C18: 2020-08-19 | D18: 12:40:00 | E18: 81.775703 | F18: 81.849998 | G18: 80.449997 | H18: 80.760002 | I18: 18434143 | J18: -0.900002 | K18: 2020-08-19T12:40:49
A19: BSX | B19: Boston Scientific Corporation C (BSX) -NYQ (Daily) | C19: 2015-03-13 | D19: 16:01:00 | E19: 16.84 | F19: 16.91 | G19: 16.44 | H19: 16.61 | I19: 7262460 | J19: -0.28
A20: CASY | B20: Casey's General Stores, Inc. (CASY) -NasdaqGS (Daily) | C20: 2019-04-10 | D20: 16:00:00 | E20: 128.979996 | F20: 130.330002 | G20: 128.779999 | H20: 130.179993 | I20: 351300 | J20: 1.489991
A21: CAT | B21: Caterpillar Inc. (CAT) -NYSE (Daily) | C21: 2020-03-13 | D21: 11:48:00 | E21: 98.389999 | F21: 99.910004 | G21: 90.150101 | H21: 90.269997 | I21: 3568294 | J21: -1.990005 | K21: 2020-03-13T11:48:53
A22: CSCO | B22: Cisco Systems, In (CSCO) -NasdaqNM (Daily) | C22: 2015-02-19 | D22: 16:00:00 | E22: 29.32 | F22: 29.39 | G22: 29.13 | H22: 29.31 | I22: 21469012 | J22: -0.18
A23: CVS | B23: CVS Health Corporation (CVS) -NYSE (Daily) | C23: 2020-03-09 | D23: 16:07:00 | E23: 59.75 | F23: 63 | G23: 59.599998 | H23: 61.299999 | I23: 13065424 | J23: -2.850003 | K23: 2020-03-09T17:51:54
A24: DIS | B24: The Walt Disney Company (DIS) -NYSE (Daily) | C24: 2020-03-09 | D24: 16:07:00 | E24: 108.690002 | F24: 110.43 | G24: 104.279999 | H24: 104.349998 | I24: 26101127 | J24: -10.919999 | K24: 2020-03-09T16:59:51
A25: F | B25: Ford Motor Company (F) -NYSE (Daily) | C25: 2020-01-31 | D25: 16:03:00 | E25: 8.78 | F25: 8.84 | G25: 8.74 | H25: 8.82 | I25: 59781000 | J25: -0.02 | K25: 2020-02-02T15:09:03
A26: FAS | B26: Direxion Daily Financial Bull 3X ETF (FAS) -NYSEArca (Daily) | C26: 2017-10-13 | D26: 16:00:00 | E26: 58.099998 | F26: 58.939999 | G26: 57.43 | H26: 58.450001 | I26: 1709300 | J26: 0.07
A27: FB | B27: Facebook, Inc. (FB) -NasdaqGS (Daily) | C27: 2020-02-14 | D27: 16:00:00 | E27: 214 | F27: 214.929993 | G27: 212.649994 | H27: 214.179993 | I27: 10727400 | J27: 1.039994 | K27: 2020-02-15T17:19:34
A28: GSK | B28: GlaxoSmithKline plc (GSK) -NYSE (Daily) | C28: 2021-01-15 | D28: 16:00:00 | E28: 38.41 | F28: 38.66 | G28: 38.209999 | H28: 38.470001 | I28: 3100400 | J28: 0.310001 | K28: 2021-01-17T18:07:58
A29: GDX | B29: VanEck Vectors Gold Miners ETF (GDX) -NYSEArca (Daily) | C29: 2020-01-31 | D29: 16:00:00 | E29: 28.799999 | F29: 29.24 | G29: 28.76 | H29: 28.99 | I29: 41946000 | J29: 0.26 | K29: 2020-02-02T15:11:17
A30: GOOG | B30: Alphabet Inc. (GOOG) -NasdaqGS (Daily) | C30: 2020-02-14 | D30: 16:00:00 | E30: 1515.599976 | F30: 1520.73999 | G30: 1507.339966 | H30: 1520.73999 | I30: 1196700 | J30: 6.079956 | K30: 2020-02-15T17:20:39
A31: HAL | B31: Halliburton Company (HAL) -NYSE (Daily) | C31: 2020-09-17 | D31: 11:11:00 | E31: 14.73 | F31: 14.945 | G31: 14.57 | H31: 14.91 | I31: 4265279 | J31: -0.16 | K31: 2020-09-17T11:11:52
A32: HD | B32: The Home Depot, Inc. (HD) -NYSE (Daily) | C32: 2020-03-13 | D32: 11:54:00 | E32: 200.449997 | F32: 201.179993 | G32: 192.270096 | H32: 193.449997 | I32: 3274582 | J32: 2.860001 | K32: 2020-03-13T11:54:29
A33: HSY | B33: The Hershey Company (HSY) -NYSE (Daily) | C33: 2021-01-15 | D33: 16:00:00 | E33: 147.089996 | F33: 149.490005 | G33: 146.880005 | H33: 148.460007 | I33: 1193700 | J33: 1.040009 | K33: 2021-01-17T18:06:10
A34: HTLD | B34: Heartland Express, Inc. (HTLD) -NasdaqGS (Daily) | C34: 2020-03-09 | D34: 16:00:00 | E34: 17.33 | F34: 17.690001 | G34: 16.82 | H34: 16.879999 | I34: 284762 | J34: -1.280001 | K34: 2020-03-09T17:00:56
A35: IBM | B35: International Business Machines Corporation (IBM) -NYSE (Daily) | C35: 2019-08-14 | D35: 11:24:00 | E35: 133.910004 | F35: 134.160004 | G35: 132.130005 | H35: 132.460098 | I35: 1281528 | J35: -1.659897
A36: INTC | B36: Intel Corporation (INTC) -NasdaqGS (Daily) | C36: 2020-02-14 | D36: 16:00:00 | E36: 67.519997 | F36: 67.860001 | G36: 66.82 | H36: 67.269997 | I36: 13402800 | J36: -0.170005 | K36: 2020-02-15T17:21:41
A37: JAH | B37: Jarden Corporation Common Stock (JAH) -NYQ (Daily) | C37: 2016-01-08 | D37: 16:02:00 | E37: 53.82 | F37: 53.88 | G37: 52.65 | H37: 52.73 | I37: 4519480 | J37: -0.81
A38: JNJ | B38: Johnson & Johnson (JNJ) -NYSE (Daily) | C38: 2019-08-14 | D38: 10:33:00 | E38: 132.529999 | F38: 132.539993 | G38: 131.419998 | H38: 131.759995 | I38: 870520 | J38: -0.169998
A39: KO | B39: The Coca-Cola Company (KO) -NYSE (Daily) | C39: 2020-03-09 | D39: 16:07:00 | E39: 52.049999 | F39: 53.580002 | G39: 51.474998 | H39: 51.860001 | I39: 27771279 | J39: -3.399997 | K39: 2020-03-09T17:05:43
A40: LOW | B40: Lowe's Companies, Inc. (LOW) -NYSE (Daily) | C40: 2020-03-09 | D40: 16:03:00 | E40: 97.82 | F40: 99.82 | G40: 93.150101 | H40: 94.220001 | I40: 8167579 | J40: -11.089997 | K40: 2020-03-09T16:57:19
A41: LMT | B41: Lockheed Martin Corporation (LMT) -NYSE (Daily) | C41: 2021-01-15 | D41: 16:00:00 | E41: 347.089996 | F41: 350.5 | G41: 344.279999 | H41: 347.269989 | I41: 1850200 | J41: -0.170013 | K41: 2021-01-18T10:09:49
A42: MCD | B42: McDonald's Corporation (MCD) -NYSE (Daily) | C42: 2020-03-09 | D42: 16:01:00 | E42: 187.669998 | F42: 194.470001 | G42: 184.100006 | H42: 186.860001 | I42: 7601343 | J42: -12 | K42: 2020-03-09T16:58:16
A43: MDT | B43: Medtronic plc (MDT) -NYSE (Daily) | C43: 2020-03-09 | D43: 16:07:00 | E43: 94.019997 | F43: 95.470001 | G43: 91.709999 | H43: 92.400002 | I43: 9000931 | J43: -6.659996 | K43: 2020-03-09T17:48:45
A44: MGM | B44: MGM Resorts International (MGM) -NYSE (Daily) | C44: 2020-03-09 | D44: 16:02:00 | E44: 18.6 | F44: 19.58 | G44: 17.530001 | H44: 17.879999 | I44: 26050818 | J44: -2.51 | K44: 2020-03-09T17:13:53
A45: MO | B45: Altria Group, Inc. (MO) -NYSE (Daily) | C45: 2020-01-31 | D45: 16:05:00 | E45: 48.25 | F45: 48.799999 | G45: 47.240002 | H45: 47.529999 | I45: 11790800 | J45: -0.470001 | K45: 2020-02-02T15:20:55
A46: MSFT | B46: Microsoft Corporation (MSFT) -NasdaqGS (Daily) | C46: 2020-03-09 | D46: 16:00:00 | E46: 151 | F46: 157.75 | G46: 150 | H46: 150.619995 | I46: 69167627 | J46: -10.950012 | K46: 2020-03-09T17:06:41
A47: NFLX | B47: Netflix, Inc. (NFLX) -NasdaqGS (Daily) | C47: 2020-03-09 | D47: 16:00:00 | E47: 343.859985 | F47: 357.470001 | G47: 341.720886 | H47: 346.48999 | I47: 6746188 | J47: -22.480011 | K47: 2020-03-09T17:23:37
A48: NUGT | B48: Direxion Daily Gold Miners Index Bull 3X Shares (NUGT) -NYSEArca (Daily) | C48: 2020-01-31 | D48: 16:00:00 | E48: 32.439999 | F48: 33.830002 | G48: 32.240002 | H48: 33.02 | I48: 11325200 | J48: 0.84 | K48: 2020-02-02T15:21:51
A49: NVS | B49: Novartis AG (NVS) -NYSE (Daily) | C49: 2020-03-06 | D49: 16:02:00 | E49: 84.330002 | F49: 85.830002 | G49: 83.970001 | H49: 85.720001 | I49: 5624700 | J49: -0.089997 | K49: 2020-03-08T16:56:35
A50: NVDA | B50: NVIDIA Corporation (NVDA) -NasdaqGS (Daily) | C50: 2020-12-14 | D50: 16:00:00 | E50: 523.515015 | F50: 535.549988 | G50: 523.099976 | H50: 532.349976 | I50: 6580666 | J50: 11.819947 | K50: 2020-12-14T18:31:17
A51: PRU | B51: Prudential Financial, Inc. (PRU) -NYSE (Daily) | C51: 2020-03-09 | D51: 16:02:00 | E51: 63.75 | F51: 65.830002 | G51: 57.375 | H51: 58.240002 | I51: 7614493 | J51: -11.569996 | K51: 2020-03-09T17:11:43
A52: PSEC | B52: Prospect Capital Corporation (PSEC) -NasdaqGS (Daily) | C52: 2020-02-14 | D52: 16:00:00 | E52: 6.53 | F52: 6.56 | G52: 6.51 | H52: 6.52 | I52: 1235500 | J52: -0.04 | K52: 2020-02-15T14:43:16
A53: RPM | B53: RPM International Inc. (RPM) -NYSE (Daily) | C53: 2020-03-09 | D53: 16:02:00 | E53: 64.470001 | F53: 66.730003 | G53: 63.5 | H53: 65.290001 | I53: 1115882 | J53: -2.919998 | K53: 2020-03-09T17:10:08
A54: RSP | B54: Invesco S&P 500 Equal Weight ETF (RSP) -NYSEArca (Daily) | C54: 2020-01-31 | D54: 16:00:00 | E54: 115.279999 | F54: 115.32 | G54: 113.230003 | H54: 113.540001 | I54: 747600 | J54: -2.309997 | K54: 2020-02-02T15:28:52
A55: SPR | B55: Spirit AeroSystems Holdings, Inc. (SPR) -NYSE (Daily) | C55: 2020-03-09 | D55: 16:06:00 | E55: 43.700001 | F55: 43.880001 | G55: 41.5 | H55: 42.139999 | I55: 2091368 | J55: -5.23 | K55: 2020-03-09T17:09:37
A56: SQ | B56: Square, Inc. (SQ) -NYSE (Daily) | C56: 2020-10-02 | D56: 16:00:00 | E56: 164.050003 | F56: 171.240005 | G56: 163.800995 | H56: 169.610001 | I56: 11150500 | J56: 1.119996 | K56: 2020-10-04T20:00:52
A57: SWKS | B57: Skyworks Solutions, Inc. (SWKS) -NasdaqGS (Daily) | C57: 2020-01-31 | D57: 16:00:00 | E57: 115.5 | F57: 115.739998 | G57: 112.720001 | H57: 113.150002 | I57: 2444600 | J57: -3.080001 | K57: 2020-02-02T15:26:46
A58: TOL | B58: Toll Brothers, Inc. (TOL) -NYSE (Daily) | C58: 2020-03-09 | D58: 16:07:00 | E58: 34.759998 | F58: 35.314999 | G58: 32.060001 | H58: 34.110001 | I58: 3127968 | J58: -2.86 | K58: 2020-03-09T17:12:09
A59: TSLA | B59: Tesla, Inc. (TSLA) -NasdaqGS (Daily) | C59: 2020-03-13 | D59: 12:08:00 | E59: 595 | F59: 607.570007 | G59: 502.01001 | H59: 510 | I59: 12224537 | J59: -50.549988 | K59: 2020-03-13T12:08:39
A60: TXN | B60: Texas Instruments Incorporated (TXN) -NasdaqGS (Daily) | C60: 2020-06-19 | D60: 11:30:00 | E60: 128.059998 | F60: 128.179993 | G60: 126.07 | H60: 126.370003 | I60: 2078988 | J60: 0.39 | K60: 2020-06-19T11:31:00
A61: UNP | B61: Union Pacific Corporation (UNP) -NYSE (Daily) | C61: 2020-03-09 | D61: 16:07:00 | E61: 145.199997 | F61: 145.580002 | G61: 133.179993 | H61: 135.839996 | I61: 9380024 | J61: -20.25 | K61: 2020-03-09T17:11:21
A62: VZ | B62: Verizon Communications Inc. (VZ) -NYSE (Daily) | C62: 2019-04-10 | D62: 16:00:00 | E62: 58.400002 | F62: 58.700001 | G62: 58.360001 | H62: 58.610001 | I62: 8022000 | J62: 0.209999
A63: WBA | B63: Walgreens Boots Alliance, Inc. (WBA) -NasdaqGS (Daily) | C63: 2020-01-31 | D63: 16:00:00 | E63: 51.709999 | F63: 51.919998 | G63: 50.66 | H63: 50.849998 | I63: 6532300 | J63: -1.100003 | K63: 2020-02-02T15:28:06
A64: WMT | B64: Walmart Inc. (WMT) -NYSE (Daily) | C64: 2020-03-09 | D64: 16:01:00 | E64: 113.82 | F64: 120.629997 | G64: 112.730003 | H64: 117.160004 | I64: 19567750 | J64: -0.069999 | K64: 2020-03-09T17:10:39
A66: ^AEX | B66: AEX-INDEX (^AEX) -Amsterdam (Daily) | C66: 2020-03-09 | D66: 18:05:00 | E66: 506.950012 | F66: 506.950012 | G66: 485.730011 | H66: 490.660004 | I66: 0 | J66: -40.629974 | K66: 2020-03-09T17:41:58
A67: ^AORD | B67: ALL ORDINARIES (^AORD) -ASX (Daily) | C67: 2020-03-09 | D67: 16:17:00 | E67: 6472.399902 | F67: 6287.299805 | G67: 5822.399902 | H67: 5822.399902 | I67: 0 | J67: -465.100098 | K67: 2020-03-09T17:45:59
A68: ^DJI | B68: Dow Jones Industrial Average (^DJI) -DJI (Daily) | C68: 2021-01-15 | D68: 17:18:00 | E68: 30926.76953 | F68: 30941.98047 | G68: 30612.66992 | H68: 30814.25977 | I68: 433000000 | J68: -177.259765 | K68: 2021-01-18T09:45:18
A69: ^FTSE | B69: FTSE 100 (^FTSE) -FTSE Index (Daily) | C69: 2020-03-09 | D69: 16:45:00 | E69: 6462.549805 | F69: 6462.549805 | G69: 5891.560059 | H69: 5965.77002 | I69: 0 | J69: -496.830078 | K69: 2020-03-09T17:43:57
A70: ^GSPC | B70: S&P 500 (^GSPC) -SNP (Daily) | C70: 2021-01-15 | D70: 17:18:00 | E70: 3788.72998 | F70: 3788.72998 | G70: 3749.620117 | H70: 3768.25 | I70: 5353060000 | J70: -27.290039 | K70: 2021-01-17T18:23:17
A71: ^HSI | B71: HANG SENG INDEX (^HSI) -HKSE (Daily) | C71: 2020-03-09 | D71: 16:08:00 | E71: 25134.01953 | F71: 25321.2793 | G71: 24948.38086 | H71: 25040.46094 | I71: 0 | J71: -1106.208984 | K71: 2020-03-09T17:39:06
A72: ^MID | B72: S&P MID CAP 400 INDEX (^MID) -NYSE (Daily) | C72: 2020-02-14 | D72: 16:06:00 | E72: 2099.459961 | F72: 2100.51001 | G72: 2089.610107 | H72: 2096.610107 | I72: 0 | J72: -0.679932 | K72: 2020-02-14T21:04:41
A73: ^NDX | B73: NASDAQ 100 (^NDX) -Nasdaq GIDS (Daily) | C73: 2020-02-14 | D73: 16:51:00 | E73: 9613.881836 | F73: 9634.750977 | G73: 9583.083008 | H73: 9623.580078 | I73: 469910279 | J73: 27.879883 | K73: 2020-02-14T16:52:02
A74: ^NYA | B74: NYSE COMPOSITE (DJ) (^NYA) -NYSE (Weekly) | C74: 2021-01-11 | D74: 16:10:00 | E74: 14828.03027 | F74: 15129.12012 | G74: 14791.65039 | H74: 14894.16992 | I74: 24551330000 | J74: -72.660156 | K74: 2021-01-18T09:10:33
A75: ^OEX | B75: S&P 100 INDEX (^OEX) -Chicago Options (Daily) | C75: 2019-09-13 | D75: 16:56:00 | E75: 1332.27002 | F75: 1334.420044 | G75: 1328.73999 | H75: 1330.969971 | I75: 3520060000 | J75: -1.010009
A76: ^RUT | B76: Russell 2000 (^RUT) -Chicago Options (Daily) | C76: 2021-01-15 | D76: 16:00:00 | E76: 2154.689941 | F76: 2154.689941 | G76: 2102.530029 | H76: 2123.199951 | I76: 53530600 | J76: -32.150147 | K76: 2021-01-18T08:41:42
A77: ^SSEC | B77: SSE Composite Index (^SSEC) -Shanghai (Daily) | C77: 2020-03-09 | D77: 15:00:00 | E77: 3039.939453 | F77: 2989.205078 | G77: 2940.713867 | H77: 2943.290771 | I77: 2801367936 | J77: -388.231202 | K77: 2020-03-09T17:38:09
A78: ^VIX | B78: CBOE Volatility Index (^VIX) -Chicago Options (Daily) | C78: 2020-03-09 | D78: 16:14:00 | E78: 41.939999 | F78: 62.119999 | G78: 41.939999 | H78: 54.459999 | I78: 0 | J78: 12.52 | K78: 2020-03-09T17:38:36
A79: IWM | B79: iShares Russell 2000 ETF (IWM) -NYSEArca (Daily) | C79: 2018-04-13 | D79: 16:00:00 | E79: 155.289993 | F79: 155.330002 | G79: 153.509995 | H79: 153.949997 | I79: 19710100 | J79: -0.809998
A80: QQQ | B80: Invesco QQQ Trust (QQQ) -NasdaqGM (Daily) | C80: 2020-08-27 | D80: 15:01:00 | E80: 293.079987 | F80: 293.851013 | G80: 288.704987 | H80: 291.994995 | I80: 41822663 | J80: 0.035004 | K80: 2020-08-27T15:02:03
A81: XLE | B81: Energy Select Sector SPDR Fund (XLE) -NYSEArca (Daily) | C81: 2020-07-10 | D81: 16:00:00 | E81: 34.240002 | F81: 35.580002 | G81: 34.240002 | H81: 35.540001 | I81: 25223900 | J81: 1.100002 | K81: 2020-07-11T16:34:13
A82: SPY | B82: SPDR S&P 500 ETF Trust (SPY) -NYSEArca (Daily) | C82: 2021-01-15 | D82: 16:00:00 | E82: 376.720001 | F82: 377.579987 | G82: 373.700012 | H82: 375.700012 | I82: 107046400 | J82: -2.759979 | K82: 2021-01-17T18:11:47
A84: ACAD | B84: ACADIA Pharmaceut (ACAD) -NasdaqNM (Daily) | C84: 2014-07-21 | D84: 16:00:00 | E84: 20.13 | F84: 20.55 | G84: 19.8101 | H84: 20.31 | I84: 691016
A85: CLDX | B85: Celldex Therapeut (CLDX) -NasdaqNM (Daily) | C85: 2015-02-02 | D85: 16:00:00 | E85: 21.47 | F85: 21.69 | G85: 20.11 | H85: 21.02 | I85: 1570418 | J85: -0.4
A86: ICPT | B86: Intercept Pharmac (ICPT) -NasdaqNM (Daily) | C86: 2014-07-21 | D86: 16:00:00 | E86: 215.97 | F86: 218.43 | G86: 213.05 | H86: 218.14 | I86: 191276
A87: INO | B87: Inovio Pharmaceut (INO) -AMEX (Daily) | C87: 2014-07-21 | D87: 16:00:00 | E87: 10.3 | F87: 11.08 | G87: 10.1 | H87: 11.01 | I87: 1800796
A88: JCP | B88: J. C. Penney Company, Inc. (JCP) -NYSE (Daily) | C88: 2017-12-07 | D88: 16:01:00 | E88: 3.34 | F88: 3.4 | G88: 3.25 | H88: 3.27 | I88: 14485464 | J88: -0.07
A89: LCI | B89: Lannett Co Inc Co (LCI) -NYSE (Daily) | C89: 2014-07-21 | D89: 16:02:00 | E89: 38.09 | F89: 38.803 | G89: 36.5101 | H89: 37.76 | I89: 611367
A90: NPSP | B90: NPS Pharmaceutica (NPSP) -NasdaqNM (Daily) | C90: 2014-07-21 | D90: 15:59:00 | E90: 28.75 | F90: 29.43 | G90: 28.31 | H90: 29.29 | I90: 1126758
A91: PBYI | B91: Puma Biotechnolog (PBYI) -NYSE (Daily) | C91: 2014-07-21 | D91: 16:02:00 | E91: 58.27 | F91: 59.46 | G91: 57.39 | H91: 58.98 | I91: 348030
